Workbook

Sheet Datos de la entidad
E1: Subsecretaría de Educación Básica Dirección General de Desarrollo Curricular Dirección de Fortalecimiento Curricular para la Formación Personal y Social en la Educación Básica Educación Especial
A6: ANEXO 3 PLAN ANUAL DE TRABAJO (PAT) 2025 Programa Fortalecimiento de los Servicios de Educación Especial (PFSEE)
A7: Entidad: | D7: D U R A N G O
A9: 1. Datos de la Persona Coodinadora Local del PFSEE
A11: Nombre: | D11: DR. ANTONIO HERRERA MONTES
A12: Cargo: | D12: ENCARGADO DE LA COORDINACIÓN DEL PFSEE DURANGO
A13: Domicilio de la oficina: | D13: Blvd. Domingo Arrieta 1700, Fracc. Domingo Arrieta CP. 34180 Durango Dgo.
A17: Correo electrónico: | D17: pfsee.seed@durango.gob.mx
A18: Teléfono y extensión: | D18: 6181376259 CISCO 76259
A19: Celular: | D19: 6181384669

Sheet Instrucciones
S1: Subsecretaría de Educación Básica Dirección General de Desarrollo Curricular Dirección de Fortalecimiento Curricular para la Formación Personal y Social en la Educación Básica Educación Especial
A6: Sírvase de las siguientes recomendaciones para el llenado de su formato PAT
A8: Este archivo requiere guardarse como "Libro de Excel habilitado para macros".
A10: 1. Previamente, el formato está diseñado para imprimirse bajo los siguientes criterios, sin embargo, puede hacer las adecuaciones que considere para que las tablas se impriman completas hoja por hoja:
B12: o Formato horizontal
B13: o Tamaño Carta
B14: o Márgenes estrechos
B15: o Escalado 40%
A17: 2. Una vez llenadas las pestañas "Distribución presupuestal 2025" y "SEE 2025", se pasan en automático los servicios que fueron focalizados en cada tabla, así como el recurso proyectado para cada criterio. Lo anterior, para facilitar el llenado a partir de estos datos.
A20: 3. La celda "Remanente" es un apoyo para el llenado del documento, ahí se va actualizando el recurso que no se está planeando con las acciones propuestas. Para la entrega final, el remanente deberá quedar en ceros.
A23: 4. En las pestañas correspondientes a "Acciones académicas", se despliegan las siguientes opciones. Favor de no escribir, únicamente seleccionar del desplegable:
B25: Diplomado | D25: 2do | F25: Encuentro | H25: Arrendamiento de salas / salones
B26: Curso | D26: 3ro | F26: Curso | H26: Compra de recursos didácticos
B27: Taller | D27: 4to | F27: Taller | H27: Reproducción de materiales
B28: Conferencia | F28: Reunión | H28: Pago a conferencistas o talleristas
B29: Asesoría | H29: Contratación de plataforma digital
H30: Pago de viáticos para asistentes
H31: Pago de traslados para asistentes
H32: Coffee break
H33: Compra de papelería
H34: Renta de equipo de audio y/o video
H35: Renta de mobiliario
H36: N/A
A37: 4. En las pestañas correspondientes a "Atención complementaria", se despliegan las siguientes opciones. Favor de no escribir, únicamente seleccionar del desplegable:
B39: Académica | D39: 2do | F39: Campaña | H39: Arrendamiento de salas / salones
B40: Artística | D40: 3ro | F40: Feria | H40: Compra de recursos didácticos
B41: Deportiva | D41: 4to | F41: Evento | H41: Compra de material deportivo y/o artístico
B42: Rehabilitadora | H42: Reproducción de materiales
B43: Desarrollo de habilidades socioafectivas | H43: Pago a especialistas
B44: Para contribuir al diagnóstico | H44: Contratación de plataforma digital
H45: Pago de viáticos para asistentes
H46: Pago de traslados para asistentes
H47: Compra de Box lunch
H48: Compra de papelería
H49: Adquisición de uniformes
H50: Renta de vestuario
H51: Renta de material didáctico y/o deportivo
H52: Diseño y producción de lonas
H53: Renta de equipo de audio y/o video
H54: Renta de mobiliario
H55: N/A
A56: 5. En la pestaña correspondiente a "Equipamiento específico (DIS)", se despliegan las siguientes opciones. Favor de no escribir, únicamente seleccionar del desplegable:
B58: Material didáctico concreto | F58: Libros especializados en atención educativa | H58: Braille | L58: Para el desplazamiento | S58: Software
B59: Esquemas o mapas en relieve | D59: 2do | F59: Libros especializados en discapacidad | H59: Lectura fácil | L59: Para la orientación | S59: Hardware
B60: Regletas y punzón | D60: 3ro | F60: Libros especializados en ciencia | H60: Audiolibro | L60: Para la comunicación | S60: Equipo de cómputo
B61: Caja aritmética | D61: 4to | F61: Libros especializados en artes | H61: Videos con animaciones | S61: Cañón
B62: Ábaco Cramer | F62: Libros en formatos accesibles | H62: Videos con interpretación en LSM | S62: Impresora
B63: Tableros de comunicación | F63: Libros de literatura infantil | H63: Videos con closed caption | S63: Enmicadora
B64: Regletas cuisenaire | F64: Libros de literatura juvenil | H64: Tecnología de bajo costo | S64: Tableta electrónica
B65: Juegos de estrategia adaptados | F65: Equipamiento para espacios de lectura | H65: Otro (especifique) | S65: Equipo para producciones audiovisuales de NNAJ
B66: Material para ciencia | F66: Otro (especifique) | S66: Reproductor de audio
B67: Equipo deportivo | S67: Reproductor de video
B68: Instrumentos musicales acústicos | S68: Equipo de asistencia tecnológica
B69: Material de robótica | S69: Tecnología adaptada
B70: Máquinas robóticas mecánicas | S70: Impresora en Braille
B71: Paquetes con diversos materiales | S71: Máquina Perkins
B72: Otro (especifique) | S72: Calculadora parlante
S73: Magnificador de pantalla
S74: Contratación de plataforma digital
S75: Material para robótica
S76: Instrumentos musicales electrónicos
S77: Otro (especifique)
A78: 6. En la pestaña correspondiente a "Equipamiento específico (AS)", se despliegan las siguientes opciones. Favor de no escribir, únicamente seleccionar del desplegable:
B80: Juegos de estrategia | F80: Libros especializados en atención educativa | J80: Software
B81: Material para ciencia | D81: 2do | F81: Libros especializados en aptitudes sobresalientes | J81: Hardware
B82: Material para artes | D82: 3ro | F82: Libros especializados en ciencia | J82: Equipo de cómputo
B83: Equipo deportivo | D83: 4to | F83: Libros especializados en artes | J83: Cañón
B84: Instrumentos musicales acústicos | F84: Libros de literatura infantil | J84: Impresora
B85: Paquetes con diversos materiales | F85: Libros de literatura juvenil | J85: Tableta electrónica
B86: Material de robótica | F86: Equipamiento para espacios de lectura | J86: Equipo para producciones audiovisuales realizado por NNAJ
B87: Máquinas robóticas mecánicas | F87: Otro (especifique) | J87: Reproductor de audio
B88: Otro (especifique) | J88: Reproductor de video
J89: Material para robótica
J90: Enmicadora
J91: Contratación de plataforma digital
J92: Instrumentos musicales electrónicos
J93: Otro (especifique)
A94: 7. La cantidad a distribuir se refiere al total de material que se va a adquirir y distribuir, es decir 15 regletas, 10 equipos deportivos, etc.
A97: 8. El trimestre se refiere a cuándo se empezará la actividad y cuándo se concluye. Favor de seleccionarlo del desplegable y, si la actividad se realizará en un solo trimestre, se escribe lo mismo en las dos celdas.
A100: 9. Se solicita que, en la medida de lo posible, se diversifique el propósito educativo reportado para cada actividad/adquisición.
A103: 10. Para recabar las firmas de "Autorización", si en su entidad no hay subsistemas, podrá eliminar una de las tablas correspondientes a las firmas de los Responsables de Educación Especial.
A106: 11. Se recomienda que, en caso de no requerir todas las tablas que aparecen a continuación, sea porque no va a realizar acciones en ese criterio de gasto, o no se va a beneficiar a todos los tipos de servicios que se presentan, imprima únicamente lo necesario (es decir, las tablas que contengan algún tipo de información).
A109: 12. En caso de requerir mayor número de filas para reportar más actividades, podrá hacerlo siguiendo la ruta: Inicio / Celdas / Insertar filas. O bien, haciendo click derecho en el encabezado de la fila.
A112: 13. Solicitamos su apoyo para que este formato no sea desbloqueado, agregado o eliminado columnas, ni fórmulas; de lo contrario, se le solicitará que se vuelva a recabar la información en un formato en limpio.
A115: 14. Favor de no eliminar esta pestaña.

Sheet Priorización 2025
E1: Subsecretaría de Educación Básica Dirección General de Desarrollo Curricular Dirección de Fortalecimiento Curricular para la Formación Personal y Social en la Educación Básica Educación Especial
A7: Situación de lo programado en 2025 para los logros del diagnóstico de servicios de educación especial en la entidad
A9: Fortalecimiento 2025
A10: Criterios de selección y priorización de los servicios de educación especial. (Puede seleccionar más de una opción)
A12: Seleccione los criterios de priorización
A13: Seleccione con una X
A14: Servicios de sostenimiento público.
A15: Servicios que atienden estudiantes con discapacidad y/o con aptitudes sobresalientes. | I15: X
A16: Servicios que se ubiquen en localidades catalogadas por el CONAPO con un grado de marginación “alto” o “muy alto”.
A17: Servicios de nueva creación
A18: Servicios con mayores necesidades de acuerdo con los criterios establecidos en el diagnóstico. | I18: X
A19: Servicios que atienden a población con discapacidad y/o con aptitudes sobresalientes que se encuentren en doble situación de vulnerabilidad, como indígena, afrodescendiente y migrante.
A20: Servicios que brinden actualización a docentes de escuelas de Educación Básica (Componente 1). | I20: X
A22: Describa los criterios de dicha priorización
A23: 1. Servicios que atienden estudiantes con discapacidad y/o con aptitudes sobresalientes: Centros que proporcionen intervenciones específicas, herramientas pedagógicas adaptadas y acompañamiento especializado tanto a los estudiantes como a docentes y familias, fortaleciendo la labor es fundamental del personal. 2. Servicios con mayores necesidades de acuerdo con los criterios establecidos en el diagnóstico: Servicios que operan con infraestructura insuficiente o deteriorada, carecen de equipamiento especializado actualizado, y cuentan con personal que requiere formación específica en atención a las diversas condiciones de discapacidad y aptitudes sobresalientes. 3. Servicios que brinden actualización a docentes de escuelas de Educación Básica (Componente 1): Los Servicios de Educación Especial que brindan actualización a agentes educativos de Escuelas Públicas de Educación Básica son prioritarios para fortalecer la educación inclusiva, ya que capacitan a docentes regulares en estrategias específicas para atender adecuadamente a estudiantes con discapacidad y/o aptitudes sobresalientes.
A31: Describa de qué manera se satisfacen las necesidades identificadas en su diagnóstico con las acciones programadas para beneficiar a población con discapacidad | D31: Atendiendo al incremento de condiciones de trastornos del neurodesarrollo, discapacidad intelectual y dificultades severas de aprendizaje, las acciones programadas para beneficiar a esta población, responden directamente a las necesidades identificadas en el diagnóstico a través de intervenciones estratégicas en tres componentes. Mediante el componente de Acciones académicas, se ofrece capacitación especializada a docentes y agentes educativos para fortalecer sus habilidades en la atención a estudiantes con diferentes tipos de discapacidad, cubriendo la carencia de personal actualizado. El componente de Acciones de atención complementaria permite implementar intervenciones directas como: actividades artísticas, deportivas, así como caravanas de sensibilización que promueven una cultura inclusiva. Por último, el componente de Equipamiento específico dota a los servicios de educación especial con tecnología asistida, mobiliario adecuado, ayudas técnicas para la movilidad y equipamiento para aulas multisensoriales que aportan beneficios a la totalidad de la población atendida.
A46: Describa de qué manera se satisfacen las necesidades identificadas en su diagnóstico con las acciones programadas para beneficiar a población con aptitudes sobresalientes | D46: Las acciones programadas para la población con aptitudes sobresalientes responden estratégicamente a las necesidades diagnósticadas, reforzando la detección constante para incrementar la población en atención. El componente de Acciones académicas aborda la necesidad de formación especializada a través de capacitación a docentes y agentes educativos en metodologías de identificación, estimulación y enriquecimiento para estudiantes sobresalientes en diversas áreas. El componente de Acciones de atención complementaria busca satisfacer la necesidad de experiencias educativas desafiantes mediante intervenciones académicas especializadas, proyectos de investigación, actividades artísticas, y eventos que permiten a estos estudiantes mostrar sus habilidades y profundizar en sus áreas de interés. Finalmente, el componente de Equipamiento específico proporciona los recursos necesarios a través de materiales didácticos especializados, equipamiento tecnológico, permitiendo a los estudiantes con aptitudes sobresalientes desarrollar plenamente su potencial al contar con los insumos adecuados para su estimulación cognitiva y creativa.

Sheet Distribución presupuestal 2025
S1: Subsecretaría de Educación Básica Dirección General de Desarrollo Curricular Dirección de Fortalecimiento Curricular para la Formación Personal y Social en la Educación Básica Educación Especial
A6: Esquema de la distribución presupuestal que se planea ejercer en cada uno de los criterios de los 3 componentes. Favor de llenar sólo la información del monto asignado por Convenio, los GOL, y la planeación por criterio de gasto, el resto se calcula solo.
H8: Monto asignado por Convenio Marco | P8: 14790902
B12: POR TIPO DE GASTO | E12: Monto para acciones sustantivas: | S12: Monto para Gastos de Operación Local:
E14: =P8-S14 -> 14347174.94 | L14: 0 | S14: 443727.06 | X14: 0
S16: El porcentaje esta dentro de lo permitido en RO
B21: POR COMPONENTE EN DIS | D21: Acciones planeadas para beneficiar a población con discapacidad | S21: =+H27+P27+Z27 -> 0 | T21: verificar porcentajes para que sume a 100%
D23: Acciones académicas para agentes educativos en temas de discapacidad (hasta 50%) | K23: Acciones de atención complementaria para estudiantes con discapacidad (hasta 50%) | T23: Equipamiento específico en beneficio de estudiantes con discapacidad (hasta 80%)
D25: Monto disponible | H25: hasta 50% | K25: Monto disponible | P25: hasta 50% | T25: Monto disponible | Z25: hasta 80%
D27: Monto comprometido | E27: =SUM(H51:J52) -> 2110531 | H27: =IFERROR((E27/#REF!),0) -> 0 | I27: % | K27: Monto comprometido | M27: =SUM(H56:J57) -> 2250000 | P27: =IFERROR((M27/#REF!),0) -> 0 | T27: Monto comprometido | V27: =SUM(H61:J70) -> 5532319.89 | Z27: =IFERROR((V27/#REF!),0) -> 0
D28: El porcentaje esta dentro de lo permitido en RO | K28: El porcentaje esta dentro de lo permitido en RO | T28: El porcentaje esta dentro de lo permitido en RO
B30: POR COMPONENTE EN AS
D31: Acciones planeadas para beneficiar a población con aptitudes sobresalientes | S31: =+H37+P37+Z37 -> 0 | T31: verificar porcentajes para que sume a 100%
D33: Acciones académicas para agentes educativos en temas de aptitudes sobresalientes (hasta 50%) | K33: Acciones de atención complementaria para estudiantes con aptitudes sobresalientes (hasta 50%) | T33: Equipamiento específico en beneficio de estudiantes con aptitudes sobresalientes (hasta 80%)
D35: Monto disponible | H35: hasta 50% | K35: Monto disponible | P35: hasta 50% | T35: Monto disponible | Z35: hasta 80%
D37: Monto comprometido | E37: =SUM(W51:Y52) -> 969756 | H37: =IFERROR((E37/#REF!),0) -> 0 | I37: % | K37: Monto comprometido | M37: =SUM(W56:Y57) -> 616500 | P37: =IFERROR((M37/#REF!),0) -> 0 | T37: Monto comprometido | V37: =SUM(W61:Y65) -> 3255213.16 | Z37: =IFERROR((V37/#REF!),0) -> 0
D38: El porcentaje esta dentro de lo permitido en RO | K38: El porcentaje esta dentro de lo permitido en RO | T38: El porcentaje esta dentro de lo permitido en RO
B42: BALANCE FINAL | U42: =+E14-O42-G42 -> 14347174.94
U43: Su distribución coincide con el subsidio total
A47: Planeación de acciones para beneficio de estudiantes con discapacidad | R47: Planeación de acciones académicas en temas de aptitudes sobresalientes
A49: Componente 1. Acciones académicas para agentes educativos en temas de discapacidad | R49: Componente 1. Acciones académicas para agentes educativos en temas de aptitudes sobresalientes
A50: Criterio | G50: Monto comprometido | L50: % respecto al monto autorizado | R50: Criterio | V50: Monto comprometido | AA50: % respecto al monto autorizado
A51: 1.1 Acciones de actualización y fortalecimiento académico de agentes educativos en temas de discapacidad. | G51: $ | H51: 2110531 | L51: =IFERROR((H51/$E$25),0) -> 0 | R51: 1.1 Acciones de actualización y fortalecimiento académico de agentes educativos en temas de aptitudes sobresalientes. | V51: $ | W51: 539756 | AA51: =IFERROR((W51/$E$35),0) -> 0
A52: 1.2 Encuentros, cursos, talleres y/o reuniones entre madres y padres de familia o tutores de estudiantes con discapacidad para la conformación y operación de sus redes de apoyo. | D52: 1.2 Acciones orientadas a sensibilizar, promover, difundir y, desarrollar en la comunidad escolar una cultura inclusiva | G52: $ | L52: =IFERROR((H52/$E$25),0) -> 0 | R52: 1.2 Encuentros, cursos, talleres y/o reuniones entre madres y padres de familia o tutores de estudiantes con aptitudes sobresalientes para la conformación y operación de sus redes de apoyo. | S52: 1.2 Acciones orientadas a sensibilizar, promover, difundir y, desarrollar en la comunidad escolar una cultura inclusiva | V52: $ | W52: 430000 | AA52: =IFERROR((W52/$E$35),0) -> 0
A54: Componente 2. Acciones de atención complementaria para estudiantes con discapacidad | R54: Componente 2. Acciones de atención complementaria para estudiantes con aptitudes sobresalientes
A55: Criterio | G55: Monto comprometido | L55: % respecto al monto autorizado | R55: Criterio | V55: Monto comprometido | AA55: % respecto al monto autorizado
A56: 2.1 Acciones orientadas a la intervención directa y la atención complementaria: académica, artística, deportiva, rehabilitadora, desarrollo de habilidades socioafectivas y/o que contribuyan en el diagnóstico de las y los estudiantes con discapacidad. | G56: $ | H56: 277800 | L56: =IFERROR((H56/$M$25),0) -> 0 | R56: 2.1 Acciones orientadas a la intervención directa y la atención complementaria: académica, artística, deportiva, rehabilitadora, desarrollo de habilidades socioafectivas y/o que contribuyan en el diagnóstico de las y los estudiantes con aptitudes sobresalientes. | V56: $ | W56: 106500 | AA56: =IFERROR((W56/$M$35),0) -> 0
A57: 2.2 Acciones orientadas a que las y los estudiantes con discapacidad pongan en práctica las habilidades académicas, artísticas, deportivas, para la vida y/o laborales y que promuevan la sensibilización, promoción, difusión y desarrollo en la comunidad escolar una cultura inclusiva, a través de campañas, ferias y eventos. | G57: $ | H57: 1972200 | L57: =IFERROR((H57/$M$25),0) -> 0 | R57: 2.2 Acciones orientadas a que las y los estudiantes con aptitudes sobresalientes, pongan en práctica las habilidades académicas, artísticas, deportivas, para la vida y/o laborales y que promuevan la sensibilización, promoción, difusión y desarrollo en la comunidad escolar una cultura inclusiva, a través de campañas, ferias y eventos. | V57: $ | W57: 510000 | AA57: =IFERROR((W57/$M$35),0) -> 0
A59: Componente 3. Equipamiento específico en beneficio de estudiantes con discapacidad | R59: Componente 3. Equipamiento específico en beneficio de estudiantes con aptitudes sobresalientes
A60: Criterio | G60: Monto comprometido | L60: % respecto al monto autorizado | R60: Criterio | V60: Monto comprometido | AA60: % respecto al monto autorizado
A61: 3.1 Dotar de material didáctico especializado para estudiantes con discapacidad. | G61: $ | H61: 633427.19 | L61: =IFERROR((H61/$V$25),0) -> 0 | R61: 3.10 Dotar de material didáctico especializado para estudiantes con aptitudes sobresalientes. | V61: $ | W61: 2351313.16 | AA61: =IFERROR((W61/$V$35),0) -> 0
A62: 3.2 Adquirir equipamiento y materiales para espacios de lectura y dotar de material bibliográfico para estudiantes con discapacidad. | G62: $ | L62: =IFERROR((H62/$V$25),0) -> 0 | R62: 3.11 Adquirir equipamiento y materiales para espacios de lectura y dotar de material bibliográfico para estudiantes con aptitudes sobresalientes. | V62: $ | AA62: =IFERROR((W62/$V$35),0) -> 0
A63: 3.3 Diseño, producción e impresión de material en formatos adaptados para favorecer la accesibilidad de estudiantes con discapacidad. | G63: $ | L63: =IFERROR((H63/$V$25),0) -> 0 | R63: 3.12 Dotar de insumos de papelería (hojas, tóner) para la reproducción de entrevistas, cuestionarios e inventarios para la detección de estudiantes con aptitudes sobresalientes, así como para la contratación de servicios de aplicación y procesamiento en línea, de instrumentos de evaluación. | V63: $ | W63: 375000 | AA63: 0
A64: 3.4 Dotar de equipo adaptado, tecnológico y/o multimedia para estudiantes con discapacidad. | G64: $ | L64: 0 | R64: 3.13 Dotar de equipo tecnológico y/o multimedia para estudiantes con aptitudes sobresalientes. | V64: $ | W64: 528900 | AA64: 0
A65: 3.5 Adquirir equipamiento, herramientas, utensilios, enseres domésticos y aparatos electrónicos que se requieren para impartir las especialidades que se ofertan en los CAM laboral y con Formación para el Trabajo. | G65: $ | H65: 136527.81 | L65: =IFERROR((H65/$V$25),0) -> 0 | R65: 3.14 Dotar de insumos y materiales consumibles no perecederos que se requieren para apoyar las actividades curriculares y extracurriculares de las y los estudiantes con aptitudes sobresalientes. | V65: $ | AA65: 0
A67: 3.6 Dotar de insumos y materiales consumibles no perecederos que se requieren en las especialidades que se ofertan en los CAM laboral y con Formación para el Trabajo para apoyar las actividades de las y los estudiantes con discapacidad. | G67: $ | H67: 70000 | L67: =IFERROR((H67/$V$25),0) -> 0
A68: 3.7 Adquirir ayudas técnicas para la accesibilidad y movilidad que mejoren las condiciones para el desplazamiento, orientación y comunicación de la o el estudiante con discapacidad. | G68: $ | H68: 30000 | L68: =IFERROR((H68/$V$25),0) -> 0
A69: 3.8 Dotar de mobiliario ordinario y/o adaptado para las y los estudiantes con discapacidad. | G69: $ | L69: =IFERROR((H69/$V$25),0) -> 0
A70: 3.9 Adquirir equipamiento y materiales para aulas multisensoriales. | G70: $ | H70: 4662364.89 | L70: =IFERROR((H70/$V$25),0) -> 0

Sheet SEE 2025
O1: Subsecretaría de Educación Básica Dirección General de Desarrollo Curricular Dirección de Fortalecimiento Curricular para la Formación Personal y Social en la Educación Básica Educación Especial
A6: Información cuantitativa respecto al número de servicios de educación especial que existen en su entidad y los que serán beneficiados en este año fiscal. En caso de no contar con algún tipo de servicio poner "0".
A8: Total de servicios de educación especial en la entidad
A9: Servicios de educación especial públicos que existen en la entidad | B9: USAER | C9: CAM Básico | D9: CAM Laboral | E9: CAPEP | F9: CRIE | G9: UOP | H9: UAEBH | I9: Otro | J9: Total
B10: 81 | C10: 0 | D10: 2 | E10: 0 | F10: 0 | G10: 0 | H10: 0 | I10: 1 | J10: =SUM(B10,C10,C12,D10,E10,F10,G10,H10,I10) -> 112
C11: Con FpT | I11: (especifique)
C12: 28 | I12: Centro de Iniciación a la Ciencia y la Tecnología (CICyT)
A13: Focalización para población con discapacidad | M13: Focalización para población con aptitudes sobresalientes
A14: Servicios de educación especial focalizados en el componente 1. Acciones académicas para agentes educativos en temas de discapacidad | M14: Servicios de educación especial focalizados en el componente 1. Acciones académicas para agentes educativos en temas de aptitudes sobresalientes
A15: Servicios focalizados para beneficiar a través del PFSEE en el año 2025 en el componente 1 | B15: USAER | C15: CAM Básico | D15: CAM Laboral | E15: CAPEP | F15: CRIE | G15: UOP | H15: UAEBH | I15: Otro | J15: Total | M15: Servicios focalizados para beneficiar a través del PFSEE en el año 2025 en el componente 1 | N15: USAER | O15: CAPEP | P15: CRIE | Q15: UOP | R15: UAEBH | S15: Otro | T15: Total
B16: 81 | C16: 0 | D16: 2 | E16: 0 | F16: 0 | G16: 0 | H16: 0 | I16: 0 | J16: =SUM(B16,C16,C18,D16,E16,F16,G16,H16,I16) -> 111 | N16: 76 | O16: 0 | P16: 0 | Q16: 0 | R16: 0 | S16: 1 | T16: =SUM(N16,O16,P16,Q16,R16,S16) -> 77
C17: Con FpT | I17: (especifique) | S17: (especifique)
C18: 28 | I18: (Nombre) | S18: Centro de Iniciación a la Ciencia y la Tecnología (CICyT)
A19: Servicios de educación especial focalizados en el componente 2. Acciones de atención complementaria para estudiantes con discapacidad | M19: Servicios de educación especial focalizados en el componente 2. Acciones de atención complementaria para estudiantes con aptitudes sobresalientes
A20: Servicios focalizados para beneficiar a través del PFSEE en el año 2025 en el componente 2 | B20: USAER | C20: CAM Básico | D20: CAM Laboral | E20: CAPEP | F20: CRIE | G20: UOP | H20: UAEBH | I20: Otro | J20: Total | M20: Servicios focalizados para beneficiar a través del PFSEE en el año 2025 en el componente 2 | N20: USAER | O20: CAPEP | P20: CRIE | Q20: UOP | R20: UAEBH | S20: Otro | T20: Total
B21: 64 | C21: 0 | D21: 2 | E21: 0 | F21: 0 | G21: 0 | H21: 0 | I21: 0 | J21: =SUM(B21,C21,C23,D21,E21,F21,G21,H21,I21) -> 94 | N21: 53 | O21: 0 | P21: 0 | Q21: 0 | R21: 0 | S21: 0 | T21: =SUM(N21,O21,P21,Q21,R21,S21) -> 53
C22: Con FpT | I22: (especifique) | S22: (especifique)
C23: 28 | I23: [Nombre] | S23: [Nombre]
A24: Servicios de educación especial focalizados en el componente 3. Equipamiento específico en beneficio de estudiantes con discapacidad | M24: Servicios de educación especial focalizados en el componente 3. Equipamiento específico en beneficio de estudiantes con aptitudes sobresalientes
A25: Servicios focalizados para beneficiar a través del PFSEE en el año 2025 en el componente 3 | B25: USAER | C25: CAM Básico | D25: CAM Laboral | E25: CAPEP | F25: CRIE | G25: UOP | H25: UAEBH | I25: Otro | J25: Total | M25: Servicios focalizados para beneficiar a través del PFSEE en el año 2025 en el componente 3 | N25: USAER | O25: CAPEP | P25: CRIE | Q25: UOP | R25: UAEBH | S25: Otro | T25: Total
B26: 81 | C26: 0 | D26: 2 | E26: 0 | F26: 0 | G26: 0 | H26: 0 | I26: 0 | J26: =SUM(B26,C26,C28,D26,E26,F26,G26,H26,I26) -> 111 | N26: 76 | O26: 0 | P26: 0 | Q26: 0 | R26: 0 | S26: 1 | T26: =SUM(N26,O26,P26,Q26,R26,S26) -> 77
C27: Con FpT | I27: (especifique) | S27: (especifique)
C28: 28 | I28: [Nombre] | S28: Centro de Iniciación a la Ciencia y la Tecnología (CICyT)
A30: *Con FpT: Con Formación para el Trabajo
A32: Para el llenado de esta hoja de Excel considerar los siguientes puntos:
A33: a) En la tabla superior se reporta la totalidad de servicios y en las siguientes tres, únicamente los que serán beneficiados por el PFSEE en este 2025, por criterio general de gasto.
A34: b) En "CAM Básico" se reportan los centros que ofrecen educación básica, que no cuentan con formación para el trabajo.
A35: c) En "Con FpT" se reportan los CAM Básicos que además de la educación básica, cuentan con talleres de formación para el trabajo.
A36: d) En "CAM Laboral" se reportan únicamente los centros dedicados a la formación laboral o para el trabajo.
A37: e) Cuidar de no repetir los datos, pues entre lo reportado en CAM Básico, Con FpT y CAM Laboral, debe sumar la totalidad de los CAM en su entidad.
A38: f) Si en su entidad cuenta con otro tipo de servicio no considerado en la tabla, reportar la cantidad en "Otro" y anotar su nombre en el apartado "(especifique)".

Sheet Población total 2025
AE1: Subsecretaría de Educación Básica Dirección General de Desarrollo Curricular Dirección de Fortalecimiento Curricular para la Formación Personal y Social en la Educación Básica Educación Especial
A6: Información cuantitativa respecto a la población que atienden los servicios de educación especial, en su entidad, por sexo y tipo de condición:
A7: Población total atendida por los servicios de educación especial
A8: Condición | B8: Población atendida por condición y por SEE | Q8: Población total atendida | T8: De la población total reportada por condición, especifique si se trata de alguna de las siguientes poblaciones.
B9: USAER | E9: CAM básico | H9: CAM básico con FpT | K9: CAM laboral | N9: Otro | Q9: M | R9: H | S9: TOTAL | T9: Población indígena | W9: Población afrodescendiente | Z9: Población migrante | AD9: Estudiantes atendidos
B10: M | C10: H | D10: TOTAL | E10: M | F10: H | G10: TOTAL | H10: M | I10: H | J10: TOTAL | K10: M | L10: H | M10: TOTAL | N10: M | O10: H | P10: TOTAL | T10: M | U10: H | V10: TOTAL | W10: M | X10: H | Y10: TOTAL | Z10: M | AA10: H | AB10: TOTAL | AD10: CAPEP | AH10: UAEBH
A11: Ceguera | B11: 6 | C11: 12 | D11: =SUM(B11:C11) -> 18 | E11: 0 | F11: 0 | G11: =SUM(E11:F11) -> 0 | H11: 9 | I11: 8 | J11: =SUM(H11:I11) -> 17 | K11: 0 | L11: 1 | M11: =SUM(K11:L11) -> 1 | N11: 0 | O11: 0 | P11: =SUM(N11:O11) -> 0 | Q11: =SUM(B11,E11,H11,K11,N11) -> 15 | R11: =SUM(C11,F11,I11,L11,O11) -> 21 | S11: =SUM(Q11,R11) -> 36 | T11: 0 | U11: 0 | V11: =SUM(T11,U11) -> 0 | W11: 0 | X11: 0 | Y11: =SUM(W11,X11) -> 0 | Z11: 0 | AA11: 0 | AB11: =SUM(Z11,AA11) -> 0 | AD11: M | AE11: H | AF11: TOTAL | AH11: M | AI11: H | AJ11: TOTAL
A12: Baja Visión | B12: 29 | C12: 59 | D12: =SUM(B12:C12) -> 88 | E12: 0 | F12: 0 | G12: =SUM(E12:F12) -> 0 | H12: 2 | I12: 3 | J12: =SUM(H12:I12) -> 5 | K12: 0 | L12: 0 | M12: =SUM(K12:L12) -> 0 | N12: 0 | O12: 0 | P12: =SUM(N12:O12) -> 0 | Q12: =SUM(B12,E12,H12,K12,N12) -> 31 | R12: 62 | S12: =SUM(Q12,R12) -> 93 | T12: 0 | U12: 0 | V12: =SUM(T12,U12) -> 0 | W12: 0 | X12: 0 | Y12: =SUM(W12,X12) -> 0 | Z12: 0 | AA12: 0 | AB12: =SUM(Z12,AA12) -> 0 | AD12: 0 | AE12: 0 | AF12: =SUM(AD12,AE12) -> 0 | AH12: 0 | AI12: 0 | AJ12: =SUM(AH12,AI12) -> 0
A13: Sordera | B13: 9 | C13: 11 | D13: 20 | E13: 0 | F13: 0 | G13: 0 | H13: 6 | I13: 4 | J13: 10 | K13: 2 | L13: 0 | M13: 2 | N13: 0 | O13: 0 | P13: 0 | Q13: 17 | R13: 15 | S13: 32 | T13: 0 | U13: 0 | V13: 0 | W13: 0 | X13: 0 | Y13: 0 | Z13: 0 | AA13: 0 | AB13: 0 | AD13: Personal docente y/o directivos atendidos
A14: Hipoacusia | B14: 53 | C14: 55 | D14: 108 | E14: 0 | F14: 0 | G14: 0 | H14: 6 | I14: 6 | J14: 12 | K14: 0 | L14: 0 | M14: 0 | N14: 0 | O14: 0 | P14: 0 | Q14: 59 | R14: 61 | S14: 120 | T14: 0 | U14: 0 | V14: 0 | W14: 0 | X14: 0 | Y14: 0 | Z14: 0 | AA14: 0 | AB14: 0 | AD14: CRIE | AH14: UOP
A15: Sordoceguera | B15: 0 | C15: 0 | D15: 0 | E15: 0 | F15: 0 | G15: 0 | H15: 0 | I15: 0 | J15: 0 | K15: 0 | L15: 0 | M15: 0 | N15: 0 | O15: 0 | P15: 0 | Q15: 0 | R15: 0 | S15: 0 | T15: 0 | U15: 0 | V15: 0 | W15: 0 | X15: 0 | Y15: 0 | Z15: 0 | AA15: 0 | AB15: 0 | AD15: M | AE15: H | AF15: TOTAL | AH15: M | AI15: H | AJ15: TOTAL
A16: Motriz | B16: 67 | C16: 100 | D16: 167 | E16: 0 | F16: 0 | G16: 0 | H16: 33 | I16: 58 | J16: 91 | K16: 0 | L16: 4 | M16: 4 | N16: 0 | O16: 0 | P16: 0 | Q16: 100 | R16: 162 | S16: 262 | T16: 0 | U16: 0 | V16: 0 | W16: 0 | X16: 0 | Y16: 0 | Z16: 0 | AA16: 0 | AB16: 0 | AD16: 0 | AE16: 0 | AF16: =SUM(AD16,AE16) -> 0 | AH16: 0 | AI16: 0 | AJ16: =SUM(AH16,AI16) -> 0
A17: Intelectual | B17: 292 | C17: 400 | D17: 692 | E17: 0 | F17: 0 | G17: 0 | H17: 367 | I17: 483 | J17: 850 | K17: 42 | L17: 49 | M17: 91 | N17: 0 | O17: 0 | P17: 0 | Q17: 701 | R17: 932 | S17: 1633 | T17: 0 | U17: 0 | V17: 0 | W17: 0 | X17: 0 | Y17: 0 | Z17: 0 | AA17: 0 | AB17: 0 | AD17: Familias y/o público en general atendidos
A18: Psicosocial | B18: 5 | C18: 8 | D18: 13 | E18: 0 | F18: 0 | G18: 0 | H18: 0 | I18: 1 | J18: 1 | K18: 0 | L18: 1 | M18: 1 | N18: 0 | O18: 0 | P18: 0 | Q18: 5 | R18: 10 | S18: 15 | T18: 0 | U18: 0 | V18: 0 | W18: 0 | X18: 0 | Y18: 0 | Z18: 0 | AA18: 0 | AB18: 0 | AD18: CRIE | AH18: UOP
A19: Espectro autista | B19: 98 | C19: 524 | D19: 622 | E19: 0 | F19: 0 | G19: 0 | H19: 55 | I19: 177 | J19: 232 | K19: 1 | L19: 8 | M19: 9 | N19: 0 | O19: 0 | P19: 0 | Q19: 154 | R19: 709 | S19: 863 | T19: 0 | U19: 0 | V19: 0 | W19: 0 | X19: 0 | Y19: 0 | Z19: 0 | AA19: 0 | AB19: 0 | AD19: M | AE19: H | AF19: TOTAL | AH19: M | AI19: H | AJ19: TOTAL
A20: Múltiple | B20: 23 | C20: 21 | D20: 44 | E20: 0 | F20: 0 | G20: 0 | H20: 70 | I20: 106 | J20: 176 | K20: 4 | L20: 6 | M20: 10 | N20: 0 | O20: 0 | P20: 0 | Q20: 97 | R20: 133 | S20: 230 | T20: 0 | U20: 0 | V20: 0 | W20: 0 | X20: 0 | Y20: 0 | Z20: 0 | AA20: 0 | AB20: 0 | AD20: 0 | AE20: 0 | AF20: =SUM(AD20,AE20) -> 0 | AH20: 0 | AI20: 0 | AJ20: =SUM(AH20,AI20) -> 0
A21: TDA TDA-H | B21: 177 | C21: 829 | D21: 1006 | E21: 0 | F21: 0 | G21: 0 | H21: 2 | I21: 12 | J21: 14 | K21: 0 | L21: 6 | M21: 6 | N21: 0 | O21: 0 | P21: 0 | Q21: 179 | R21: 847 | S21: 1026 | T21: 0 | U21: 0 | V21: 0 | W21: 0 | X21: 0 | Y21: 0 | Z21: 0 | AA21: 0 | AB21: 0
A22: AS Intelectual | B22: 185 | C22: 225 | D22: 410 | E22: =SUM(E11:E21) -> 0 | F22: =SUM(F11:F21) -> 0 | G22: =SUM(G11:G21) -> 0 | H22: 550 | I22: 858 | J22: 1408 | K22: 49 | L22: 75 | M22: =SUM(K22,L22) -> 124 | N22: 60 | O22: 105 | P22: 165 | Q22: =SUM(B22,N22) -> 245 | R22: =SUM(C22,O22) -> 330 | S22: 575 | T22: 0 | U22: 0 | V22: 0 | W22: 0 | X22: 0 | Y22: 0 | Z22: 0 | AA22: 0 | AB22: 0 | AF22: Total de estudiantes atendidos
A23: AS Creativa | B23: 227 | C23: 221 | D23: 448 | N23: 0 | O23: 0 | P23: 0 | Q23: =SUM(B23,N23) -> 227 | R23: 221 | S23: 448 | T23: 0 | U23: 0 | V23: 0 | W23: 0 | X23: 0 | Y23: 0 | Z23: 0 | AA23: 0 | AB23: 0
A24: AS Artística | B24: 76 | C24: 68 | D24: 144 | N24: 0 | O24: 0 | P24: 0 | Q24: 76 | R24: 68 | S24: 144 | T24: 0 | U24: 0 | V24: 0 | W24: 0 | X24: 0 | Y24: 0 | Z24: 0 | AA24: 0 | AB24: 0 | AF24: M | AG24: H | AH24: Total
A25: AS Psicomotriz | B25: 18 | C25: 41 | D25: 59 | N25: 0 | O25: 0 | P25: 0 | Q25: 18 | R25: 41 | S25: 59 | T25: 0 | U25: 0 | V25: 0 | W25: 0 | X25: 0 | Y25: 0 | Z25: 0 | AA25: 0 | AB25: 0 | AF25: =SUM(Q27,AD12,AH12) -> 1961 | AG25: =SUM(R27,AE12,AI12) -> 3642 | AH25: =SUM(AF25,AG25) -> 5603
A26: AS Socioafectiva | B26: 37 | C26: 30 | D26: 67 | N26: 0 | O26: 0 | P26: 0 | Q26: 37 | R26: 30 | S26: 67 | T26: 0 | U26: 0 | V26: 0 | W26: 0 | X26: 0 | Y26: 0 | Z26: 0 | AA26: 0 | AB26: 0
A27: Totales | B27: =SUM(B11:B26) -> 1302 | C27: =SUM(C11:C26) -> 2604 | D27: =SUM(B27,C27) -> 3906 | N27: =SUM(N11:N26) -> 60 | O27: =SUM(O11:O26) -> 105 | P27: 165 | Q27: =SUM(B27,K22,H22,E22,N27) -> 1961 | R27: =SUM(C27,F22,I22,L22,O27) -> 3642 | S27: =SUM(Q27,R27) -> 5603 | T27: =SUM(T11:T26) -> 0 | U27: =SUM(U11:U26) -> 0 | V27: =SUM(T27,U27) -> 0 | W27: =SUM(W11:W26) -> 0 | X27: =SUM(X11:X26) -> 0 | Y27: =SUM(W27,X27) -> 0 | Z27: =SUM(Z11:Z26) -> 0 | AA27: =SUM(AA11:AA26) -> 0 | AB27: =SUM(Z27,AA27) -> 0
A30: AS: Aptitudes sobresalientes | G30: TDA: Trastorno por Déficit de Atención
G31: TDA-H: Trastorno por Déficit de Atención e Hiperactividad
A34: Personal total en los servicios de educación especial | X34: Personal docente: maestra(o) de grupo, docente de taller.
N35: Personal docente | Q35: Personal paradocente | T35: Personal administrativo | X35: Personal paradocente: equipo de apoyo, niñera, médica (o), enfermera (o).
N36: M | O36: H | P36: TOTAL | Q36: M | R36: H | S36: TOTAL | T36: M | U36: H | V36: TOTAL | X36: Personal administrativo: secretaria (o), asistente, chofer, limpieza.
B37: M | C37: H | D37: TOTAL | K37: USAER | N37: 598 | O37: 108 | P37: =SUM(N37:O37) -> 706 | Q37: 245 | R37: 30 | S37: =SUM(Q37:R37) -> 275 | T37: 79 | U37: 25 | V37: =SUM(T37:U37) -> 104
A38: Supervisores | B38: 12 | C38: 3 | D38: =SUM(B38:C38) -> 15 | K38: CAM básico | N38: 0 | O38: 0 | P38: =SUM(N38:O38) -> 0 | Q38: 0 | R38: 0 | S38: =SUM(Q38:R38) -> 0 | T38: 0 | U38: 0 | V38: =SUM(T38:U38) -> 0
A39: ATP | B39: 10 | C39: 3 | D39: =SUM(B39:C39) -> 13 | K39: CAM básico con FpT | N39: 197 | O39: 24 | P39: 221 | Q39: 136 | R39: 11 | S39: 147 | T39: 39 | U39: 40 | V39: 79
A40: Directivas (os) | B40: 84 | C40: 28 | D40: =SUM(B40:C40) -> 112 | K40: CAM laboral | N40: 14 | O40: 7 | P40: 21 | Q40: 5 | R40: 1 | S40: 6 | T40: 5 | U40: 5 | V40: 10
K41: CAPEP | N41: 0 | O41: 0 | P41: 0 | Q41: 0 | R41: 0 | S41: 0 | T41: 0 | U41: 0 | V41: 0
K42: CRIE | N42: 0 | O42: 0 | P42: 0 | Q42: 0 | R42: 0 | S42: 0 | T42: 0 | U42: 0 | V42: 0
K43: UOP | N43: 0 | O43: 0 | P43: 0 | Q43: 0 | R43: 0 | S43: 0 | T43: 0 | U43: 0 | V43: 0
K44: UAEBH | N44: 0 | O44: 0 | P44: 0 | Q44: 0 | R44: 0 | S44: 0 | T44: 0 | U44: 0 | V44: 0
J45: Otro | K45: Centro de Iniciación a la Ciencia y la Tecnología | N45: 1 | O45: 0 | P45: 1 | Q45: 0 | R45: 0 | S45: 0 | T45: 0 | U45: 1 | V45: 1

Sheet Beneficiarios DIS 2025
AE1: Subsecretaría de Educación Básica Dirección General de Desarrollo Curricular Dirección de Fortalecimiento Curricular para la Formación Personal y Social en la Educación Básica Educación Especial
A6: Información cuantitativa respecto a la población con discapacidad que atienden los servicios de educación especial focalizados, en su entidad, por sexo y tipo de condición:
A8: Población con discapacidad atendida por los servicios de educación especial focalizados en el componente 1 para beneficiar en 2025
A9: Condición | B9: Beneficiarias/os por condición y por SEE | Q9: Población total beneficiaria | T9: De la población total reportada por condición, especifique si se trata de alguna de las siguientes poblaciones.
B10: USAER | E10: CAM básico | H10: CAM básico con FpT | K10: CAM laboral | N10: Otro | Q10: M | R10: H | S10: TOTAL | T10: Población indígena | W10: Población afrodescendiente | Z10: Población migrante | AD10: Estudiantes focalizados discapacidad
B11: M | C11: H | D11: TOTAL | E11: M | F11: H | G11: TOTAL | H11: M | I11: H | J11: TOTAL | K11: M | L11: H | M11: TOTAL | N11: M | O11: H | P11: TOTAL | T11: M | U11: H | V11: TOTAL | W11: M | X11: H | Y11: TOTAL | Z11: M | AA11: H | AB11: TOTAL | AD11: CAPEP | AH11: UAEBH
A12: Ceguera | B12: 6 | C12: 12 | D12: =SUM(B12:C12) -> 18 | E12: 0 | F12: 0 | G12: =SUM(E12:F12) -> 0 | H12: 9 | I12: 8 | J12: =SUM(H12:I12) -> 17 | K12: 0 | L12: 1 | M12: =SUM(K12:L12) -> 1 | N12: 0 | O12: 0 | P12: =SUM(N12:O12) -> 0 | Q12: =SUM(B12,E12,H12,K12,N12) -> 15 | R12: =SUM(C12,F12,I12,L12,O12) -> 21 | S12: =SUM(Q12,R12) -> 36 | T12: 0 | U12: 0 | V12: =SUM(T12,U12) -> 0 | W12: 0 | X12: 0 | Y12: =SUM(W12,X12) -> 0 | Z12: 0 | AA12: 0 | AB12: =SUM(Z12,AA12) -> 0 | AD12: M | AE12: H | AF12: TOTAL | AH12: M | AI12: H | AJ12: TOTAL
A13: Baja Visión | B13: 29 | C13: 59 | D13: =SUM(B13:C13) -> 88 | E13: 0 | F13: 0 | G13: =SUM(E13:F13) -> 0 | H13: 2 | I13: 3 | J13: =SUM(H13:I13) -> 5 | K13: 0 | L13: 0 | M13: =SUM(K13:L13) -> 0 | N13: 0 | O13: 0 | P13: =SUM(N13:O13) -> 0 | Q13: =SUM(B13,E13,H13,K13,N13) -> 31 | R13: 62 | S13: 93 | T13: 0 | U13: 0 | V13: =SUM(T13,U13) -> 0 | W13: 0 | X13: 0 | Y13: =SUM(W13,X13) -> 0 | Z13: 0 | AA13: 0 | AB13: =SUM(Z13,AA13) -> 0 | AD13: 0 | AE13: 0 | AF13: =SUM(AD13,AE13) -> 0 | AH13: 0 | AI13: 0 | AJ13: =SUM(AH13,AI13) -> 0
A14: Sordera | B14: 9 | C14: 11 | D14: 20 | E14: 0 | F14: 0 | G14: 0 | H14: 6 | I14: 4 | J14: 10 | K14: 2 | L14: 0 | M14: 2 | N14: 0 | O14: 0 | P14: 0 | Q14: 17 | R14: 15 | S14: 32 | T14: 0 | U14: 0 | V14: 0 | W14: 0 | X14: 0 | Y14: 0 | Z14: 0 | AA14: 0 | AB14: 0 | AD14: Personal docente y/o directivos focalizados
A15: Hipoacusia | B15: 53 | C15: 55 | D15: 108 | E15: 0 | F15: 0 | G15: 0 | H15: 6 | I15: 6 | J15: 12 | K15: 0 | L15: 0 | M15: 0 | N15: 0 | O15: 0 | P15: 0 | Q15: 59 | R15: 61 | S15: 120 | T15: 0 | U15: 0 | V15: 0 | W15: 0 | X15: 0 | Y15: 0 | Z15: 0 | AA15: 0 | AB15: 0 | AD15: CRIE | AH15: UOP
A16: Sordoceguera | B16: 0 | C16: 0 | D16: 0 | E16: 0 | F16: 0 | G16: 0 | H16: 0 | I16: 0 | J16: 0 | K16: 0 | L16: 0 | M16: 0 | N16: 0 | O16: 0 | P16: 0 | Q16: 0 | R16: 0 | S16: 0 | T16: 0 | U16: 0 | V16: 0 | W16: 0 | X16: 0 | Y16: 0 | Z16: 0 | AA16: 0 | AB16: 0 | AD16: M | AE16: H | AF16: TOTAL | AH16: M | AI16: H | AJ16: TOTAL
A17: Motriz | B17: 67 | C17: 100 | D17: 167 | E17: 0 | F17: 0 | G17: 0 | H17: 33 | I17: 58 | J17: 91 | K17: 0 | L17: 4 | M17: 4 | N17: 0 | O17: 0 | P17: 0 | Q17: 100 | R17: 162 | S17: 262 | T17: 0 | U17: 0 | V17: 0 | W17: 0 | X17: 0 | Y17: 0 | Z17: 0 | AA17: 0 | AB17: 0 | AD17: 0 | AE17: 0 | AF17: =SUM(AD17,AE17) -> 0 | AH17: 0 | AI17: 0 | AJ17: =SUM(AH17,AI17) -> 0
A18: Intelectual | B18: 292 | C18: 400 | D18: 692 | E18: 0 | F18: 0 | G18: 0 | H18: 367 | I18: 483 | J18: 850 | K18: 42 | L18: 49 | M18: 91 | N18: 0 | O18: 0 | P18: 0 | Q18: 701 | R18: 932 | S18: 1633 | T18: 0 | U18: 0 | V18: 0 | W18: 0 | X18: 0 | Y18: 0 | Z18: 0 | AA18: 0 | AB18: 0 | AD18: Familias y/o público en general focalizados
A19: Psicosocial | B19: 5 | C19: 8 | D19: 13 | E19: 0 | F19: 0 | G19: 0 | H19: 0 | I19: 1 | J19: 1 | K19: 0 | L19: 1 | M19: 1 | N19: 0 | O19: 0 | P19: 0 | Q19: 5 | R19: 10 | S19: 15 | T19: 0 | U19: 0 | V19: 0 | W19: 0 | X19: 0 | Y19: 0 | Z19: 0 | AA19: 0 | AB19: 0 | AD19: CRIE | AH19: UOP
A20: Espectro autista | B20: 98 | C20: 524 | D20: 622 | E20: 0 | F20: 0 | G20: 0 | H20: 55 | I20: 177 | J20: 232 | K20: 1 | L20: 8 | M20: 9 | N20: 0 | O20: 0 | P20: 0 | Q20: 154 | R20: 709 | S20: 863 | T20: 0 | U20: 0 | V20: 0 | W20: 0 | X20: 0 | Y20: 0 | Z20: 0 | AA20: 0 | AB20: 0 | AD20: M | AE20: H | AF20: TOTAL | AH20: M | AI20: H | AJ20: TOTAL
A21: Múltiple | B21: 23 | C21: 21 | D21: 44 | E21: 0 | F21: 0 | G21: 0 | H21: 70 | I21: 106 | J21: 176 | K21: 4 | L21: 6 | M21: 10 | N21: 0 | O21: 0 | P21: 0 | Q21: 97 | R21: 133 | S21: 230 | T21: 0 | U21: 0 | V21: 0 | W21: 0 | X21: 0 | Y21: 0 | Z21: 0 | AA21: 0 | AB21: 0 | AD21: 0 | AE21: 0 | AF21: =SUM(AD21,AE21) -> 0 | AH21: 0 | AI21: 0 | AJ21: =SUM(AH21,AI21) -> 0
A22: TDA TDA-H | B22: 177 | C22: 829 | D22: 1006 | E22: 0 | F22: 0 | G22: 0 | H22: 2 | I22: 12 | J22: 14 | K22: 0 | L22: 6 | M22: 6 | N22: 0 | O22: 0 | P22: 0 | Q22: 179 | R22: 847 | S22: 1026 | T22: 0 | U22: 0 | V22: 0 | W22: 0 | X22: 0 | Y22: 0 | Z22: 0 | AA22: 0 | AB22: 0
A23: Totales | B23: =SUM(B12:B22) -> 759 | C23: =SUM(C12:C22) -> 2019 | D23: =SUM(B23:C23) -> 2778 | E23: =SUM(E12:E22) -> 0 | F23: =SUM(F12:F22) -> 0 | G23: =SUM(E23,F23) -> 0 | H23: =SUM(H12:H22) -> 550 | I23: =SUM(I12:I22) -> 858 | J23: =SUM(H23,I23) -> 1408 | K23: =SUM(K12:K22) -> 49 | L23: =SUM(L12:L22) -> 75 | M23: =SUM(K23:L23) -> 124 | N23: =SUM(N12:N22) -> 0 | O23: =SUM(O12:O22) -> 0 | P23: =SUM(N23:O23) -> 0 | Q23: =SUM(B23,E23,H23,K23,N23) -> 1358 | R23: =SUM(C23,F23,I23,L23,O23) -> 2952 | S23: 4310 | T23: =SUM(T12:T22) -> 0 | U23: =SUM(U12:U22) -> 0 | V23: 0 | W23: =SUM(W12:W22) -> 0 | X23: =SUM(X12:X22) -> 0 | Y23: 0 | Z23: =SUM(Z12:Z22) -> 0 | AA23: =SUM(AA12:AA22) -> 0 | AB23: 0 | AF23: Total de estudiantes con discapacidad focalizados
AF25: M | AG25: H | AH25: Total
A26: Verificar que la población reportada en CAPEP, CRIE, UOP y UAEBH con discapacidad, al sumarla con la reportada en AS sea correspondiente con lo registrado en la pestaña de Población total. | AF26: =SUM(Q23,AD13,AH13) -> 1358 | AG26: =SUM(R23,AE13,AI13) -> 2952 | AH26: =SUM(AF26:AG26) -> 4310
A30: Población con discapacidad atendida por los servicios de educación especial focalizados en el componente 2 para beneficiar en 2025
A31: Condición | B31: Beneficiarias/os por condición y por SEE | Q31: Población total beneficiaria | T31: De la población total reportada por condición, especifique si se trata de alguna de las siguientes poblaciones.
B32: USAER | E32: CAM básico | H32: CAM básico con FpT | K32: CAM laboral | N32: Otro | Q32: M | R32: H | S32: TOTAL | T32: Población indígena | W32: Población afrodescendiente | Z32: Población migrante | AD32: Estudiantes focalizados discapacidad
B33: M | C33: H | D33: TOTAL | E33: M | F33: H | G33: TOTAL | H33: M | I33: H | J33: TOTAL | K33: M | L33: H | M33: TOTAL | N33: M | O33: H | P33: TOTAL | T33: M | U33: H | V33: TOTAL | W33: M | X33: H | Y33: TOTAL | Z33: M | AA33: H | AB33: TOTAL | AD33: CAPEP | AH33: UAEBH
A34: Ceguera | B34: 1 | C34: 5 | D34: =SUM(B34:C34) -> 6 | E34: 0 | F34: 0 | G34: =SUM(E34:F34) -> 0 | H34: 9 | I34: 8 | J34: =SUM(H34:I34) -> 17 | K34: 0 | L34: 1 | M34: =SUM(K34:L34) -> 1 | N34: 0 | O34: 0 | P34: =SUM(N34:O34) -> 0 | Q34: =SUM(B34,E34,H34,K34,N34) -> 10 | R34: =SUM(C34,F34,I34,L34,O34) -> 14 | S34: =SUM(Q34,R34) -> 24 | T34: 0 | U34: 0 | V34: =SUM(T34,U34) -> 0 | W34: 0 | X34: 0 | Y34: =SUM(W34,X34) -> 0 | Z34: 0 | AA34: 0 | AB34: =SUM(Z34,AA34) -> 0 | AD34: M | AE34: H | AF34: TOTAL | AH34: M | AI34: H | AJ34: TOTAL
A35: Baja Visión | B35: 7 | C35: 7 | D35: =SUM(B35:C35) -> 14 | E35: 0 | F35: 0 | G35: =SUM(E35:F35) -> 0 | H35: 2 | I35: 3 | J35: =SUM(H35:I35) -> 5 | K35: 0 | L35: 0 | M35: =SUM(K35:L35) -> 0 | N35: 0 | O35: 0 | P35: =SUM(N35:O35) -> 0 | Q35: =SUM(B35,E35,H35,K35,N35) -> 9 | R35: 10 | S35: 19 | T35: 0 | U35: 0 | V35: =SUM(T35,U35) -> 0 | W35: 0 | X35: 0 | Y35: =SUM(W35,X35) -> 0 | Z35: 0 | AA35: 0 | AB35: =SUM(Z35,AA35) -> 0 | AD35: 0 | AE35: 0 | AF35: =SUM(AD35,AE35) -> 0 | AH35: 0 | AI35: 0 | AJ35: =SUM(AH35,AI35) -> 0
A36: Sordera | B36: 4 | C36: 4 | D36: 8 | E36: 0 | F36: 0 | G36: 0 | H36: 6 | I36: 4 | J36: 10 | K36: 0 | L36: 0 | M36: 0 | N36: 0 | O36: 0 | P36: 0 | Q36: 10 | R36: 8 | S36: 18 | T36: 0 | U36: 0 | V36: 0 | W36: 0 | X36: 0 | Y36: 0 | Z36: 0 | AA36: 0 | AB36: 0 | AD36: Personal docente y/o directivos focalizados
A37: Hipoacusia | B37: 15 | C37: 14 | D37: 29 | E37: 0 | F37: 0 | G37: 0 | H37: 6 | I37: 6 | J37: 12 | K37: 0 | L37: 0 | M37: 0 | N37: 0 | O37: 0 | P37: 0 | Q37: 21 | R37: 20 | S37: 41 | T37: 0 | U37: 0 | V37: 0 | W37: 0 | X37: 0 | Y37: 0 | Z37: 0 | AA37: 0 | AB37: 0 | AD37: CRIE | AH37: UOP
A38: Sordoceguera | B38: 0 | C38: 0 | D38: 0 | E38: 0 | F38: 0 | G38: 0 | H38: 0 | I38: 0 | J38: 0 | K38: 0 | L38: 0 | M38: 0 | N38: 0 | O38: 0 | P38: 0 | Q38: 0 | R38: 0 | S38: 0 | T38: 0 | U38: 0 | V38: 0 | W38: 0 | X38: 0 | Y38: 0 | Z38: 0 | AA38: 0 | AB38: 0 | AD38: M | AE38: H | AF38: TOTAL | AH38: M | AI38: H | AJ38: TOTAL
A39: Motriz | B39: 19 | C39: 31 | D39: 50 | E39: 0 | F39: 0 | G39: 0 | H39: 33 | I39: 58 | J39: 91 | K39: 0 | L39: 1 | M39: 1 | N39: 0 | O39: 0 | P39: 0 | Q39: 52 | R39: 90 | S39: 142 | T39: 0 | U39: 0 | V39: 0 | W39: 0 | X39: 0 | Y39: 0 | Z39: 0 | AA39: 0 | AB39: 0 | AD39: 0 | AE39: 0 | AF39: =SUM(AD39,AE39) -> 0 | AH39: 0 | AI39: 0 | AJ39: =SUM(AH39,AI39) -> 0
A40: Intelectual | B40: 92 | C40: 140 | D40: 232 | E40: 0 | F40: 0 | G40: 0 | H40: 367 | I40: 483 | J40: 850 | K40: 28 | L40: 24 | M40: 52 | N40: 0 | O40: 0 | P40: 0 | Q40: 487 | R40: 647 | S40: 1134 | T40: 0 | U40: 0 | V40: 0 | W40: 0 | X40: 0 | Y40: 0 | Z40: 0 | AA40: 0 | AB40: 0 | AD40: Familias y/o público en general focalizados
A41: Psicosocial | B41: 2 | C41: 5 | D41: 7 | E41: 0 | F41: 0 | G41: 0 | H41: 0 | I41: 1 | J41: 1 | K41: 0 | L41: 1 | M41: 1 | N41: 0 | O41: 0 | P41: 0 | Q41: 2 | R41: 7 | S41: 9 | T41: 0 | U41: 0 | V41: 0 | W41: 0 | X41: 0 | Y41: 0 | Z41: 0 | AA41: 0 | AB41: 0 | AD41: CRIE | AH41: UOP
A42: Espectro autista | B42: 18 | C42: 138 | D42: 156 | E42: 0 | F42: 0 | G42: 0 | H42: 55 | I42: 177 | J42: 232 | K42: 0 | L42: 6 | M42: 6 | N42: 0 | O42: 0 | P42: 0 | Q42: 73 | R42: 321 | S42: 394 | T42: 0 | U42: 0 | V42: 0 | W42: 0 | X42: 0 | Y42: 0 | Z42: 0 | AA42: 0 | AB42: 0 | AD42: M | AE42: H | AF42: TOTAL | AH42: M | AI42: H | AJ42: TOTAL
A43: Múltiple | B43: 8 | C43: 4 | D43: 12 | E43: 0 | F43: 0 | G43: 0 | H43: 70 | I43: 106 | J43: 176 | K43: 0 | L43: 0 | M43: 0 | N43: 0 | O43: 0 | P43: 0 | Q43: 78 | R43: 110 | S43: 188 | T43: 0 | U43: 0 | V43: 0 | W43: 0 | X43: 0 | Y43: 0 | Z43: 0 | AA43: 0 | AB43: 0 | AD43: 0 | AE43: 0 | AF43: =SUM(AD43,AE43) -> 0 | AH43: 0 | AI43: 0 | AJ43: =SUM(AH43,AI43) -> 0
A44: TDA TDA-H | B44: 41 | C44: 206 | D44: 247 | E44: 0 | F44: 0 | G44: 0 | H44: 2 | I44: 12 | J44: 14 | K44: 0 | L44: 6 | M44: 6 | N44: 0 | O44: 0 | P44: 0 | Q44: 43 | R44: 224 | S44: 267 | T44: 0 | U44: 0 | V44: 0 | W44: 0 | X44: 0 | Y44: 0 | Z44: 0 | AA44: 0 | AB44: 0
A45: Totales | B45: =SUM(B34:B44) -> 207 | C45: =SUM(C34:C44) -> 554 | D45: =SUM(B45:C45) -> 761 | E45: =SUM(E34:E44) -> 0 | F45: =SUM(F34:F44) -> 0 | G45: =SUM(E45,F45) -> 0 | H45: =SUM(H34:H44) -> 550 | I45: =SUM(I34:I44) -> 858 | J45: =SUM(H45,I45) -> 1408 | K45: =SUM(K34:K44) -> 28 | L45: =SUM(L34:L44) -> 39 | M45: =SUM(K45:L45) -> 67 | N45: =SUM(N34:N44) -> 0 | O45: =SUM(O34:O44) -> 0 | P45: =SUM(N45:O45) -> 0 | Q45: =SUM(B45,E45,H45,K45,N45) -> 785 | R45: =SUM(C45,F45,I45,L45,O45) -> 1451 | S45: 2236 | T45: =SUM(T34:T44) -> 0 | U45: =SUM(U34:U44) -> 0 | V45: 0 | W45: =SUM(W34:W44) -> 0 | X45: =SUM(X34:X44) -> 0 | Y45: 0 | Z45: =SUM(Z34:Z44) -> 0 | AA45: =SUM(AA34:AA44) -> 0 | AB45: 0 | AF45: Total de estudiantes con discapacidad focalizados
AF47: M | AG47: H | AH47: Total
A48: Verificar que la población reportada en CAPEP, CRIE, UOP y UAEBH con discapacidad, al sumarla con la reportada en AS sea correspondiente con lo registrado en la pestaña de Población total. | AF48: =SUM(Q45,AD35,AH35) -> 785 | AG48: =SUM(R45,AE35,AI35) -> 1451 | AH48: =SUM(AF48:AG48) -> 2236
A53: Población con discapacidad atendida por los servicios de educación especial focalizados en el componente 3 para beneficiar en 2025
A54: Condición | B54: Beneficiarias/os por condición y por SEE | Q54: Población total beneficiaria | T54: De la población total reportada por condición, especifique si se trata de alguna de las siguientes poblaciones.
B55: USAER | E55: CAM básico | H55: CAM básico con FpT | K55: CAM laboral | N55: Otro | Q55: M | R55: H | S55: TOTAL | T55: Población indígena | W55: Población afrodescendiente | Z55: Población migrante | AD55: Estudiantes focalizados discapacidad
B56: M | C56: H | D56: TOTAL | E56: M | F56: H | G56: TOTAL | H56: M | I56: H | J56: TOTAL | K56: M | L56: H | M56: TOTAL | N56: M | O56: H | P56: TOTAL | T56: M | U56: H | V56: TOTAL | W56: M | X56: H | Y56: TOTAL | Z56: M | AA56: H | AB56: TOTAL | AD56: CAPEP | AH56: UAEBH
A57: Ceguera | B57: 6 | C57: 12 | D57: =SUM(B57:C57) -> 18 | E57: 0 | F57: 0 | G57: =SUM(E57:F57) -> 0 | H57: 9 | I57: 8 | J57: =SUM(H57:I57) -> 17 | K57: 0 | L57: 1 | M57: =SUM(K57:L57) -> 1 | N57: 0 | O57: 0 | P57: =SUM(N57:O57) -> 0 | Q57: =SUM(B57,E57,H57,K57,N57) -> 15 | R57: =SUM(C57,F57,I57,L57,O57) -> 21 | S57: =SUM(Q57,R57) -> 36 | T57: 0 | U57: 0 | V57: =SUM(T57,U57) -> 0 | W57: 0 | X57: 0 | Y57: =SUM(W57,X57) -> 0 | Z57: 0 | AA57: 0 | AB57: =SUM(Z57,AA57) -> 0 | AD57: M | AE57: H | AF57: TOTAL | AH57: M | AI57: H | AJ57: TOTAL
A58: Baja Visión | B58: 29 | C58: 59 | D58: =SUM(B58:C58) -> 88 | E58: 0 | F58: 0 | G58: =SUM(E58:F58) -> 0 | H58: 2 | I58: 3 | J58: =SUM(H58:I58) -> 5 | K58: 0 | L58: 0 | M58: =SUM(K58:L58) -> 0 | N58: 0 | O58: 0 | P58: =SUM(N58:O58) -> 0 | Q58: =SUM(B58,E58,H58,K58,N58) -> 31 | R58: 62 | S58: 93 | T58: 0 | U58: 0 | V58: =SUM(T58,U58) -> 0 | W58: 0 | X58: 0 | Y58: =SUM(W58,X58) -> 0 | Z58: 0 | AA58: 0 | AB58: =SUM(Z58,AA58) -> 0 | AD58: 0 | AE58: 0 | AF58: =SUM(AD58,AE58) -> 0 | AH58: 0 | AI58: 0 | AJ58: =SUM(AH58,AI58) -> 0
A59: Sordera | B59: 9 | C59: 11 | D59: 20 | E59: 0 | F59: 0 | G59: 0 | H59: 6 | I59: 4 | J59: 10 | K59: 2 | L59: 0 | M59: 2 | N59: 0 | O59: 0 | P59: 0 | Q59: 17 | R59: 15 | S59: 32 | T59: 0 | U59: 0 | V59: 0 | W59: 0 | X59: 0 | Y59: 0 | Z59: 0 | AA59: 0 | AB59: 0 | AD59: Personal docente y/o directivos focalizados
A60: Hipoacusia | B60: 53 | C60: 55 | D60: 108 | E60: 0 | F60: 0 | G60: 0 | H60: 6 | I60: 6 | J60: 12 | K60: 0 | L60: 0 | M60: 0 | N60: 0 | O60: 0 | P60: 0 | Q60: 59 | R60: 61 | S60: 120 | T60: 0 | U60: 0 | V60: 0 | W60: 0 | X60: 0 | Y60: 0 | Z60: 0 | AA60: 0 | AB60: 0 | AD60: CRIE | AH60: UOP
A61: Sordoceguera | B61: 0 | C61: 0 | D61: 0 | E61: 0 | F61: 0 | G61: 0 | H61: 0 | I61: 0 | J61: 0 | K61: 0 | L61: 0 | M61: 0 | N61: 0 | O61: 0 | P61: 0 | Q61: 0 | R61: 0 | S61: 0 | T61: 0 | U61: 0 | V61: 0 | W61: 0 | X61: 0 | Y61: 0 | Z61: 0 | AA61: 0 | AB61: 0 | AD61: M | AE61: H | AF61: TOTAL | AH61: M | AI61: H | AJ61: TOTAL
A62: Motriz | B62: 67 | C62: 100 | D62: 167 | E62: 0 | F62: 0 | G62: 0 | H62: 33 | I62: 58 | J62: 91 | K62: 0 | L62: 4 | M62: 4 | N62: 0 | O62: 0 | P62: 0 | Q62: 100 | R62: 162 | S62: 262 | T62: 0 | U62: 0 | V62: 0 | W62: 0 | X62: 0 | Y62: 0 | Z62: 0 | AA62: 0 | AB62: 0 | AD62: 0 | AE62: 0 | AF62: =SUM(AD62,AE62) -> 0 | AH62: 0 | AI62: 0 | AJ62: =SUM(AH62,AI62) -> 0
A63: Intelectual | B63: 292 | C63: 400 | D63: 692 | E63: 0 | F63: 0 | G63: 0 | H63: 367 | I63: 483 | J63: 850 | K63: 42 | L63: 49 | M63: 91 | N63: 0 | O63: 0 | P63: 0 | Q63: 701 | R63: 932 | S63: 1633 | T63: 0 | U63: 0 | V63: 0 | W63: 0 | X63: 0 | Y63: 0 | Z63: 0 | AA63: 0 | AB63: 0 | AD63: Familias y/o público en general focalizados
A64: Psicosocial | B64: 5 | C64: 8 | D64: 13 | E64: 0 | F64: 0 | G64: 0 | H64: 0 | I64: 1 | J64: 1 | K64: 0 | L64: 1 | M64: 1 | N64: 0 | O64: 0 | P64: 0 | Q64: 5 | R64: 10 | S64: 15 | T64: 0 | U64: 0 | V64: 0 | W64: 0 | X64: 0 | Y64: 0 | Z64: 0 | AA64: 0 | AB64: 0 | AD64: CRIE | AH64: UOP
A65: Espectro autista | B65: 98 | C65: 524 | D65: 622 | E65: 0 | F65: 0 | G65: 0 | H65: 55 | I65: 177 | J65: 232 | K65: 1 | L65: 8 | M65: 9 | N65: 0 | O65: 0 | P65: 0 | Q65: 154 | R65: 709 | S65: 863 | T65: 0 | U65: 0 | V65: 0 | W65: 0 | X65: 0 | Y65: 0 | Z65: 0 | AA65: 0 | AB65: 0 | AD65: M | AE65: H | AF65: TOTAL | AH65: M | AI65: H | AJ65: TOTAL
A66: Múltiple | B66: 23 | C66: 21 | D66: 44 | E66: 0 | F66: 0 | G66: 0 | H66: 70 | I66: 106 | J66: 176 | K66: 4 | L66: 6 | M66: 10 | N66: 0 | O66: 0 | P66: 0 | Q66: 97 | R66: 133 | S66: 230 | T66: 0 | U66: 0 | V66: 0 | W66: 0 | X66: 0 | Y66: 0 | Z66: 0 | AA66: 0 | AB66: 0 | AD66: 0 | AE66: 0 | AF66: =SUM(AD66,AE66) -> 0 | AH66: 0 | AI66: 0 | AJ66: =SUM(AH66,AI66) -> 0
A67: TDA TDA-H | B67: 177 | C67: 829 | D67: 1006 | E67: 0 | F67: 0 | G67: 0 | H67: 2 | I67: 12 | J67: 14 | K67: 0 | L67: 6 | M67: 6 | N67: 0 | O67: 0 | P67: 0 | Q67: 179 | R67: 847 | S67: 1026 | T67: 0 | U67: 0 | V67: 0 | W67: 0 | X67: 0 | Y67: 0 | Z67: 0 | AA67: 0 | AB67: 0
A68: Totales | B68: =SUM(B57:B67) -> 759 | C68: =SUM(C57:C67) -> 2019 | D68: =SUM(B68:C68) -> 2778 | E68: =SUM(E57:E67) -> 0 | F68: =SUM(F57:F67) -> 0 | G68: =SUM(E68,F68) -> 0 | H68: =SUM(H57:H67) -> 550 | I68: =SUM(I57:I67) -> 858 | J68: =SUM(H68,I68) -> 1408 | K68: =SUM(K57:K67) -> 49 | L68: =SUM(L57:L67) -> 75 | M68: =SUM(K68:L68) -> 124 | N68: =SUM(N57:N67) -> 0 | O68: =SUM(O57:O67) -> 0 | P68: =SUM(N68:O68) -> 0 | Q68: =SUM(B68,E68,H68,K68,N68) -> 1358 | R68: =SUM(C68,F68,I68,L68,O68) -> 2952 | S68: 4310 | T68: =SUM(T57:T67) -> 0 | U68: =SUM(U57:U67) -> 0 | V68: 0 | W68: =SUM(W57:W67) -> 0 | X68: =SUM(X57:X67) -> 0 | Y68: 0 | Z68: =SUM(Z57:Z67) -> 0 | AA68: =SUM(AA57:AA67) -> 0 | AB68: 0 | AF68: Total de estudiantes con discapacidad focalizados
AF70: M | AG70: H | AH70: Total
A71: Verificar que la población reportada en CAPEP, CRIE, UOP y UAEBH con discapacidad, al sumarla con la reportada en AS sea correspondiente con lo registrado en la pestaña de Población total. | AF71: =SUM(Q68,AD58,AH58) -> 1358 | AG71: =SUM(R68,AE58,AI58) -> 2952 | AH71: =SUM(AF71:AG71) -> 4310
A75: TDA: Trastorno por Déficit de Atención
A76: TDA-H: Trastorno por Déficit de Atención e Hiperactividad

Sheet Beneficiarios AS 2025
V1: Subsecretaría de Educación Básica Dirección General de Desarrollo Curricular Dirección de Fortalecimiento Curricular para la Formación Personal y Social en la Educación Básica Educación Especial
A6: Información cuantitativa respecto a la población con aptitudes sobresalientes que atienden los servicios de educación especial focalizados, en su entidad, por sexo y tipo de condición:
A8: Población con aptitudes sobresalientes atendida por los servicios de educación especial focalizados en el componente 1 para beneficiar en 2025
A9: Condición | B9: Beneficiarias/os por condición y por SEE | H9: Población total beneficiaria | K9: De la población total reportada por condición, especifique si se trata de alguna de las siguientes poblaciones. | U9: Estudiantes focalizados aptitudes sobresalientes
B10: USAER | E10: Otro | H10: M | I10: H | J10: TOTAL | K10: Población indígena | N10: Población afrodescendiente | Q10: Población migrante | U10: CAPEP | Y10: UAEBH
B11: M | C11: H | D11: TOTAL | E11: M | F11: H | G11: TOTAL | K11: M | L11: H | M11: TOTAL | N11: M | O11: H | P11: TOTAL | Q11: M | R11: H | S11: TOTAL | U11: M | V11: H | W11: TOTAL | Y11: M | Z11: H | AA11: TOTAL
A12: AS Intelectual | B12: 185 | C12: 225 | D12: =SUM(B12:C12) -> 410 | E12: 60 | F12: 105 | G12: =SUM(E12:F12) -> 165 | H12: =SUM(B12,E12) -> 245 | I12: =SUM(C12,F12) -> 330 | J12: =SUM(H12:I12) -> 575 | K12: 0 | L12: 0 | M12: =SUM(K12:L12) -> 0 | N12: 0 | O12: 0 | P12: =SUM(N12:O12) -> 0 | Q12: 0 | R12: 0 | S12: =SUM(Q12:R12) -> 0 | U12: 0 | V12: 0 | W12: =SUM(U12,V12) -> 0 | Y12: 0 | Z12: 0 | AA12: =SUM(Y12,Z12) -> 0
A13: AS Creativa | B13: 227 | C13: 221 | D13: 448 | E13: 0 | F13: 0 | G13: 0 | H13: =SUM(B13,E13) -> 227 | I13: 221 | J13: 448 | K13: 0 | L13: 0 | M13: 0 | N13: 0 | O13: 0 | P13: 0 | Q13: 0 | R13: 0 | S13: 0 | U13: Personal docente y/o directivos focalizados
A14: AS Artística | B14: 76 | C14: 68 | D14: 144 | E14: 0 | F14: 0 | G14: 0 | H14: 76 | I14: 68 | J14: 144 | K14: 0 | L14: 0 | M14: 0 | N14: 0 | O14: 0 | P14: 0 | Q14: 0 | R14: 0 | S14: 0 | U14: CRIE | Y14: UOP
A15: AS Psicomotriz | B15: 18 | C15: 41 | D15: 59 | E15: 0 | F15: 0 | G15: 0 | H15: 18 | I15: 41 | J15: 59 | K15: 0 | L15: 0 | M15: 0 | N15: 0 | O15: 0 | P15: 0 | Q15: 0 | R15: 0 | S15: 0 | U15: M | V15: H | W15: TOTAL | Y15: M | Z15: H | AA15: TOTAL
A16: AS Socioafectiva | B16: 37 | C16: 30 | D16: 67 | E16: 0 | F16: 0 | G16: 0 | H16: 37 | I16: 30 | J16: 67 | K16: 0 | L16: 0 | M16: 0 | N16: 0 | O16: 0 | P16: 0 | Q16: 0 | R16: 0 | S16: 0 | U16: 0 | V16: 0 | W16: =SUM(U16,V16) -> 0 | Y16: 0 | Z16: 0 | AA16: =SUM(Y16,Z16) -> 0
A17: Totales | B17: =SUM(B12:B16) -> 543 | C17: =SUM(C12:C16) -> 585 | D17: 1128 | E17: =SUM(E12:E16) -> 60 | F17: =SUM(F12:F16) -> 105 | G17: 165 | H17: =SUM(H12:H16) -> 603 | I17: =SUM(I12:I16) -> 690 | J17: 1293 | K17: =SUM(K12:K16) -> 0 | L17: =SUM(L12:L16) -> 0 | M17: 0 | N17: =SUM(N12:N16) -> 0 | O17: =SUM(O12:O16) -> 0 | P17: 0 | Q17: =SUM(Q12:Q16) -> 0 | R17: =SUM(R12:R16) -> 0 | S17: 0 | U17: Familias y/o público en general focalizados
U18: CRIE | Y18: UOP
U19: M | V19: H | W19: TOTAL | Y19: M | Z19: H | AA19: TOTAL
A20: Verificar que la población reportada en CAPEP, CRIE, UOP y UAEBH con discapacidad, al sumarla con la reportada en AS sea correspondiente con lo registrado en la pestaña de Población total. | U20: 0 | V20: 0 | W20: =SUM(U20,V20) -> 0 | Y20: 0 | Z20: 0 | AA20: =SUM(Y20,Z20) -> 0
P23: Total de estudiantes con aptitudes sobresalientes focalizados
P25: M | Q25: H | R25: Total
P26: =SUM(H17,U12,Y12) -> 603 | Q26: =SUM(I17,V12,Z12) -> 690 | R26: =SUM(P26:Q26) -> 1293
A28: Población con aptitudes sobresalientes atendida por los servicios de educación especial focalizados en el componente 2 para beneficiar en 2025 | U28: Estudiantes focalizados aptitudes sobresalientes
A29: Condición | B29: Beneficiarias/os por condición y por SEE | H29: Población total beneficiaria | K29: De la población total reportada por condición, especifique si se trata de alguna de las siguientes poblaciones. | U29: CAPEP | Y29: UAEBH
B30: USAER | E30: Otro | H30: M | I30: H | J30: TOTAL | K30: Población indígena | N30: Población afrodescendiente | Q30: Población migrante | U30: M | V30: H | W30: TOTAL | Y30: M | Z30: H | AA30: TOTAL
B31: M | C31: H | D31: TOTAL | E31: M | F31: H | G31: TOTAL | K31: M | L31: H | M31: TOTAL | N31: M | O31: H | P31: TOTAL | Q31: M | R31: H | S31: TOTAL | U31: 0 | V31: 0 | W31: =SUM(U31,V31) -> 0 | Y31: 0 | Z31: 0 | AA31: =SUM(Y31,Z31) -> 0
A32: AS Intelectual | B32: 185 | C32: 225 | D32: =SUM(B32:C32) -> 410 | E32: 0 | F32: 0 | G32: =SUM(E32:F32) -> 0 | H32: =SUM(B32,E32) -> 185 | I32: =SUM(C32,F32) -> 225 | J32: =SUM(H32:I32) -> 410 | K32: 0 | L32: 0 | M32: =SUM(K32:L32) -> 0 | N32: 0 | O32: 0 | P32: =SUM(N32:O32) -> 0 | Q32: 0 | R32: 0 | S32: =SUM(Q32:R32) -> 0 | U32: Personal docente y/o directivos focalizados
A33: AS Creativa | B33: 227 | C33: 221 | D33: 448 | E33: 0 | F33: 0 | G33: 0 | H33: =SUM(B33,E33) -> 227 | I33: 221 | J33: 448 | K33: 0 | L33: 0 | M33: 0 | N33: 0 | O33: 0 | P33: 0 | Q33: 0 | R33: 0 | S33: 0 | U33: CRIE | Y33: UOP
A34: AS Artística | B34: 76 | C34: 68 | D34: 144 | E34: 0 | F34: 0 | G34: 0 | H34: 76 | I34: 68 | J34: 144 | K34: 0 | L34: 0 | M34: 0 | N34: 0 | O34: 0 | P34: 0 | Q34: 0 | R34: 0 | S34: 0 | U34: M | V34: H | W34: TOTAL | Y34: M | Z34: H | AA34: TOTAL
A35: AS Psicomotriz | B35: 18 | C35: 41 | D35: 59 | E35: 0 | F35: 0 | G35: 0 | H35: 18 | I35: 41 | J35: 59 | K35: 0 | L35: 0 | M35: 0 | N35: 0 | O35: 0 | P35: 0 | Q35: 0 | R35: 0 | S35: 0 | U35: 0 | V35: 0 | W35: =SUM(U35,V35) -> 0 | Y35: 0 | Z35: 0 | AA35: =SUM(Y35,Z35) -> 0
A36: AS Socioafectiva | B36: 37 | C36: 30 | D36: 67 | E36: 0 | F36: 0 | G36: 0 | H36: 37 | I36: 30 | J36: 67 | K36: 0 | L36: 0 | M36: 0 | N36: 0 | O36: 0 | P36: 0 | Q36: 0 | R36: 0 | S36: 0 | U36: Familias y/o público en general focalizados
A37: Totales | B37: =SUM(B32:B36) -> 543 | C37: =SUM(C32:C36) -> 585 | D37: 1128 | E37: =SUM(E32:E36) -> 0 | F37: =SUM(F32:F36) -> 0 | G37: 0 | H37: =SUM(H32:H36) -> 543 | I37: =SUM(I32:I36) -> 585 | J37: =SUM(H37:I37) -> 1128 | K37: =SUM(K32:K36) -> 0 | L37: =SUM(L32:L36) -> 0 | M37: 0 | N37: =SUM(N32:N36) -> 0 | O37: =SUM(O32:O36) -> 0 | P37: 0 | Q37: =SUM(Q32:Q36) -> 0 | R37: =SUM(R32:R36) -> 0 | S37: 0 | U37: CRIE | Y37: UOP
U38: M | V38: H | W38: TOTAL | Y38: M | Z38: H | AA38: TOTAL
U39: 0 | V39: 0 | W39: =SUM(U39,V39) -> 0 | Y39: 0 | Z39: 0 | AA39: =SUM(Y39,Z39) -> 0
A40: Verificar que la población reportada en CAPEP, CRIE, UOP y UAEBH con discapacidad, al sumarla con la reportada en AS sea correspondiente con lo registrado en la pestaña de Población total.
P43: Total de estudiantes con aptitudes sobresalientes focalizados
P45: M | Q45: H | R45: Total
P46: =SUM(H37,U32,Y32) -> 543 | Q46: =SUM(I37,V32,Z32) -> 585 | R46: =SUM(P46:Q46) -> 1128
A48: Población con aptitudes sobresalientes atendida por los servicios de educación especial focalizados en el componente 3 para beneficiar en 2025 | U48: Estudiantes focalizados aptitudes sobresalientes
A49: Condición | B49: Beneficiarias/os por condición y por SEE | H49: Población total beneficiaria | K49: De la población total reportada por condición, especifique si se trata de alguna de las siguientes poblaciones. | U49: CAPEP | Y49: UAEBH
B50: USAER | E50: Otro | H50: M | I50: H | J50: TOTAL | K50: Población indígena | N50: Población afrodescendiente | Q50: Población migrante | U50: M | V50: H | W50: TOTAL | Y50: M | Z50: H | AA50: TOTAL
B51: M | C51: H | D51: TOTAL | E51: M | F51: H | G51: TOTAL | K51: M | L51: H | M51: TOTAL | N51: M | O51: H | P51: TOTAL | Q51: M | R51: H | S51: TOTAL | U51: 0 | V51: 0 | W51: =SUM(U51,V51) -> 0 | Y51: 0 | Z51: 0 | AA51: =SUM(Y51,Z51) -> 0
A52: AS Intelectual | B52: 185 | C52: 225 | D52: =SUM(B52:C52) -> 410 | E52: 60 | F52: 105 | G52: =SUM(E52:F52) -> 165 | H52: =SUM(B52,E52) -> 245 | I52: =SUM(C52,F52) -> 330 | J52: =SUM(H52:I52) -> 575 | K52: 0 | L52: 0 | M52: =SUM(K52:L52) -> 0 | N52: 0 | O52: 0 | P52: =SUM(N52:O52) -> 0 | Q52: 0 | R52: 0 | S52: =SUM(Q52:R52) -> 0 | U52: Personal docente y/o directivos focalizados
A53: AS Creativa | B53: 227 | C53: 221 | D53: 448 | E53: 0 | F53: 0 | G53: 0 | H53: =SUM(B53,E53) -> 227 | I53: 221 | J53: 448 | K53: 0 | L53: 0 | M53: 0 | N53: 0 | O53: 0 | P53: 0 | Q53: 0 | R53: 0 | S53: 0 | U53: CRIE | Y53: UOP
A54: AS Artística | B54: 76 | C54: 68 | D54: 144 | E54: 0 | F54: 0 | G54: 0 | H54: 76 | I54: 68 | J54: 144 | K54: 0 | L54: 0 | M54: 0 | N54: 0 | O54: 0 | P54: 0 | Q54: 0 | R54: 0 | S54: 0 | U54: M | V54: H | W54: TOTAL | Y54: M | Z54: H | AA54: TOTAL
A55: AS Psicomotriz | B55: 18 | C55: 41 | D55: 59 | E55: 0 | F55: 0 | G55: 0 | H55: 18 | I55: 41 | J55: 59 | K55: 0 | L55: 0 | M55: 0 | N55: 0 | O55: 0 | P55: 0 | Q55: 0 | R55: 0 | S55: 0 | U55: 0 | V55: 0 | W55: =SUM(U55,V55) -> 0 | Y55: 0 | Z55: 0 | AA55: =SUM(Y55,Z55) -> 0
A56: AS Socioafectiva | B56: 37 | C56: 30 | D56: 67 | E56: 0 | F56: 0 | G56: 0 | H56: 37 | I56: 30 | J56: 67 | K56: 0 | L56: 0 | M56: 0 | N56: 0 | O56: 0 | P56: 0 | Q56: 0 | R56: 0 | S56: 0 | U56: Familias y/o público en general focalizados
A57: Totales | B57: =SUM(B52:B56) -> 543 | C57: =SUM(C52:C56) -> 585 | D57: 1128 | E57: =SUM(E52:E56) -> 60 | F57: =SUM(F52:F56) -> 105 | G57: 165 | H57: =SUM(H52:H56) -> 603 | I57: =SUM(I52:I56) -> 690 | J57: =SUM(H57:I57) -> 1293 | K57: =SUM(K52:K56) -> 0 | L57: =SUM(L52:L56) -> 0 | M57: 0 | N57: =SUM(N52:N56) -> 0 | O57: =SUM(O52:O56) -> 0 | P57: 0 | Q57: =SUM(Q52:Q56) -> 0 | R57: =SUM(R52:R56) -> 0 | S57: 0 | U57: CRIE | Y57: UOP
U58: M | V58: H | W58: TOTAL | Y58: M | Z58: H | AA58: TOTAL
U59: 0 | V59: 0 | W59: =SUM(U59,V59) -> 0 | Y59: 0 | Z59: 0 | AA59: =SUM(Y59,Z59) -> 0
A60: Verificar que la población reportada en CAPEP, CRIE, UOP y UAEBH con discapacidad, al sumarla con la reportada en AS sea correspondiente con lo registrado en la pestaña de Población total.
P63: Total de estudiantes con aptitudes sobresalientes focalizados
P65: M | Q65: H | R65: Total
P66: =SUM(H57,U52,Y52) -> 603 | Q66: =SUM(I57,V52,Z52) -> 690 | R66: =SUM(P66:Q66) -> 1293
A68: AS: Aptitudes sobresalientes

Sheet Acciones académicas DIS 2025
B1: Subsecretaría de Educación Básica Dirección General de Desarrollo Curricular Dirección de Fortalecimiento Curricular para la Formación Personal y Social en la Educación Básica Educación Especial
B6: Componente: 1. Acciones académicas para Agentes educativos en temas de discapacidad
B7: Para garantizar el cumplimiento de los objetivos del PFSEE las AEL podrán destinar hasta un 50% del recurso, de acuerdo con lo estipulado en las reglas de operación 2025.
B8: 1.1 Desarrollo de acciones de actualización y fortalecimiento académico de Agentes educativos en temas de discapacidad
B9: Recurso programado: | F9: ='Distribución presupuestal 2025'!H51 -> 2110531 | J9: SEE focalizados: | M9: USAER | N9: ='SEE 2025'!B16 -> 81 | O9: CAM básico | P9: ='SEE 2025'!C16 -> 0 | Q9: Básico FpT | R9: ='SEE 2025'!C18 -> 28 | S9: CAM laboral | T9: ='SEE 2025'!D16 -> 2 | U9: CAPEP | V9: ='SEE 2025'!E16 -> 0 | W9: CRIE | X9: ='SEE 2025'!F16 -> 0 | Y9: UOP | Z9: ='SEE 2025'!G16 -> 0 | AA9: UAEBH | AB9: ='SEE 2025'!H16 -> 0 | AC9: Otro | AD9: ='SEE 2025'!I16 -> 0
B10: Remanente: | F10: =F9-SUM(A13:A352) -> 0
B12: Numero de actividad | D12: 1.1.1
A13: =T13 -> 510000 | B13: Tipo de actividad | D13: Trimestre de inicio | G13: 3ro | I13: Trimestre de término | M13: 4to | O13: Presupuesto de la actividad | T13: 510000 | W13: Título de la actividad | AC13: DIPLOMADO EN NEUROEDUCACIÓN
B14: Diplomado | D14: USAER | G14: CAM básico | J14: CAM básico con FpT | M14: CAM laboral | P14: CAPEP | S14: CRIE | V14: UOP | Y14: UAEBH | AB14: Otro | AE14: Especifique producto o servicio en lo que se planea ejercer | AF14: Propósito de la actividad
D15: SEE: | E15: 81 | G15: SEE: | H15: 0 | J15: SEE: | K15: 28 | M15: SEE: | N15: 2 | P15: SEE: | Q15: 0 | S15: SEE: | T15: 0 | V15: SEE: | W15: 0 | Y15: SEE: | Z15: 0 | AB15: SEE: | AC15: 0
D16: M | E16: H | F16: T | G16: M | H16: H | I16: T | J16: M | K16: H | L16: T | M16: M | N16: H | O16: T | P16: M | Q16: H | R16: T | S16: M | T16: H | U16: T | V16: M | W16: H | X16: T | Y16: M | Z16: H | AA16: T | AB16: M | AC16: H | AD16: T
B17: Supervisores | D17: 0 | E17: 0 | F17: =SUM(D17,E17) -> 0 | G17: 0 | H17: 0 | I17: =SUM(G17,H17) -> 0 | J17: 0 | K17: 0 | L17: =SUM(J17,K17) -> 0 | M17: 0 | N17: 0 | O17: =SUM(M17,N17) -> 0 | P17: 0 | Q17: 0 | R17: =SUM(P17,Q17) -> 0 | S17: 0 | T17: 0 | U17: =SUM(S17,T17) -> 0 | V17: 0 | W17: 0 | X17: =SUM(V17,W17) -> 0 | Y17: 0 | Z17: 0 | AA17: =SUM(Y17,Z17) -> 0 | AB17: 0 | AC17: 0 | AD17: =SUM(AB17,AC17) -> 0 | AE17: Pago a conferencistas o talleristas | AF17: Transformar la labor del personal de educación especial, mediante la integración de principios neurocientíficos y estrategias innovadoras que maximicen el desarrollo cognitivo, socioemocional y adaptativo de la población objetivo.
B18: Directivas/os | D18: 5 | E18: 5 | F18: =SUM(D18,E18) -> 10 | G18: 0 | H18: 0 | I18: 0 | J18: 4 | K18: 4 | L18: 8 | M18: 0 | N18: 0 | O18: 0 | P18: 0 | Q18: 0 | R18: 0 | S18: 0 | T18: 0 | U18: 0 | V18: 0 | W18: 0 | X18: 0 | Y18: 0 | Z18: 0 | AA18: 0 | AB18: 0 | AC18: 0 | AD18: 0 | AE18: N/A
B19: Docentes | D19: 60 | E19: 21 | F19: =SUM(D19,E19) -> 81 | G19: 0 | H19: 0 | I19: =SUM(G19,H19) -> 0 | J19: 20 | K19: 8 | L19: 28 | M19: 2 | N19: 0 | O19: 2 | P19: 0 | Q19: 0 | R19: 0 | S19: 0 | T19: 0 | U19: 0 | V19: 0 | W19: 0 | X19: 0 | Y19: 0 | Z19: 0 | AA19: 0 | AB19: 0 | AC19: 0 | AD19: 0 | AE19: N/A
B20: Equipo de apoyo | D20: 5 | E20: 5 | F20: 10 | G20: 0 | H20: 0 | I20: 0 | J20: 6 | K20: 3 | L20: 9 | M20: 1 | N20: 1 | O20: 2 | P20: 0 | Q20: 0 | R20: 0 | S20: 0 | T20: 0 | U20: 0 | V20: 0 | W20: 0 | X20: 0 | Y20: 0 | Z20: 0 | AA20: 0 | AB20: 0 | AC20: 0 | AD20: 0 | AE20: N/A
B21: Familias | D21: 0 | E21: 0 | F21: 0 | G21: 0 | H21: 0 | I21: 0 | J21: 0 | K21: 0 | L21: 0 | M21: 0 | N21: 0 | O21: 0 | P21: 0 | Q21: 0 | R21: 0 | S21: 0 | T21: 0 | U21: 0 | V21: 0 | W21: 0 | X21: 0 | Y21: 0 | Z21: 0 | AA21: 0 | AB21: 0 | AC21: 0 | AD21: 0 | AE21: N/A
B22: Docentes de EB | D22: 0 | E22: 0 | F22: 0 | G22: 0 | H22: 0 | I22: 0 | J22: 0 | K22: 0 | L22: 0 | M22: 0 | N22: 0 | O22: 0 | P22: 0 | Q22: 0 | R22: 0 | S22: 0 | T22: 0 | U22: 0 | V22: 0 | W22: 0 | X22: 0 | Y22: 0 | Z22: 0 | AA22: 0 | AB22: 0 | AC22: 0 | AD22: 0 | AE22: N/A
B23: Otros | D23: 0 | E23: 0 | F23: 0 | G23: 0 | H23: 0 | I23: 0 | J23: 0 | K23: 0 | L23: 0 | M23: 0 | N23: 0 | O23: 0 | P23: 0 | Q23: 0 | R23: 0 | S23: 0 | T23: 0 | U23: 0 | V23: 0 | W23: 0 | X23: 0 | Y23: 0 | Z23: 0 | AA23: 0 | AB23: 0 | AC23: 0 | AD23: 0 | AE23: N/A
B24: TOTAL | D24: =SUM(D16:D23) -> 70 | E24: 31 | F24: 101 | G24: 0 | H24: 0 | I24: 0 | J24: 30 | K24: 15 | L24: 45 | M24: 3 | N24: 1 | O24: 4 | P24: 0 | Q24: 0 | R24: 0 | S24: 0 | T24: 0 | U24: 0 | V24: 0 | W24: 0 | X24: 0 | Y24: 0 | Z24: 0 | AA24: 0 | AB24: 0 | AC24: 0 | AD24: 0 | AE24: N/A
B26: En caso de requerir alguna precisión o aclaración, describa brevemente:
B27: Equipo de apoyo, se consideran docente de comunicación y psicólogos, 120 h, modalidad mixta, 40 horas presenciales (8 sesiones) y 80 horas autogestivas. 4 grupos Durango, 1 grupos Laguna.
B29: Numero de actividad | D29: 1.1.2
A30: =T30 -> 704531 | B30: Tipo de actividad | D30: Trimestre de inicio | G30: 3ro | I30: Trimestre de término | M30: 4to | O30: Presupuesto de la actividad | T30: 704531 | W30: Título de la actividad | AC30: DIPLOMADO EN ATENCIÓN A ALUMNOS CON TRASTORNOS DEL NEURODESARROLLO
B31: Diplomado | D31: USAER | G31: CAM básico | J31: CAM básico con FpT | M31: CAM laboral | P31: CAPEP | S31: CRIE | V31: UOP | Y31: UAEBH | AB31: Otro | AE31: Especifique producto o servicio en lo que se planea ejercer | AF31: Propósito de la actividad
D32: SEE: | E32: 81 | G32: SEE: | H32: 0 | J32: SEE: | K32: 28 | M32: SEE: | N32: 2 | P32: SEE: | Q32: 0 | S32: SEE: | T32: 0 | V32: SEE: | W32: 0 | Y32: SEE: | Z32: 0 | AB32: SEE: | AC32: 0
D33: M | E33: H | F33: T | G33: M | H33: H | I33: T | J33: M | K33: H | L33: T | M33: M | N33: H | O33: T | P33: M | Q33: H | R33: T | S33: M | T33: H | U33: T | V33: M | W33: H | X33: T | Y33: M | Z33: H | AA33: T | AB33: M | AC33: H | AD33: T
B34: Supervisores | D34: 2 | E34: 1 | F34: =SUM(D34,E34) -> 3 | G34: 0 | H34: 0 | I34: =SUM(G34,H34) -> 0 | J34: 0 | K34: 0 | L34: =SUM(J34,K34) -> 0 | M34: 0 | N34: 0 | O34: =SUM(M34,N34) -> 0 | P34: 0 | Q34: 0 | R34: =SUM(P34,Q34) -> 0 | S34: 0 | T34: 0 | U34: =SUM(S34,T34) -> 0 | V34: 0 | W34: 0 | X34: =SUM(V34,W34) -> 0 | Y34: 0 | Z34: 0 | AA34: =SUM(Y34,Z34) -> 0 | AB34: 0 | AC34: 0 | AD34: =SUM(AB34,AC34) -> 0 | AE34: Pago a conferencistas o talleristas | AF34: Desarrollar competencias profesionales en los participantes para identificar, comprender y atender de manera efectiva las necesidades educativas de alumnos con trastornos del neurodesarrollo, fomentando un ambiente inclusivo que promueva su desarrollo integral y un aprendizaje significativo.
B35: Directivas/os | D35: 5 | E35: 5 | F35: =SUM(D35,E35) -> 10 | G35: 0 | H35: 0 | I35: 0 | J35: 4 | K35: 4 | L35: 8 | M35: 0 | N35: 0 | O35: 0 | P35: 0 | Q35: 0 | R35: 0 | S35: 0 | T35: 0 | U35: 0 | V35: 0 | W35: 0 | X35: 0 | Y35: 0 | Z35: 0 | AA35: 0 | AB35: 0 | AC35: 0 | AD35: 0 | AE35: Reproducción de materiales
B36: Docentes | D36: 60 | E36: 21 | F36: =SUM(D36,E36) -> 81 | G36: 0 | H36: 0 | I36: =SUM(G36,H36) -> 0 | J36: 20 | K36: 8 | L36: 28 | M36: 2 | N36: 0 | O36: 2 | P36: 0 | Q36: 0 | R36: 0 | S36: 0 | T36: 0 | U36: 0 | V36: 0 | W36: 0 | X36: 0 | Y36: 0 | Z36: 0 | AA36: 0 | AB36: 0 | AC36: 0 | AD36: 0 | AE36: N/A
B37: Equipo de apoyo | D37: 20 | E37: 10 | F37: =SUM(D37,E37) -> 30 | G37: 0 | H37: 0 | I37: =SUM(G37,H37) -> 0 | J37: 8 | K37: 3 | L37: 11 | M37: 1 | N37: 1 | O37: 2 | P37: 0 | Q37: 0 | R37: 0 | S37: 0 | T37: 0 | U37: 0 | V37: 0 | W37: 0 | X37: 0 | Y37: 0 | Z37: 0 | AA37: 0 | AB37: 0 | AC37: 0 | AD37: 0 | AE37: N/A
B38: Familias | D38: 0 | E38: 0 | F38: 0 | G38: 0 | H38: 0 | I38: 0 | J38: 0 | K38: 0 | L38: 0 | M38: 0 | N38: 0 | O38: 0 | P38: 0 | Q38: 0 | R38: 0 | S38: 0 | T38: 0 | U38: 0 | V38: 0 | W38: 0 | X38: 0 | Y38: 0 | Z38: 0 | AA38: 0 | AB38: 0 | AC38: 0 | AD38: 0 | AE38: N/A
B39: Docentes de EB | D39: 0 | E39: 0 | F39: 0 | G39: 0 | H39: 0 | I39: 0 | J39: 0 | K39: 0 | L39: 0 | M39: 0 | N39: 0 | O39: 0 | P39: 0 | Q39: 0 | R39: 0 | S39: 0 | T39: 0 | U39: 0 | V39: 0 | W39: 0 | X39: 0 | Y39: 0 | Z39: 0 | AA39: 0 | AB39: 0 | AC39: 0 | AD39: 0 | AE39: N/A
B40: Otros | D40: 4 | E40: 1 | F40: 5 | G40: 0 | H40: 0 | I40: 0 | J40: 0 | K40: 0 | L40: 0 | M40: 0 | N40: 0 | O40: 0 | P40: 0 | Q40: 0 | R40: 0 | S40: 0 | T40: 0 | U40: 0 | V40: 0 | W40: 0 | X40: 0 | Y40: 0 | Z40: 0 | AA40: 0 | AB40: 0 | AC40: 0 | AD40: 0 | AE40: N/A
B41: TOTAL | D41: =SUM(D33:D40) -> 91 | E41: 38 | F41: 129 | G41: 0 | H41: 0 | I41: 0 | J41: 32 | K41: 15 | L41: 47 | M41: 3 | N41: 1 | O41: 4 | P41: 0 | Q41: 0 | R41: 0 | S41: 0 | T41: 0 | U41: 0 | V41: 0 | W41: 0 | X41: 0 | Y41: 0 | Z41: 0 | AA41: 0 | AB41: 0 | AC41: 0 | AD41: 0 | AE41: N/A
B43: En caso de requerir alguna precisión o aclaración, describa brevemente:
B44: Equipo de apoyo, se consideran docente de comunicación y psicólogos, 120 h, modalidad mixta, 40 horas presenciales (8 sesiones) y 80 horas autogestivas. 4 grupos Durango, 2 grupos Laguna.
B46: Numero de actividad | D46: 1.1.3
A47: =T47 -> 375000 | B47: Tipo de actividad | D47: Trimestre de inicio | G47: 4to | I47: Trimestre de término | M47: 4to | O47: Presupuesto de la actividad | T47: 375000 | W47: Título de la actividad | AC47: ESTRATEGIAS INNOVADORASPARA LA ATENCIÓN DEL TEA Y TDAH
B48: Conferencia | D48: USAER | G48: CAM básico | J48: CAM básico con FpT | M48: CAM laboral | P48: CAPEP | S48: CRIE | V48: UOP | Y48: UAEBH | AB48: Otro | AE48: Especifique producto o servicio en lo que se planea ejercer | AF48: Propósito de la actividad
D49: SEE: | E49: 81 | G49: SEE: | H49: 0 | J49: SEE: | K49: 28 | M49: SEE: | N49: 2 | P49: SEE: | Q49: 0 | S49: SEE: | T49: 0 | V49: SEE: | W49: 0 | Y49: SEE: | Z49: 0 | AB49: SEE: | AC49: 1
D50: M | E50: H | F50: T | G50: M | H50: H | I50: T | J50: M | K50: H | L50: T | M50: M | N50: H | O50: T | P50: M | Q50: H | R50: T | S50: M | T50: H | U50: T | V50: M | W50: H | X50: T | Y50: M | Z50: H | AA50: T | AB50: M | AC50: H | AD50: T
B51: Supervisores | D51: 12 | E51: 3 | F51: =SUM(D51,E51) -> 15 | G51: 0 | H51: 0 | I51: =SUM(G51,H51) -> 0 | J51: 0 | K51: 0 | L51: =SUM(J51,K51) -> 0 | M51: 0 | N51: 0 | O51: =SUM(M51,N51) -> 0 | P51: 0 | Q51: 0 | R51: =SUM(P51,Q51) -> 0 | S51: 0 | T51: 0 | U51: =SUM(S51,T51) -> 0 | V51: 0 | W51: 0 | X51: =SUM(V51,W51) -> 0 | Y51: 0 | Z51: 0 | AA51: =SUM(Y51,Z51) -> 0 | AB51: 0 | AC51: 0 | AD51: =SUM(AB51,AC51) -> 0 | AE51: Arrendamiento de salas / salones | AF51: favorecer la atención de los alumnos, a través de la actualización, reflexión y el empleo de herramientas innovadoras respecto a los trastornos del neurodesarrollo.
B52: Directivas/os | D52: 58 | E52: 23 | F52: =SUM(D52,E52) -> 81 | G52: 0 | H52: 0 | I52: 0 | J52: 24 | K52: 4 | L52: 28 | M52: 2 | N52: 0 | O52: 2 | P52: 0 | Q52: 0 | R52: 0 | S52: 0 | T52: 0 | U52: 0 | V52: 0 | W52: 0 | X52: 0 | Y52: 0 | Z52: 0 | AA52: 0 | AB52: 0 | AC52: 1 | AD52: 1 | AE52: Pago a conferencistas o talleristas
B53: Docentes | D53: 349 | E53: 55 | F53: =SUM(D53,E53) -> 404 | G53: 0 | H53: 0 | I53: =SUM(G53,H53) -> 0 | J53: 100 | K53: 20 | L53: 120 | M53: 14 | N53: 7 | O53: 21 | P53: 0 | Q53: 0 | R53: 0 | S53: 0 | T53: 0 | U53: 0 | V53: 0 | W53: 0 | X53: 0 | Y53: 0 | Z53: 0 | AA53: 0 | AB53: 1 | AC53: O | AD53: 1 | AE53: Reproducción de materiales
B54: Equipo de apoyo | D54: 110 | E54: 25 | F54: =SUM(D54,E54) -> 135 | G54: 0 | H54: 0 | I54: =SUM(G54,H54) -> 0 | J54: 68 | K54: 5 | L54: 73 | M54: 5 | N54: 1 | O54: 6 | P54: 0 | Q54: 0 | R54: 0 | S54: 0 | T54: 0 | U54: 0 | V54: 0 | W54: 0 | X54: 0 | Y54: 0 | Z54: 0 | AA54: 0 | AB54: 0 | AC54: 0 | AD54: 0 | AE54: Pago de traslados para asistentes
B55: Familias | D55: 0 | E55: 0 | F55: 0 | G55: 0 | H55: 0 | I55: 0 | J55: 0 | K55: 0 | L55: 0 | M55: 0 | N55: 0 | O55: 0 | P55: 0 | Q55: 0 | R55: 0 | S55: 0 | T55: 0 | U55: 0 | V55: 0 | W55: 0 | X55: 0 | Y55: 0 | Z55: 0 | AA55: 0 | AB55: 0 | AC55: 0 | AD55: 0 | AE55: Coffee break
B56: Docentes de EB | D56: 50 | E56: 50 | F56: 100 | G56: 0 | H56: 0 | I56: 0 | J56: 0 | K56: 0 | L56: 0 | M56: 0 | N56: 0 | O56: 0 | P56: 0 | Q56: 0 | R56: 0 | S56: 0 | T56: 0 | U56: 0 | V56: 0 | W56: 0 | X56: 0 | Y56: 0 | Z56: 0 | AA56: 0 | AB56: 0 | AC56: 0 | AD56: 0 | AE56: Renta de equipo de audio y/o video
B57: Otros | D57: 10 | E57: 3 | F57: 13 | G57: 0 | H57: 0 | I57: 0 | J57: 0 | K57: 0 | L57: 0 | M57: 0 | N57: 0 | O57: 0 | P57: 0 | Q57: 0 | R57: 0 | S57: 0 | T57: 0 | U57: 0 | V57: 0 | W57: 0 | X57: 0 | Y57: 0 | Z57: 0 | AA57: 0 | AB57: 0 | AC57: 0 | AD57: 0 | AE57: Renta de mobiliario
B58: TOTAL | D58: =SUM(D50:D57) -> 589 | E58: 159 | F58: 748 | G58: 0 | H58: 0 | I58: 0 | J58: 192 | K58: 29 | L58: 221 | M58: 21 | N58: 8 | O58: 29 | P58: 0 | Q58: 0 | R58: 0 | S58: 0 | T58: 0 | U58: 0 | V58: 0 | W58: 0 | X58: 0 | Y58: 0 | Z58: 0 | AA58: 0 | AB58: 1 | AC58: 1 | AD58: 2 | AE58: N/A
B60: En caso de requerir alguna precisión o aclaración, describa brevemente:
B61: Jornada académica con duración de un día (8 horas), tres conferencias impartidas con temas por confirmar, por ponentes internacionales.
B63: Numero de actividad | D63: 1.1.4
A64: =T64 -> 375000 | B64: Tipo de actividad | D64: Trimestre de inicio | G64: 4to | I64: Trimestre de término | M64: 4to | O64: Presupuesto de la actividad | T64: 375000 | W64: Título de la actividad | AC64: HERRAMIENTAS PARA LA ATENCIÓN INCLUSIVA DE LOS TRANSTORNOS DEL NEURODESARROLLO
B65: Taller | D65: USAER | G65: CAM básico | J65: CAM básico con FpT | M65: CAM laboral | P65: CAPEP | S65: CRIE | V65: UOP | Y65: UAEBH | AB65: Otro | AE65: Especifique producto o servicio en lo que se planea ejercer | AF65: Propósito de la actividad
D66: SEE: | E66: 81 | G66: SEE: | H66: 0 | J66: SEE: | K66: 28 | M66: SEE: | N66: 2 | P66: SEE: | Q66: 0 | S66: SEE: | T66: 0 | V66: SEE: | W66: 0 | Y66: SEE: | Z66: 0 | AB66: SEE: | AC66: 1
D67: M | E67: H | F67: T | G67: M | H67: H | I67: T | J67: M | K67: H | L67: T | M67: M | N67: H | O67: T | P67: M | Q67: H | R67: T | S67: M | T67: H | U67: T | V67: M | W67: H | X67: T | Y67: M | Z67: H | AA67: T | AB67: M | AC67: H | AD67: T
B68: Supervisores | D68: 12 | E68: 3 | F68: =SUM(D68,E68) -> 15 | G68: 0 | H68: 0 | I68: =SUM(G68,H68) -> 0 | J68: 0 | K68: 0 | L68: =SUM(J68,K68) -> 0 | M68: 0 | N68: 0 | O68: =SUM(M68,N68) -> 0 | P68: 0 | Q68: 0 | R68: =SUM(P68,Q68) -> 0 | S68: 0 | T68: 0 | U68: =SUM(S68,T68) -> 0 | V68: 0 | W68: 0 | X68: =SUM(V68,W68) -> 0 | Y68: 0 | Z68: 0 | AA68: =SUM(Y68,Z68) -> 0 | AB68: 0 | AC68: 0 | AD68: =SUM(AB68,AC68) -> 0 | AE68: Arrendamiento de salas / salones | AF68: Documentar a los participantes, en estrategias específicas y prácticas para la intervención con alumnos con TEA y TDAH.
B69: Directivas/os | D69: 58 | E69: 23 | F69: =SUM(D69,E69) -> 81 | G69: 0 | H69: 0 | I69: 0 | J69: 24 | K69: 4 | L69: 28 | M69: 2 | N69: 0 | O69: 2 | P69: 0 | Q69: 0 | R69: 0 | S69: 0 | T69: 0 | U69: 0 | V69: 0 | W69: 0 | X69: 0 | Y69: 0 | Z69: 0 | AA69: 0 | AB69: 0 | AC69: 1 | AD69: 1 | AE69: Pago a conferencistas o talleristas
B70: Docentes | D70: 349 | E70: 55 | F70: =SUM(D70,E70) -> 404 | G70: 0 | H70: 0 | I70: =SUM(G70,H70) -> 0 | J70: 100 | K70: 20 | L70: 120 | M70: 14 | N70: 7 | O70: 21 | P70: 0 | Q70: 0 | R70: 0 | S70: 0 | T70: 0 | U70: 0 | V70: 0 | W70: 0 | X70: 0 | Y70: 0 | Z70: 0 | AA70: 0 | AB70: 1 | AC70: 0 | AD70: 1 | AE70: Reproducción de materiales
B71: Equipo de apoyo | D71: 110 | E71: 25 | F71: =SUM(D71,E71) -> 135 | G71: 0 | H71: 0 | I71: =SUM(G71,H71) -> 0 | J71: 68 | K71: 5 | L71: 73 | M71: 5 | N71: 1 | O71: 6 | P71: 0 | Q71: 0 | R71: 0 | S71: 0 | T71: 0 | U71: 0 | V71: 0 | W71: 0 | X71: 0 | Y71: 0 | Z71: 0 | AA71: 0 | AB71: 0 | AC71: 0 | AD71: 0 | AE71: Pago de traslados para asistentes
B72: Familias | D72: 0 | E72: 0 | F72: 0 | G72: 0 | H72: 0 | I72: 0 | J72: 0 | K72: 0 | L72: 0 | M72: 0 | N72: 0 | O72: 0 | P72: 0 | Q72: 0 | R72: 0 | S72: 0 | T72: 0 | U72: 0 | V72: 0 | W72: 0 | X72: 0 | Y72: 0 | Z72: 0 | AA72: 0 | AB72: 0 | AC72: 0 | AD72: 0 | AE72: Coffee break
B73: Docentes de EB | D73: 50 | E73: 50 | F73: 100 | G73: 0 | H73: 0 | I73: 0 | J73: 0 | K73: 0 | L73: 0 | M73: 0 | N73: 0 | O73: 0 | P73: 0 | Q73: 0 | R73: 0 | S73: 0 | T73: 0 | U73: 0 | V73: 0 | W73: 0 | X73: 0 | Y73: 0 | Z73: 0 | AA73: 0 | AB73: 0 | AC73: 0 | AD73: 0 | AE73: Renta de equipo de audio y/o video
B74: Otros | D74: 10 | E74: 3 | F74: 13 | G74: 0 | H74: 0 | I74: 0 | J74: 0 | K74: 0 | L74: 0 | M74: 0 | N74: 0 | O74: 0 | P74: 0 | Q74: 0 | R74: 0 | S74: 0 | T74: 0 | U74: 0 | V74: 0 | W74: 0 | X74: 0 | Y74: 0 | Z74: 0 | AA74: 0 | AB74: 0 | AC74: 0 | AD74: 0 | AE74: Renta de mobiliario
B75: TOTAL | D75: =SUM(D67:D74) -> 589 | E75: 159 | F75: 748 | G75: 0 | H75: 0 | I75: 0 | J75: 192 | K75: 29 | L75: 221 | M75: 21 | N75: 8 | O75: 29 | P75: 0 | Q75: 0 | R75: 0 | S75: 0 | T75: 0 | U75: 0 | V75: 0 | W75: 0 | X75: 0 | Y75: 0 | Z75: 0 | AA75: 0 | AB75: 1 | AC75: 1 | AD75: 2 | AE75: N/A
B77: En caso de requerir alguna precisión o aclaración, describa brevemente:
B78: Talleres específicos para la atención de alumnos con trastornos del Neurodesarrollo, tres talleres a desarrollarse en dos jornadas, 5 horas cada uno.
B80: Numero de actividad | D80: 1.1.5
A81: =T81 -> 20000 | B81: Tipo de actividad | D81: Trimestre de inicio | G81: 3ro | I81: Trimestre de término | M81: 4to | O81: Presupuesto de la actividad | T81: 20000 | W81: Título de la actividad | AC81: ESTRATEGIAS LÚDICAS PARA LA ENSEÑANZA DE LAS MATEMÁTICAS
B82: Taller | D82: USAER | G82: CAM básico | J82: CAM básico con FpT | M82: CAM laboral | P82: CAPEP | S82: CRIE | V82: UOP | Y82: UAEBH | AB82: Otro | AE82: Especifique producto o servicio en lo que se planea ejercer | AF82: Propósito de la actividad
D83: SEE: | E83: 81 | G83: SEE: | H83: 0 | J83: SEE: | K83: 24 | M83: SEE: | N83: 1 | P83: SEE: | Q83: 0 | S83: SEE: | T83: 0 | V83: SEE: | W83: 0 | Y83: SEE: | Z83: 0 | AB83: SEE: | AC83: 0
D84: M | E84: H | F84: T | G84: M | H84: H | I84: T | J84: M | K84: H | L84: T | M84: M | N84: H | O84: T | P84: M | Q84: H | R84: T | S84: M | T84: H | U84: T | V84: M | W84: H | X84: T | Y84: M | Z84: H | AA84: T | AB84: M | AC84: H | AD84: T
B85: Supervisores | D85: 0 | E85: 0 | F85: =SUM(D85,E85) -> 0 | G85: 0 | H85: 0 | I85: =SUM(G85,H85) -> 0 | J85: 0 | K85: 0 | L85: =SUM(J85,K85) -> 0 | M85: 0 | N85: 0 | O85: =SUM(M85,N85) -> 0 | P85: 0 | Q85: 0 | R85: =SUM(P85,Q85) -> 0 | S85: 0 | T85: 0 | U85: =SUM(S85,T85) -> 0 | V85: 0 | W85: 0 | X85: =SUM(V85,W85) -> 0 | Y85: 0 | Z85: 0 | AA85: =SUM(Y85,Z85) -> 0 | AB85: 0 | AC85: 0 | AD85: =SUM(AB85,AC85) -> 0 | AE85: Reproducción de materiales | AF85: Transformar la práctica pedagógica de las matemáticas a través de actividades académicas lúdicas, innovadoras, llamativas y con el uso de materiales pertinentes que potencialicen habilidades y aptitudes para la enseñanza.
B86: Directivas/os | D86: 0 | E86: 0 | F86: =SUM(D86,E86) -> 0 | G86: 0 | H86: 0 | I86: 0 | J86: 0 | K86: 0 | L86: 0 | M86: 0 | N86: 0 | O86: 0 | P86: 0 | Q86: 0 | R86: 0 | S86: 0 | T86: 0 | U86: 0 | V86: 0 | W86: 0 | X86: 0 | Y86: 0 | Z86: 0 | AA86: 0 | AB86: 0 | AC86: 0 | AD86: 0 | AE86: Coffee break
B87: Docentes | D87: 85 | E87: 40 | F87: =SUM(D87,E87) -> 125 | G87: 0 | H87: 0 | I87: =SUM(G87,H87) -> 0 | J87: 14 | K87: 10 | L87: 24 | M87: 1 | N87: 0 | O87: 1 | P87: 0 | Q87: 0 | R87: 0 | S87: 0 | T87: 0 | U87: 0 | V87: 0 | W87: 0 | X87: 0 | Y87: 0 | Z87: 0 | AA87: 0 | AB87: 0 | AC87: 0 | AD87: 0 | AE87: Compra de papelería
B88: Equipo de apoyo | D88: 0 | E88: 0 | F88: =SUM(D88,E88) -> 0 | G88: 0 | H88: 0 | I88: =SUM(G88,H88) -> 0 | J88: 0 | K88: 0 | L88: 0 | M88: 0 | N88: 0 | O88: 0 | P88: 0 | Q88: 0 | R88: 0 | S88: 0 | T88: 0 | U88: 0 | V88: 0 | W88: 0 | X88: 0 | Y88: 0 | Z88: 0 | AA88: 0 | AB88: 0 | AC88: 0 | AD88: 0 | AE88: N/A
B89: Familias | D89: 0 | E89: 0 | F89: 0 | G89: 0 | H89: 0 | I89: 0 | J89: 0 | K89: 0 | L89: 0 | M89: 0 | N89: 0 | O89: 0 | P89: 0 | Q89: 0 | R89: 0 | S89: 0 | T89: 0 | U89: 0 | V89: 0 | W89: 0 | X89: 0 | Y89: 0 | Z89: 0 | AA89: 0 | AB89: 0 | AC89: 0 | AD89: 0 | AE89: N/A
B90: Docentes de EB | D90: 0 | E90: 0 | F90: 0 | G90: 0 | H90: 0 | I90: 0 | J90: 0 | K90: 0 | L90: 0 | M90: 0 | N90: 0 | O90: 0 | P90: 0 | Q90: 0 | R90: 0 | S90: 0 | T90: 0 | U90: 0 | V90: 0 | W90: 0 | X90: 0 | Y90: 0 | Z90: 0 | AA90: 0 | AB90: 0 | AC90: 0 | AD90: 0 | AE90: N/A
B91: Otros | D91: 0 | E91: 0 | F91: 0 | G91: 0 | H91: 0 | I91: 0 | J91: 0 | K91: 0 | L91: 0 | M91: 0 | N91: 0 | O91: 0 | P91: 0 | Q91: 0 | R91: 0 | S91: 0 | T91: 0 | U91: 0 | V91: 0 | W91: 0 | X91: 0 | Y91: 0 | Z91: 0 | AA91: 0 | AB91: 0 | AC91: 0 | AD91: 0 | AE91: N/A
B92: TOTAL | D92: =SUM(D84:D91) -> 85 | E92: 40 | F92: 125 | G92: 0 | H92: 0 | I92: 0 | J92: 14 | K92: 10 | L92: 24 | M92: 1 | N92: 0 | O92: 1 | P92: 0 | Q92: 0 | R92: 0 | S92: 0 | T92: 0 | U92: 0 | V92: 0 | W92: 0 | X92: 0 | Y92: 0 | Z92: 0 | AA92: 0 | AB92: 0 | AC92: 0 | AD92: 0 | AE92: N/A
B94: En caso de requerir alguna precisión o aclaración, describa brevemente:
B95: Programa intensivo de 15 horas de capacitación especializada, para 150 docentes de apoyo, modalidad presencial. Sedes centros de atención múltiple, región Durango.
B97: Numero de actividad | D97: 1.1.6
A98: =T98 -> 126000 | B98: Tipo de actividad | D98: Trimestre de inicio | G98: 3ro | I98: Trimestre de término | M98: 4to | O98: Presupuesto de la actividad | T98: 126000 | W98: Título de la actividad | AC98: MEDIACIÓN FAMILIAR Y RESOLUCIÓN DE CONFLICTOS
B99: Curso | D99: USAER | G99: CAM básico | J99: CAM básico con FpT | M99: CAM laboral | P99: CAPEP | S99: CRIE | V99: UOP | Y99: UAEBH | AB99: Otro | AE99: Especifique producto o servicio en lo que se planea ejercer | AF99: Propósito de la actividad
D100: SEE: | E100: 81 | G100: SEE: | H100: 0 | J100: SEE: | K100: 24 | M100: SEE: | N100: 2 | P100: SEE: | Q100: 0 | S100: SEE: | T100: 0 | V100: SEE: | W100: 0 | Y100: SEE: | Z100: 0 | AB100: SEE: | AC100: 0
D101: M | E101: H | F101: T | G101: M | H101: H | I101: T | J101: M | K101: H | L101: T | M101: M | N101: H | O101: T | P101: M | Q101: H | R101: T | S101: M | T101: H | U101: T | V101: M | W101: H | X101: T | Y101: M | Z101: H | AA101: T | AB101: M | AC101: H | AD101: T
B102: Supervisores | D102: 0 | E102: 0 | F102: =SUM(D102,E102) -> 0 | G102: 0 | H102: 0 | I102: =SUM(G102,H102) -> 0 | J102: 0 | K102: 0 | L102: =SUM(J102,K102) -> 0 | M102: 0 | N102: 0 | O102: =SUM(M102,N102) -> 0 | P102: 0 | Q102: 0 | R102: =SUM(P102,Q102) -> 0 | S102: 0 | T102: 0 | U102: =SUM(S102,T102) -> 0 | V102: 0 | W102: 0 | X102: =SUM(V102,W102) -> 0 | Y102: 0 | Z102: 0 | AA102: =SUM(Y102,Z102) -> 0 | AB102: 0 | AC102: 0 | AD102: =SUM(AB102,AC102) -> 0 | AE102: Pago a conferencistas o talleristas | AF102: Desarrolar habilidades prácticas en mediación y resolucion de conflictos para fortalecer a los trabajadores sociales, favoreciendo su capacidad para intervenir de manera efectiva en situaciones familiares complejas, promoviendo la comunicación asertiva y la búsqueda de soluciones colaborativas.
B103: Directivas/os | D103: 0 | E103: 0 | F103: =SUM(D103,E103) -> 0 | G103: 0 | H103: 0 | I103: 0 | J103: 0 | K103: 0 | L103: 0 | M103: 0 | N103: 0 | O103: 0 | P103: 0 | Q103: 0 | R103: 0 | S103: 0 | T103: 0 | U103: 0 | V103: 0 | W103: 0 | X103: 0 | Y103: 0 | Z103: 0 | AA103: 0 | AB103: 0 | AC103: 0 | AD103: 0 | AE103: Coffee break
B104: Docentes | D104: 0 | E104: 0 | F104: =SUM(D104,E104) -> 0 | G104: 0 | H104: 0 | I104: =SUM(G104,H104) -> 0 | J104: 0 | K104: 0 | L104: 0 | M104: 0 | N104: 0 | O104: 0 | P104: 0 | Q104: 0 | R104: 0 | S104: 0 | T104: 0 | U104: 0 | V104: 0 | W104: 0 | X104: 0 | Y104: 0 | Z104: 0 | AA104: 0 | AB104: 0 | AC104: 0 | AD104: 0 | AE104: Reproducción de materiales
B105: Equipo de apoyo | D105: 73 | E105: 4 | F105: =SUM(D105,E105) -> 77 | G105: 0 | H105: 0 | I105: =SUM(G105,H105) -> 0 | J105: 20 | K105: 4 | L105: 24 | M105: 2 | N105: 0 | O105: 2 | P105: 0 | Q105: 0 | R105: 0 | S105: 0 | T105: 0 | U105: 0 | V105: 0 | W105: 0 | X105: 0 | Y105: 0 | Z105: 0 | AA105: 0 | AB105: 0 | AC105: 0 | AD105: 0 | AE105: N/A
B106: Familias | D106: 0 | E106: 0 | F106: 0 | G106: 0 | H106: 0 | I106: 0 | J106: 0 | K106: 0 | L106: 0 | M106: 0 | N106: 0 | O106: 0 | P106: 0 | Q106: 0 | R106: 0 | S106: 0 | T106: 0 | U106: 0 | V106: 0 | W106: 0 | X106: 0 | Y106: 0 | Z106: 0 | AA106: 0 | AB106: 0 | AC106: 0 | AD106: 0 | AE106: N/A
B107: Docentes de EB | D107: 0 | E107: 0 | F107: 0 | G107: 0 | H107: 0 | I107: 0 | J107: 0 | K107: 0 | L107: 0 | M107: 0 | N107: 0 | O107: 0 | P107: 0 | Q107: 0 | R107: 0 | S107: 0 | T107: 0 | U107: 0 | V107: 0 | W107: 0 | X107: 0 | Y107: 0 | Z107: 0 | AA107: 0 | AB107: 0 | AC107: 0 | AD107: 0 | AE107: N/A
B108: Otros | D108: 0 | E108: 0 | F108: 0 | G108: 0 | H108: 0 | I108: 0 | J108: 0 | K108: 0 | L108: 0 | M108: 0 | N108: 0 | O108: 0 | P108: 0 | Q108: 0 | R108: 0 | S108: 0 | T108: 0 | U108: 0 | V108: 0 | W108: 0 | X108: 0 | Y108: 0 | Z108: 0 | AA108: 0 | AB108: 0 | AC108: 0 | AD108: 0 | AE108: N/A
B109: TOTAL | D109: =SUM(D101:D108) -> 73 | E109: 4 | F109: 77 | G109: 0 | H109: 0 | I109: 0 | J109: 20 | K109: 4 | L109: 24 | M109: 2 | N109: 0 | O109: 2 | P109: 0 | Q109: 0 | R109: 0 | S109: 0 | T109: 0 | U109: 0 | V109: 0 | W109: 0 | X109: 0 | Y109: 0 | Z109: 0 | AA109: 0 | AB109: 0 | AC109: 0 | AD109: 0 | AE109: N/A
B111: En caso de requerir alguna precisión o aclaración, describa brevemente:
B112: Acción académica para personal con funcion de trabajo social. 4 grupos: 3 Durango, 1 región Laguna. Modalidad presencial, total de 20 horas.
B114: Numero de actividad | D114: 1.1.7
A115: =T115 -> 0 | B115: Tipo de actividad | D115: Trimestre de inicio | I115: Trimestre de término | O115: Presupuesto de la actividad | T115: 0 | W115: Título de la actividad
D116: USAER | G116: CAM básico | J116: CAM básico con FpT | M116: CAM laboral | P116: CAPEP | S116: CRIE | V116: UOP | Y116: UAEBH | AB116: Otro | AE116: Especifique producto o servicio en lo que se planea ejercer | AF116: Propósito de la actividad
D117: SEE: | G117: SEE: | J117: SEE: | M117: SEE: | P117: SEE: | S117: SEE: | V117: SEE: | Y117: SEE: | AB117: SEE:
D118: M | E118: H | F118: T | G118: M | H118: H | I118: T | J118: M | K118: H | L118: T | M118: M | N118: H | O118: T | P118: M | Q118: H | R118: T | S118: M | T118: H | U118: T | V118: M | W118: H | X118: T | Y118: M | Z118: H | AA118: T | AB118: M | AC118: H | AD118: T
B119: Supervisores | F119: =SUM(D119,E119) -> 0 | I119: =SUM(G119,H119) -> 0 | L119: =SUM(J119,K119) -> 0 | O119: =SUM(M119,N119) -> 0 | R119: =SUM(P119,Q119) -> 0 | U119: =SUM(S119,T119) -> 0 | X119: =SUM(V119,W119) -> 0 | AA119: =SUM(Y119,Z119) -> 0 | AD119: =SUM(AB119,AC119) -> 0
B120: Directivas/os | F120: =SUM(D120,E120) -> 0 | I120: 0 | L120: 0 | O120: 0 | R120: 0 | U120: 0 | X120: 0 | AA120: 0 | AD120: 0
B121: Docentes | F121: =SUM(D121,E121) -> 0 | I121: =SUM(G121,H121) -> 0 | L121: 0 | O121: 0 | R121: 0 | U121: 0 | X121: 0 | AA121: 0 | AD121: 0
B122: Equipo de apoyo | F122: =SUM(D122,E122) -> 0 | I122: =SUM(G122,H122) -> 0 | L122: 0 | O122: 0 | R122: 0 | U122: 0 | X122: 0 | AA122: 0 | AD122: 0
B123: Familias | F123: 0 | I123: 0 | L123: 0 | O123: 0 | R123: 0 | U123: 0 | X123: 0 | AA123: 0 | AD123: 0
B124: Docentes de EB | F124: 0 | I124: 0 | L124: 0 | O124: 0 | R124: 0 | U124: 0 | X124: 0 | AA124: 0 | AD124: 0
B125: Otros | F125: 0 | I125: 0 | L125: 0 | O125: 0 | R125: 0 | U125: 0 | X125: 0 | AA125: 0 | AD125: 0
B126: TOTAL | D126: =SUM(D118:D125) -> 0 | E126: 0 | F126: 0 | G126: 0 | H126: 0 | I126: 0 | J126: 0 | K126: 0 | L126: 0 | M126: 0 | N126: 0 | O126: 0 | P126: 0 | Q126: 0 | R126: 0 | S126: 0 | T126: 0 | U126: 0 | V126: 0 | W126: 0 | X126: 0 | Y126: 0 | Z126: 0 | AA126: 0 | AB126: 0 | AC126: 0 | AD126: 0
B128: En caso de requerir alguna precisión o aclaración, describa brevemente:
B131: Numero de actividad | D131: 1.1.8
A132: =T132 -> 0 | B132: Tipo de actividad | D132: Trimestre de inicio | I132: Trimestre de término | O132: Presupuesto de la actividad | T132: 0 | W132: Título de la actividad
D133: USAER | G133: CAM básico | J133: CAM básico con FpT | M133: CAM laboral | P133: CAPEP | S133: CRIE | V133: UOP | Y133: UAEBH | AB133: Otro | AE133: Especifique producto o servicio en lo que se planea ejercer | AF133: Propósito de la actividad
D134: SEE: | G134: SEE: | J134: SEE: | M134: SEE: | P134: SEE: | S134: SEE: | V134: SEE: | Y134: SEE: | AB134: SEE:
D135: M | E135: H | F135: T | G135: M | H135: H | I135: T | J135: M | K135: H | L135: T | M135: M | N135: H | O135: T | P135: M | Q135: H | R135: T | S135: M | T135: H | U135: T | V135: M | W135: H | X135: T | Y135: M | Z135: H | AA135: T | AB135: M | AC135: H | AD135: T
B136: Supervisores | F136: =SUM(D136,E136) -> 0 | I136: =SUM(G136,H136) -> 0 | L136: =SUM(J136,K136) -> 0 | O136: =SUM(M136,N136) -> 0 | R136: =SUM(P136,Q136) -> 0 | U136: =SUM(S136,T136) -> 0 | X136: =SUM(V136,W136) -> 0 | AA136: =SUM(Y136,Z136) -> 0 | AD136: =SUM(AB136,AC136) -> 0
B137: Directivas/os | F137: =SUM(D137,E137) -> 0 | I137: 0 | L137: 0 | O137: 0 | R137: 0 | U137: 0 | X137: 0 | AA137: 0 | AD137: 0
B138: Docentes | F138: =SUM(D138,E138) -> 0 | I138: =SUM(G138,H138) -> 0 | L138: 0 | O138: 0 | R138: 0 | U138: 0 | X138: 0 | AA138: 0 | AD138: 0
B139: Equipo de apoyo | F139: =SUM(D139,E139) -> 0 | I139: =SUM(G139,H139) -> 0 | L139: 0 | O139: 0 | R139: 0 | U139: 0 | X139: 0 | AA139: 0 | AD139: 0
B140: Familias | F140: 0 | I140: 0 | L140: 0 | O140: 0 | R140: 0 | U140: 0 | X140: 0 | AA140: 0 | AD140: 0
B141: Docentes de EB | F141: 0 | I141: 0 | L141: 0 | O141: 0 | R141: 0 | U141: 0 | X141: 0 | AA141: 0 | AD141: 0
B142: Otros | F142: 0 | I142: 0 | L142: 0 | O142: 0 | R142: 0 | U142: 0 | X142: 0 | AA142: 0 | AD142: 0
B143: TOTAL | D143: =SUM(D135:D142) -> 0 | E143: 0 | F143: 0 | G143: 0 | H143: 0 | I143: 0 | J143: 0 | K143: 0 | L143: 0 | M143: 0 | N143: 0 | O143: 0 | P143: 0 | Q143: 0 | R143: 0 | S143: 0 | T143: 0 | U143: 0 | V143: 0 | W143: 0 | X143: 0 | Y143: 0 | Z143: 0 | AA143: 0 | AB143: 0 | AC143: 0 | AD143: 0
B145: En caso de requerir alguna precisión o aclaración, describa brevemente:
B148: Numero de actividad | D148: 1.1.9
A149: =T149 -> 0 | B149: Tipo de actividad | D149: Trimestre de inicio | I149: Trimestre de término | O149: Presupuesto de la actividad | T149: 0 | W149: Título de la actividad
D150: USAER | G150: CAM básico | J150: CAM básico con FpT | M150: CAM laboral | P150: CAPEP | S150: CRIE | V150: UOP | Y150: UAEBH | AB150: Otro | AE150: Especifique producto o servicio en lo que se planea ejercer | AF150: Propósito de la actividad
D151: SEE: | G151: SEE: | J151: SEE: | M151: SEE: | P151: SEE: | S151: SEE: | V151: SEE: | Y151: SEE: | AB151: SEE:
D152: M | E152: H | F152: T | G152: M | H152: H | I152: T | J152: M | K152: H | L152: T | M152: M | N152: H | O152: T | P152: M | Q152: H | R152: T | S152: M | T152: H | U152: T | V152: M | W152: H | X152: T | Y152: M | Z152: H | AA152: T | AB152: M | AC152: H | AD152: T
B153: Supervisores | F153: =SUM(D153,E153) -> 0 | I153: =SUM(G153,H153) -> 0 | L153: =SUM(J153,K153) -> 0 | O153: =SUM(M153,N153) -> 0 | R153: =SUM(P153,Q153) -> 0 | U153: =SUM(S153,T153) -> 0 | X153: =SUM(V153,W153) -> 0 | AA153: =SUM(Y153,Z153) -> 0 | AD153: =SUM(AB153,AC153) -> 0
B154: Directivas/os | F154: =SUM(D154,E154) -> 0 | I154: 0 | L154: 0 | O154: 0 | R154: 0 | U154: 0 | X154: 0 | AA154: 0 | AD154: 0
B155: Docentes | F155: =SUM(D155,E155) -> 0 | I155: =SUM(G155,H155) -> 0 | L155: 0 | O155: 0 | R155: 0 | U155: 0 | X155: 0 | AA155: 0 | AD155: 0
B156: Equipo de apoyo | F156: =SUM(D156,E156) -> 0 | I156: =SUM(G156,H156) -> 0 | L156: 0 | O156: 0 | R156: 0 | U156: 0 | X156: 0 | AA156: 0 | AD156: 0
B157: Familias | F157: 0 | I157: 0 | L157: 0 | O157: 0 | R157: 0 | U157: 0 | X157: 0 | AA157: 0 | AD157: 0
B158: Docentes de EB | F158: 0 | I158: 0 | L158: 0 | O158: 0 | R158: 0 | U158: 0 | X158: 0 | AA158: 0 | AD158: 0
B159: Otros | F159: 0 | I159: 0 | L159: 0 | O159: 0 | R159: 0 | U159: 0 | X159: 0 | AA159: 0 | AD159: 0
B160: TOTAL | D160: =SUM(D152:D159) -> 0 | E160: 0 | F160: 0 | G160: 0 | H160: 0 | I160: 0 | J160: 0 | K160: 0 | L160: 0 | M160: 0 | N160: 0 | O160: 0 | P160: 0 | Q160: 0 | R160: 0 | S160: 0 | T160: 0 | U160: 0 | V160: 0 | W160: 0 | X160: 0 | Y160: 0 | Z160: 0 | AA160: 0 | AB160: 0 | AC160: 0 | AD160: 0
B162: En caso de requerir alguna precisión o aclaración, describa brevemente:
B165: Numero de actividad | D165: 1.1.10
A166: =T166 -> 0 | B166: Tipo de actividad | D166: Trimestre de inicio | I166: Trimestre de término | O166: Presupuesto de la actividad | T166: 0 | W166: Título de la actividad
D167: USAER | G167: CAM básico | J167: CAM básico con FpT | M167: CAM laboral | P167: CAPEP | S167: CRIE | V167: UOP | Y167: UAEBH | AB167: Otro | AE167: Especifique producto o servicio en lo que se planea ejercer | AF167: Propósito de la actividad
D168: SEE: | G168: SEE: | J168: SEE: | M168: SEE: | P168: SEE: | S168: SEE: | V168: SEE: | Y168: SEE: | AB168: SEE:
D169: M | E169: H | F169: T | G169: M | H169: H | I169: T | J169: M | K169: H | L169: T | M169: M | N169: H | O169: T | P169: M | Q169: H | R169: T | S169: M | T169: H | U169: T | V169: M | W169: H | X169: T | Y169: M | Z169: H | AA169: T | AB169: M | AC169: H | AD169: T
B170: Supervisores | F170: =SUM(D170,E170) -> 0 | I170: =SUM(G170,H170) -> 0 | L170: =SUM(J170,K170) -> 0 | O170: =SUM(M170,N170) -> 0 | R170: =SUM(P170,Q170) -> 0 | U170: =SUM(S170,T170) -> 0 | X170: =SUM(V170,W170) -> 0 | AA170: =SUM(Y170,Z170) -> 0 | AD170: =SUM(AB170,AC170) -> 0
B171: Directivas/os | F171: =SUM(D171,E171) -> 0 | I171: 0 | L171: 0 | O171: 0 | R171: 0 | U171: 0 | X171: 0 | AA171: 0 | AD171: 0
B172: Docentes | F172: =SUM(D172,E172) -> 0 | I172: =SUM(G172,H172) -> 0 | L172: 0 | O172: 0 | R172: 0 | U172: 0 | X172: 0 | AA172: 0 | AD172: 0
B173: Equipo de apoyo | F173: =SUM(D173,E173) -> 0 | I173: =SUM(G173,H173) -> 0 | L173: 0 | O173: 0 | R173: 0 | U173: 0 | X173: 0 | AA173: 0 | AD173: 0
B174: Familias | F174: 0 | I174: 0 | L174: 0 | O174: 0 | R174: 0 | U174: 0 | X174: 0 | AA174: 0 | AD174: 0
B175: Docentes de EB | F175: 0 | I175: 0 | L175: 0 | O175: 0 | R175: 0 | U175: 0 | X175: 0 | AA175: 0 | AD175: 0
B176: Otros | F176: 0 | I176: 0 | L176: 0 | O176: 0 | R176: 0 | U176: 0 | X176: 0 | AA176: 0 | AD176: 0
B177: TOTAL | D177: =SUM(D169:D176) -> 0 | E177: 0 | F177: 0 | G177: 0 | H177: 0 | I177: 0 | J177: 0 | K177: 0 | L177: 0 | M177: 0 | N177: 0 | O177: 0 | P177: 0 | Q177: 0 | R177: 0 | S177: 0 | T177: 0 | U177: 0 | V177: 0 | W177: 0 | X177: 0 | Y177: 0 | Z177: 0 | AA177: 0 | AB177: 0 | AC177: 0 | AD177: 0
B179: En caso de requerir alguna precisión o aclaración, describa brevemente:
B182: Numero de actividad | D182: 1.1.11
A183: =T183 -> 0 | B183: Tipo de actividad | D183: Trimestre de inicio | I183: Trimestre de término | O183: Presupuesto de la actividad | T183: 0 | W183: Título de la actividad
D184: USAER | G184: CAM básico | J184: CAM básico con FpT | M184: CAM laboral | P184: CAPEP | S184: CRIE | V184: UOP | Y184: UAEBH | AB184: Otro | AE184: Especifique producto o servicio en lo que se planea ejercer | AF184: Propósito de la actividad
D185: SEE: | G185: SEE: | J185: SEE: | M185: SEE: | P185: SEE: | S185: SEE: | V185: SEE: | Y185: SEE: | AB185: SEE:
D186: M | E186: H | F186: T | G186: M | H186: H | I186: T | J186: M | K186: H | L186: T | M186: M | N186: H | O186: T | P186: M | Q186: H | R186: T | S186: M | T186: H | U186: T | V186: M | W186: H | X186: T | Y186: M | Z186: H | AA186: T | AB186: M | AC186: H | AD186: T
B187: Supervisores | F187: =SUM(D187,E187) -> 0 | I187: =SUM(G187,H187) -> 0 | L187: =SUM(J187,K187) -> 0 | O187: =SUM(M187,N187) -> 0 | R187: =SUM(P187,Q187) -> 0 | U187: =SUM(S187,T187) -> 0 | X187: =SUM(V187,W187) -> 0 | AA187: =SUM(Y187,Z187) -> 0 | AD187: =SUM(AB187,AC187) -> 0
B188: Directivas/os | F188: =SUM(D188,E188) -> 0 | I188: 0 | L188: 0 | O188: 0 | R188: 0 | U188: 0 | X188: 0 | AA188: 0 | AD188: 0
B189: Docentes | F189: =SUM(D189,E189) -> 0 | I189: =SUM(G189,H189) -> 0 | L189: 0 | O189: 0 | R189: 0 | U189: 0 | X189: 0 | AA189: 0 | AD189: 0
B190: Equipo de apoyo | F190: =SUM(D190,E190) -> 0 | I190: =SUM(G190,H190) -> 0 | L190: 0 | O190: 0 | R190: 0 | U190: 0 | X190: 0 | AA190: 0 | AD190: 0
B191: Familias | F191: 0 | I191: 0 | L191: 0 | O191: 0 | R191: 0 | U191: 0 | X191: 0 | AA191: 0 | AD191: 0
B192: Docentes de EB | F192: 0 | I192: 0 | L192: 0 | O192: 0 | R192: 0 | U192: 0 | X192: 0 | AA192: 0 | AD192: 0
B193: Otros | F193: 0 | I193: 0 | L193: 0 | O193: 0 | R193: 0 | U193: 0 | X193: 0 | AA193: 0 | AD193: 0
B194: TOTAL | D194: =SUM(D186:D193) -> 0 | E194: 0 | F194: 0 | G194: 0 | H194: 0 | I194: 0 | J194: 0 | K194: 0 | L194: 0 | M194: 0 | N194: 0 | O194: 0 | P194: 0 | Q194: 0 | R194: 0 | S194: 0 | T194: 0 | U194: 0 | V194: 0 | W194: 0 | X194: 0 | Y194: 0 | Z194: 0 | AA194: 0 | AB194: 0 | AC194: 0 | AD194: 0
B196: En caso de requerir alguna precisión o aclaración, describa brevemente:
B199: Numero de actividad | D199: 1.1.12
A200: =T200 -> 0 | B200: Tipo de actividad | D200: Trimestre de inicio | I200: Trimestre de término | O200: Presupuesto de la actividad | T200: 0 | W200: Título de la actividad
D201: USAER | G201: CAM básico | J201: CAM básico con FpT | M201: CAM laboral | P201: CAPEP | S201: CRIE | V201: UOP | Y201: UAEBH | AB201: Otro | AE201: Especifique producto o servicio en lo que se planea ejercer | AF201: Propósito de la actividad
D202: SEE: | G202: SEE: | J202: SEE: | M202: SEE: | P202: SEE: | S202: SEE: | V202: SEE: | Y202: SEE: | AB202: SEE:
D203: M | E203: H | F203: T | G203: M | H203: H | I203: T | J203: M | K203: H | L203: T | M203: M | N203: H | O203: T | P203: M | Q203: H | R203: T | S203: M | T203: H | U203: T | V203: M | W203: H | X203: T | Y203: M | Z203: H | AA203: T | AB203: M | AC203: H | AD203: T
B204: Supervisores | F204: =SUM(D204,E204) -> 0 | I204: =SUM(G204,H204) -> 0 | L204: =SUM(J204,K204) -> 0 | O204: =SUM(M204,N204) -> 0 | R204: =SUM(P204,Q204) -> 0 | U204: =SUM(S204,T204) -> 0 | X204: =SUM(V204,W204) -> 0 | AA204: =SUM(Y204,Z204) -> 0 | AD204: =SUM(AB204,AC204) -> 0
B205: Directivas/os | F205: =SUM(D205,E205) -> 0 | I205: 0 | L205: 0 | O205: 0 | R205: 0 | U205: 0 | X205: 0 | AA205: 0 | AD205: 0
B206: Docentes | F206: =SUM(D206,E206) -> 0 | I206: =SUM(G206,H206) -> 0 | L206: 0 | O206: 0 | R206: 0 | U206: 0 | X206: 0 | AA206: 0 | AD206: 0
B207: Equipo de apoyo | F207: =SUM(D207,E207) -> 0 | I207: =SUM(G207,H207) -> 0 | L207: 0 | O207: 0 | R207: 0 | U207: 0 | X207: 0 | AA207: 0 | AD207: 0
B208: Familias | F208: 0 | I208: 0 | L208: 0 | O208: 0 | R208: 0 | U208: 0 | X208: 0 | AA208: 0 | AD208: 0
B209: Docentes de EB | F209: 0 | I209: 0 | L209: 0 | O209: 0 | R209: 0 | U209: 0 | X209: 0 | AA209: 0 | AD209: 0
B210: Otros | F210: 0 | I210: 0 | L210: 0 | O210: 0 | R210: 0 | U210: 0 | X210: 0 | AA210: 0 | AD210: 0
B211: TOTAL | D211: =SUM(D203:D210) -> 0 | E211: 0 | F211: 0 | G211: 0 | H211: 0 | I211: 0 | J211: 0 | K211: 0 | L211: 0 | M211: 0 | N211: 0 | O211: 0 | P211: 0 | Q211: 0 | R211: 0 | S211: 0 | T211: 0 | U211: 0 | V211: 0 | W211: 0 | X211: 0 | Y211: 0 | Z211: 0 | AA211: 0 | AB211: 0 | AC211: 0 | AD211: 0
B213: En caso de requerir alguna precisión o aclaración, describa brevemente:
B216: Numero de actividad | D216: 1.1.13
A217: =T217 -> 0 | B217: Tipo de actividad | D217: Trimestre de inicio | I217: Trimestre de término | O217: Presupuesto de la actividad | T217: 0 | W217: Título de la actividad
D218: USAER | G218: CAM básico | J218: CAM básico con FpT | M218: CAM laboral | P218: CAPEP | S218: CRIE | V218: UOP | Y218: UAEBH | AB218: Otro | AE218: Especifique producto o servicio en lo que se planea ejercer | AF218: Propósito de la actividad
D219: SEE: | G219: SEE: | J219: SEE: | M219: SEE: | P219: SEE: | S219: SEE: | V219: SEE: | Y219: SEE: | AB219: SEE:
D220: M | E220: H | F220: T | G220: M | H220: H | I220: T | J220: M | K220: H | L220: T | M220: M | N220: H | O220: T | P220: M | Q220: H | R220: T | S220: M | T220: H | U220: T | V220: M | W220: H | X220: T | Y220: M | Z220: H | AA220: T | AB220: M | AC220: H | AD220: T
B221: Supervisores | F221: =SUM(D221,E221) -> 0 | I221: =SUM(G221,H221) -> 0 | L221: =SUM(J221,K221) -> 0 | O221: =SUM(M221,N221) -> 0 | R221: =SUM(P221,Q221) -> 0 | U221: =SUM(S221,T221) -> 0 | X221: =SUM(V221,W221) -> 0 | AA221: =SUM(Y221,Z221) -> 0 | AD221: =SUM(AB221,AC221) -> 0
B222: Directivas/os | F222: =SUM(D222,E222) -> 0 | I222: 0 | L222: 0 | O222: 0 | R222: 0 | U222: 0 | X222: 0 | AA222: 0 | AD222: 0
B223: Docentes | F223: =SUM(D223,E223) -> 0 | I223: =SUM(G223,H223) -> 0 | L223: 0 | O223: 0 | R223: 0 | U223: 0 | X223: 0 | AA223: 0 | AD223: 0
B224: Equipo de apoyo | F224: =SUM(D224,E224) -> 0 | I224: =SUM(G224,H224) -> 0 | L224: 0 | O224: 0 | R224: 0 | U224: 0 | X224: 0 | AA224: 0 | AD224: 0
B225: Familias | F225: 0 | I225: 0 | L225: 0 | O225: 0 | R225: 0 | U225: 0 | X225: 0 | AA225: 0 | AD225: 0
B226: Docentes de EB | F226: 0 | I226: 0 | L226: 0 | O226: 0 | R226: 0 | U226: 0 | X226: 0 | AA226: 0 | AD226: 0
B227: Otros | F227: 0 | I227: 0 | L227: 0 | O227: 0 | R227: 0 | U227: 0 | X227: 0 | AA227: 0 | AD227: 0
B228: TOTAL | D228: =SUM(D220:D227) -> 0 | E228: 0 | F228: 0 | G228: 0 | H228: 0 | I228: 0 | J228: 0 | K228: 0 | L228: 0 | M228: 0 | N228: 0 | O228: 0 | P228: 0 | Q228: 0 | R228: 0 | S228: 0 | T228: 0 | U228: 0 | V228: 0 | W228: 0 | X228: 0 | Y228: 0 | Z228: 0 | AA228: 0 | AB228: 0 | AC228: 0 | AD228: 0
B230: En caso de requerir alguna precisión o aclaración, describa brevemente:
B233: Numero de actividad | D233: 1.1.14
A234: =T234 -> 0 | B234: Tipo de actividad | D234: Trimestre de inicio | I234: Trimestre de término | O234: Presupuesto de la actividad | T234: 0 | W234: Título de la actividad
D235: USAER | G235: CAM básico | J235: CAM básico con FpT | M235: CAM laboral | P235: CAPEP | S235: CRIE | V235: UOP | Y235: UAEBH | AB235: Otro | AE235: Especifique producto o servicio en lo que se planea ejercer | AF235: Propósito de la actividad
D236: SEE: | G236: SEE: | J236: SEE: | M236: SEE: | P236: SEE: | S236: SEE: | V236: SEE: | Y236: SEE: | AB236: SEE:
D237: M | E237: H | F237: T | G237: M | H237: H | I237: T | J237: M | K237: H | L237: T | M237: M | N237: H | O237: T | P237: M | Q237: H | R237: T | S237: M | T237: H | U237: T | V237: M | W237: H | X237: T | Y237: M | Z237: H | AA237: T | AB237: M | AC237: H | AD237: T
B238: Supervisores | F238: =SUM(D238,E238) -> 0 | I238: =SUM(G238,H238) -> 0 | L238: =SUM(J238,K238) -> 0 | O238: =SUM(M238,N238) -> 0 | R238: =SUM(P238,Q238) -> 0 | U238: =SUM(S238,T238) -> 0 | X238: =SUM(V238,W238) -> 0 | AA238: =SUM(Y238,Z238) -> 0 | AD238: =SUM(AB238,AC238) -> 0
... 137 more rows

Sheet Acciones académicas AS 2025
B1: Subsecretaría de Educación Básica Dirección General de Desarrollo Curricular Dirección de Fortalecimiento Curricular para la Formación Personal y Social en la Educación Básica Educación Especial
B6: Componente: 1. Acciones académicas para Agentes educativos en temas de aptitudes sobresalientes
B7: Para garantizar el cumplimiento de los objetivos del PFSEE las AEL podrán destinar hasta un 50% del recurso, de acuerdo con lo estipulado en las reglas de operación 2025.
B8: 1.1 Desarrollo de acciones de actualización y fortalecimiento académico de Agentes educativos en temas de aptitudes sobresalientes
B9: Recurso programado: | F9: ='Distribución presupuestal 2025'!W51 -> 539756 | J9: SEE focalizados: | M9: USAER | N9: ='SEE 2025'!N16 -> 76 | O9: CAPEP | P9: ='SEE 2025'!O16 -> 0 | Q9: CRIE | R9: ='SEE 2025'!P16 -> 0 | S9: UOP | T9: ='SEE 2025'!Q16 -> 0 | U9: UAEBH | V9: ='SEE 2025'!R16 -> 0 | W9: Otro | X9: ='SEE 2025'!S16 -> 1
B10: Remanente: | F10: =F9-SUM(A13:A351) -> 0
B12: Numero de actividad | D12: 1.1.1
A13: =T13 -> 336292 | B13: Tipo de actividad | D13: Trimestre de inicio | G13: 3ro | I13: Trimestre de término | M13: 4to | O13: Presupuesto de la actividad | T13: 336292 | W13: Título de la actividad | AA13: METODOLOGÍAS INNOVADORAS CON ENFOQUE STEAM
B14: Taller | D14: USAER | G14: CAPEP | J14: CRIE | M14: UOP | P14: UAEBH | S14: Otro | V14: Especifique producto o servicio en lo que se planea ejercer | Z14: Propósito de la actividad
D15: SEE: | E15: 76 | G15: SEE: | H15: 0 | J15: SEE: | K15: 0 | M15: SEE: | N15: 0 | P15: SEE: | Q15: 0 | S15: SEE: | T15: 1
D16: M | E16: H | F16: T | G16: M | H16: H | I16: T | J16: M | K16: H | L16: T | M16: M | N16: H | O16: T | P16: M | Q16: H | R16: T | S16: M | T16: H | U16: T
B17: Supervisores | D17: 2 | E17: 1 | F17: =SUM(D17,E17) -> 3 | G17: 0 | H17: 0 | I17: =SUM(G17,H17) -> 0 | J17: 0 | K17: 0 | L17: =SUM(J17,K17) -> 0 | M17: 0 | N17: 0 | O17: =SUM(M17,N17) -> 0 | P17: 0 | Q17: 0 | R17: =SUM(P17,Q17) -> 0 | S17: 0 | T17: 0 | U17: =SUM(S17,T17) -> 0 | V17: Pago a conferencistas o talleristas | Z17: Capacitar a los docentes en la implementación de metodologías innovadoras dentro del enfoque STEAM, proporcionando herramientas y estrategias prácticas que fomenten el aprendizaje colaborativo, la creatividad y el pensamiento crítico en sus estudiantes, al mismo tiempo que integran las disciplinas de Ciencia, Tecnología, Ingeniería, Artes y Matemáticas de manera interdisciplinaria.
B18: Directivas/os | D18: 0 | E18: 0 | F18: =SUM(D18,E18) -> 0 | G18: 0 | H18: 0 | I18: 0 | J18: 0 | K18: 0 | L18: 0 | M18: 0 | N18: 0 | O18: 0 | P18: 0 | Q18: 0 | R18: 0 | S18: 0 | T18: 0 | U18: 0 | V18: Reproducción de materiales
B19: Docentes | D19: 96 | E19: 46 | F19: =SUM(D19,E19) -> 142 | G19: 0 | H19: 0 | I19: 0 | J19: 0 | K19: 0 | L19: 0 | M19: 0 | N19: 0 | O19: 0 | P19: 0 | Q19: 0 | R19: 0 | S19: 1 | T19: 0 | U19: 1 | V19: N/A
B20: Equipo de apoyo | D20: 0 | E20: 0 | F20: 0 | G20: 0 | H20: 0 | I20: 0 | J20: 0 | K20: 0 | L20: 0 | M20: 0 | N20: 0 | O20: 0 | P20: 0 | Q20: 0 | R20: 0 | S20: 0 | T20: 0 | U20: 0 | V20: N/A
B21: Familias | D21: 0 | E21: 0 | F21: 0 | G21: 0 | H21: 0 | I21: 0 | J21: 0 | K21: 0 | L21: 0 | M21: 0 | N21: 0 | O21: 0 | P21: 0 | Q21: 0 | R21: 0 | S21: 0 | T21: 0 | U21: 0 | V21: N/A
B22: Docentes de EB | D22: 0 | E22: 0 | F22: 0 | G22: 0 | H22: 0 | I22: 0 | J22: 0 | K22: 0 | L22: 0 | M22: 0 | N22: 0 | O22: 0 | P22: 0 | Q22: 0 | R22: 0 | S22: 0 | T22: 0 | U22: 0 | V22: N/A
B23: Otros | D23: 3 | E23: 1 | F23: 4 | G23: 0 | H23: 0 | I23: 0 | J23: 0 | K23: 0 | L23: 0 | M23: 0 | N23: 0 | O23: 0 | P23: 0 | Q23: 0 | R23: 0 | S23: 0 | T23: 0 | U23: 0 | V23: N/A
B24: TOTAL | D24: =SUM(D16:D23) -> 101 | E24: 48 | F24: 149 | G24: 0 | H24: 0 | I24: 0 | J24: 0 | K24: 0 | L24: 0 | M24: 0 | N24: 0 | O24: 0 | P24: 0 | Q24: 0 | R24: 0 | S24: 1 | T24: 0 | U24: 1 | V24: N/A
B26: En caso de requerir alguna precisión o aclaración, describa brevemente:
B27: 40 horas modalidad mixta, 30 horas presenciales, 10 horas a distancia. Durango 3 grupos y Laguna 2 grupos. Otro:1 docente de Centro de Iniciación a la Ciencia y la Tecnología.
B29: Numero de actividad | D29: 1.1.2
A30: =T30 -> 203464 | B30: Tipo de actividad | D30: Trimestre de inicio | G30: 3ro | I30: Trimestre de término | M30: 4to | O30: Presupuesto de la actividad | T30: 203464 | W30: Título de la actividad | AA30: HABILIDADES DIGITALES CENTRADO EN INTELIGENCIA ARTIFICIAL
B31: Taller | D31: USAER | G31: CAPEP | J31: CRIE | M31: UOP | P31: UAEBH | S31: Otro | V31: Especifique producto o servicio en lo que se planea ejercer | Z31: Propósito de la actividad
D32: SEE: | E32: 76 | G32: SEE: | H32: 0 | J32: SEE: | K32: 0 | M32: SEE: | N32: 0 | P32: SEE: | Q32: 0 | S32: SEE: | T32: 0
D33: M | E33: H | F33: T | G33: M | H33: H | I33: T | J33: M | K33: H | L33: T | M33: M | N33: H | O33: T | P33: M | Q33: H | R33: T | S33: M | T33: H | U33: T
B34: Supervisores | D34: 2 | E34: 1 | F34: =SUM(D34,E34) -> 3 | G34: 0 | H34: 0 | I34: =SUM(G34,H34) -> 0 | J34: 0 | K34: 0 | L34: =SUM(J34,K34) -> 0 | M34: 0 | N34: 0 | O34: =SUM(M34,N34) -> 0 | P34: 0 | Q34: 0 | R34: =SUM(P34,Q34) -> 0 | S34: 0 | T34: 0 | U34: =SUM(S34,T34) -> 0 | V34: Pago a conferencistas o talleristas | Z34: Proveer a los docentes con conocimientos y habilidades en el uso de herramientas de inteligencia artificial para personalizar y enriquecer la educación de alumnos con aptitudes sobresalientes, facilitando estrategias que potencien su aprendizaje autónomo, creatividad y pensamiento crítico.
B35: Directivas/os | D35: 0 | E35: 0 | F35: =SUM(D35,E35) -> 0 | G35: 0 | H35: 0 | I35: 0 | J35: 0 | K35: 0 | L35: 0 | M35: 0 | N35: 0 | O35: 0 | P35: 0 | Q35: 0 | R35: 0 | S35: 0 | T35: 0 | U35: 0 | V35: Reproducción de materiales
B36: Docentes | D36: 97 | E36: 46 | F36: =SUM(D36,E36) -> 143 | G36: 0 | H36: 0 | I36: 0 | J36: 0 | K36: 0 | L36: 0 | M36: 0 | N36: 0 | O36: 0 | P36: 0 | Q36: 0 | R36: 0 | S36: 0 | T36: 0 | U36: 0 | V36: N/A
B37: Equipo de apoyo | D37: 0 | E37: 0 | F37: =SUM(D37,E37) -> 0 | G37: 0 | H37: 0 | I37: 0 | J37: 0 | K37: 0 | L37: 0 | M37: 0 | N37: 0 | O37: 0 | P37: 0 | Q37: 0 | R37: 0 | S37: 0 | T37: 0 | U37: 0 | V37: N/A
B38: Familias | D38: 0 | E38: 0 | F38: 0 | G38: 0 | H38: 0 | I38: 0 | J38: 0 | K38: 0 | L38: 0 | M38: 0 | N38: 0 | O38: 0 | P38: 0 | Q38: 0 | R38: 0 | S38: 0 | T38: 0 | U38: 0 | V38: N/A
B39: Docentes de EB | D39: 0 | E39: 0 | F39: 0 | G39: 0 | H39: 0 | I39: 0 | J39: 0 | K39: 0 | L39: 0 | M39: 0 | N39: 0 | O39: 0 | P39: 0 | Q39: 0 | R39: 0 | S39: 0 | T39: 0 | U39: 0 | V39: N/A
B40: Otros | D40: 3 | E40: 1 | F40: 4 | G40: 0 | H40: 0 | I40: 0 | J40: 0 | K40: 0 | L40: 0 | M40: 0 | N40: 0 | O40: 0 | P40: 0 | Q40: 0 | R40: 0 | S40: 0 | T40: 0 | U40: 0 | V40: N/A
B41: TOTAL | D41: =SUM(D33:D40) -> 102 | E41: 48 | F41: 150 | G41: 0 | H41: 0 | I41: 0 | J41: 0 | K41: 0 | L41: 0 | M41: 0 | N41: 0 | O41: 0 | P41: 0 | Q41: 0 | R41: 0 | S41: 0 | T41: 0 | U41: 0 | V41: N/A
B43: En caso de requerir alguna precisión o aclaración, describa brevemente:
B44: Capacitación a 150 agentes de educación especial, 40 horas modalidad mixta, 30 horas presenciales y 10 horas a distancia. Durango y región laguna. 3 grupos Durango, 2 región laguna.
B46: Numero de actividad | D46: 1.1.3
A47: =T47 -> 0 | B47: Tipo de actividad | D47: Trimestre de inicio | I47: Trimestre de término | O47: Presupuesto de la actividad | T47: 0 | W47: Título de la actividad
D48: USAER | G48: CAPEP | J48: CRIE | M48: UOP | P48: UAEBH | S48: Otro | V48: Especifique producto o servicio en lo que se planea ejercer | Z48: Propósito de la actividad
D49: SEE: | E49: 0 | G49: SEE: | H49: 0 | J49: SEE: | K49: 0 | M49: SEE: | N49: 0 | P49: SEE: | Q49: 0 | S49: SEE: | T49: 0
D50: M | E50: H | F50: T | G50: M | H50: H | I50: T | J50: M | K50: H | L50: T | M50: M | N50: H | O50: T | P50: M | Q50: H | R50: T | S50: M | T50: H | U50: T
B51: Supervisores | D51: 0 | E51: 0 | F51: =SUM(D51,E51) -> 0 | G51: 0 | H51: 0 | I51: =SUM(G51,H51) -> 0 | J51: 0 | K51: 0 | L51: =SUM(J51,K51) -> 0 | M51: 0 | N51: 0 | O51: =SUM(M51,N51) -> 0 | P51: 0 | Q51: 0 | R51: =SUM(P51,Q51) -> 0 | S51: 0 | T51: 0 | U51: =SUM(S51,T51) -> 0
B52: Directivas/os | D52: 0 | E52: 0 | F52: =SUM(D52,E52) -> 0 | G52: 0 | H52: 0 | I52: 0 | J52: 0 | K52: 0 | L52: 0 | M52: 0 | N52: 0 | O52: 0 | P52: 0 | Q52: 0 | R52: 0 | S52: 0 | T52: 0 | U52: 0
B53: Docentes | D53: 0 | E53: 0 | F53: =SUM(D53,E53) -> 0 | G53: 0 | H53: 0 | I53: 0 | J53: 0 | K53: 0 | L53: 0 | M53: 0 | N53: 0 | O53: 0 | P53: 0 | Q53: 0 | R53: 0 | S53: 0 | T53: 0 | U53: 0
B54: Equipo de apoyo | D54: 0 | E54: 0 | F54: =SUM(D54,E54) -> 0 | G54: 0 | H54: 0 | I54: 0 | J54: 0 | K54: 0 | L54: 0 | M54: 0 | N54: 0 | O54: 0 | P54: 0 | Q54: 0 | R54: 0 | S54: 0 | T54: 0 | U54: 0
B55: Familias | D55: 0 | E55: 0 | F55: 0 | G55: 0 | H55: 0 | I55: 0 | J55: 0 | K55: 0 | L55: 0 | M55: 0 | N55: 0 | O55: 0 | P55: 0 | Q55: 0 | R55: 0 | S55: 0 | T55: 0 | U55: 0
B56: Docentes de EB | D56: 0 | E56: 0 | F56: 0 | G56: 0 | H56: 0 | I56: 0 | J56: 0 | K56: 0 | L56: 0 | M56: 0 | N56: 0 | O56: 0 | P56: 0 | Q56: 0 | R56: 0 | S56: 0 | T56: 0 | U56: 0
B57: Otros | D57: 0 | E57: 0 | F57: 0 | G57: 0 | H57: 0 | I57: 0 | J57: 0 | K57: 0 | L57: 0 | M57: 0 | N57: 0 | O57: 0 | P57: 0 | Q57: 0 | R57: 0 | S57: 0 | T57: 0 | U57: 0
B58: TOTAL | D58: =SUM(D50:D57) -> 0 | E58: 0 | F58: 0 | G58: 0 | H58: 0 | I58: 0 | J58: 0 | K58: 0 | L58: 0 | M58: 0 | N58: 0 | O58: 0 | P58: 0 | Q58: 0 | R58: 0 | S58: 0 | T58: 0 | U58: 0
B60: En caso de requerir alguna precisión o aclaración, describa brevemente:
B63: Numero de actividad | D63: 1.1.4
A64: =T64 -> 0 | B64: Tipo de actividad | D64: Trimestre de inicio | I64: Trimestre de término | O64: Presupuesto de la actividad | T64: 0 | W64: Título de la actividad
D65: USAER | G65: CAPEP | J65: CRIE | M65: UOP | P65: UAEBH | S65: Otro | V65: Especifique producto o servicio en lo que se planea ejercer | Z65: Propósito de la actividad
D66: SEE: | G66: SEE: | J66: SEE: | M66: SEE: | P66: SEE: | S66: SEE:
D67: M | E67: H | F67: T | G67: M | H67: H | I67: T | J67: M | K67: H | L67: T | M67: M | N67: H | O67: T | P67: M | Q67: H | R67: T | S67: M | T67: H | U67: T
B68: Supervisores | F68: =SUM(D68,E68) -> 0 | I68: =SUM(G68,H68) -> 0 | L68: =SUM(J68,K68) -> 0 | O68: =SUM(M68,N68) -> 0 | R68: =SUM(P68,Q68) -> 0 | U68: =SUM(S68,T68) -> 0
B69: Directivas/os | F69: =SUM(D69,E69) -> 0 | I69: 0 | L69: 0 | O69: 0 | R69: 0 | U69: 0
B70: Docentes | F70: =SUM(D70,E70) -> 0 | I70: 0 | L70: 0 | O70: 0 | R70: 0 | U70: 0
B71: Equipo de apoyo | F71: =SUM(D71,E71) -> 0 | I71: 0 | L71: 0 | O71: 0 | R71: 0 | U71: 0
B72: Familias | F72: 0 | I72: 0 | L72: 0 | O72: 0 | R72: 0 | U72: 0
B73: Docentes de EB | F73: 0 | I73: 0 | L73: 0 | O73: 0 | R73: 0 | U73: 0
B74: Otros | F74: 0 | I74: 0 | L74: 0 | O74: 0 | R74: 0 | U74: 0
B75: TOTAL | D75: =SUM(D67:D74) -> 0 | E75: 0 | F75: 0 | G75: 0 | H75: 0 | I75: 0 | J75: 0 | K75: 0 | L75: 0 | M75: 0 | N75: 0 | O75: 0 | P75: 0 | Q75: 0 | R75: 0 | S75: 0 | T75: 0 | U75: 0
B77: En caso de requerir alguna precisión o aclaración, describa brevemente:
B80: Numero de actividad | D80: 1.1.5
A81: =T81 -> 0 | B81: Tipo de actividad | D81: Trimestre de inicio | I81: Trimestre de término | O81: Presupuesto de la actividad | T81: 0 | W81: Título de la actividad
D82: USAER | G82: CAPEP | J82: CRIE | M82: UOP | P82: UAEBH | S82: Otro | V82: Especifique producto o servicio en lo que se planea ejercer | Z82: Propósito de la actividad
D83: SEE: | G83: SEE: | J83: SEE: | M83: SEE: | P83: SEE: | S83: SEE:
D84: M | E84: H | F84: T | G84: M | H84: H | I84: T | J84: M | K84: H | L84: T | M84: M | N84: H | O84: T | P84: M | Q84: H | R84: T | S84: M | T84: H | U84: T
B85: Supervisores | F85: =SUM(D85,E85) -> 0 | I85: =SUM(G85,H85) -> 0 | L85: =SUM(J85,K85) -> 0 | O85: =SUM(M85,N85) -> 0 | R85: =SUM(P85,Q85) -> 0 | U85: =SUM(S85,T85) -> 0
B86: Directivas/os | F86: =SUM(D86,E86) -> 0 | I86: 0 | L86: 0 | O86: 0 | R86: 0 | U86: 0
B87: Docentes | F87: =SUM(D87,E87) -> 0 | I87: 0 | L87: 0 | O87: 0 | R87: 0 | U87: 0
B88: Equipo de apoyo | F88: =SUM(D88,E88) -> 0 | I88: 0 | L88: 0 | O88: 0 | R88: 0 | U88: 0
B89: Familias | F89: 0 | I89: 0 | L89: 0 | O89: 0 | R89: 0 | U89: 0
B90: Docentes de EB | F90: 0 | I90: 0 | L90: 0 | O90: 0 | R90: 0 | U90: 0
B91: Otros | F91: 0 | I91: 0 | L91: 0 | O91: 0 | R91: 0 | U91: 0
B92: TOTAL | D92: =SUM(D84:D91) -> 0 | E92: 0 | F92: 0 | G92: 0 | H92: 0 | I92: 0 | J92: 0 | K92: 0 | L92: 0 | M92: 0 | N92: 0 | O92: 0 | P92: 0 | Q92: 0 | R92: 0 | S92: 0 | T92: 0 | U92: 0
B94: En caso de requerir alguna precisión o aclaración, describa brevemente:
B97: Numero de actividad | D97: 1.1.6
A98: =T98 -> 0 | B98: Tipo de actividad | D98: Trimestre de inicio | I98: Trimestre de término | O98: Presupuesto de la actividad | T98: 0 | W98: Título de la actividad
D99: USAER | G99: CAPEP | J99: CRIE | M99: UOP | P99: UAEBH | S99: Otro | V99: Especifique producto o servicio en lo que se planea ejercer | Z99: Propósito de la actividad
D100: SEE: | G100: SEE: | J100: SEE: | M100: SEE: | P100: SEE: | S100: SEE:
D101: M | E101: H | F101: T | G101: M | H101: H | I101: T | J101: M | K101: H | L101: T | M101: M | N101: H | O101: T | P101: M | Q101: H | R101: T | S101: M | T101: H | U101: T
B102: Supervisores | F102: =SUM(D102,E102) -> 0 | I102: =SUM(G102,H102) -> 0 | L102: =SUM(J102,K102) -> 0 | O102: =SUM(M102,N102) -> 0 | R102: =SUM(P102,Q102) -> 0 | U102: =SUM(S102,T102) -> 0
B103: Directivas/os | F103: =SUM(D103,E103) -> 0 | I103: 0 | L103: 0 | O103: 0 | R103: 0 | U103: 0
B104: Docentes | F104: =SUM(D104,E104) -> 0 | I104: 0 | L104: 0 | O104: 0 | R104: 0 | U104: 0
B105: Equipo de apoyo | F105: =SUM(D105,E105) -> 0 | I105: 0 | L105: 0 | O105: 0 | R105: 0 | U105: 0
B106: Familias | F106: 0 | I106: 0 | L106: 0 | O106: 0 | R106: 0 | U106: 0
B107: Docentes de EB | F107: 0 | I107: 0 | L107: 0 | O107: 0 | R107: 0 | U107: 0
B108: Otros | F108: 0 | I108: 0 | L108: 0 | O108: 0 | R108: 0 | U108: 0
B109: TOTAL | D109: =SUM(D101:D108) -> 0 | E109: 0 | F109: 0 | G109: 0 | H109: 0 | I109: 0 | J109: 0 | K109: 0 | L109: 0 | M109: 0 | N109: 0 | O109: 0 | P109: 0 | Q109: 0 | R109: 0 | S109: 0 | T109: 0 | U109: 0
B111: En caso de requerir alguna precisión o aclaración, describa brevemente:
B114: Numero de actividad | D114: 1.1.7
A115: =T115 -> 0 | B115: Tipo de actividad | D115: Trimestre de inicio | I115: Trimestre de término | O115: Presupuesto de la actividad | T115: 0 | W115: Título de la actividad
D116: USAER | G116: CAPEP | J116: CRIE | M116: UOP | P116: UAEBH | S116: Otro | V116: Especifique producto o servicio en lo que se planea ejercer | Z116: Propósito de la actividad
D117: SEE: | G117: SEE: | J117: SEE: | M117: SEE: | P117: SEE: | S117: SEE:
D118: M | E118: H | F118: T | G118: M | H118: H | I118: T | J118: M | K118: H | L118: T | M118: M | N118: H | O118: T | P118: M | Q118: H | R118: T | S118: M | T118: H | U118: T
B119: Supervisores | F119: =SUM(D119,E119) -> 0 | I119: =SUM(G119,H119) -> 0 | L119: =SUM(J119,K119) -> 0 | O119: =SUM(M119,N119) -> 0 | R119: =SUM(P119,Q119) -> 0 | U119: =SUM(S119,T119) -> 0
B120: Directivas/os | F120: =SUM(D120,E120) -> 0 | I120: 0 | L120: 0 | O120: 0 | R120: 0 | U120: 0
B121: Docentes | F121: =SUM(D121,E121) -> 0 | I121: 0 | L121: 0 | O121: 0 | R121: 0 | U121: 0
B122: Equipo de apoyo | F122: =SUM(D122,E122) -> 0 | I122: 0 | L122: 0 | O122: 0 | R122: 0 | U122: 0
B123: Familias | F123: 0 | I123: 0 | L123: 0 | O123: 0 | R123: 0 | U123: 0
B124: Docentes de EB | F124: 0 | I124: 0 | L124: 0 | O124: 0 | R124: 0 | U124: 0
B125: Otros | F125: 0 | I125: 0 | L125: 0 | O125: 0 | R125: 0 | U125: 0
B126: TOTAL | D126: =SUM(D118:D125) -> 0 | E126: 0 | F126: 0 | G126: 0 | H126: 0 | I126: 0 | J126: 0 | K126: 0 | L126: 0 | M126: 0 | N126: 0 | O126: 0 | P126: 0 | Q126: 0 | R126: 0 | S126: 0 | T126: 0 | U126: 0
B128: En caso de requerir alguna precisión o aclaración, describa brevemente:
B131: Numero de actividad | D131: 1.1.8
A132: =T132 -> 0 | B132: Tipo de actividad | D132: Trimestre de inicio | I132: Trimestre de término | O132: Presupuesto de la actividad | T132: 0 | W132: Título de la actividad
D133: USAER | G133: CAPEP | J133: CRIE | M133: UOP | P133: UAEBH | S133: Otro | V133: Especifique producto o servicio en lo que se planea ejercer | Z133: Propósito de la actividad
D134: SEE: | G134: SEE: | J134: SEE: | M134: SEE: | P134: SEE: | S134: SEE:
D135: M | E135: H | F135: T | G135: M | H135: H | I135: T | J135: M | K135: H | L135: T | M135: M | N135: H | O135: T | P135: M | Q135: H | R135: T | S135: M | T135: H | U135: T
B136: Supervisores | F136: =SUM(D136,E136) -> 0 | I136: =SUM(G136,H136) -> 0 | L136: =SUM(J136,K136) -> 0 | O136: =SUM(M136,N136) -> 0 | R136: =SUM(P136,Q136) -> 0 | U136: =SUM(S136,T136) -> 0
B137: Directivas/os | F137: =SUM(D137,E137) -> 0 | I137: 0 | L137: 0 | O137: 0 | R137: 0 | U137: 0
B138: Docentes | F138: =SUM(D138,E138) -> 0 | I138: 0 | L138: 0 | O138: 0 | R138: 0 | U138: 0
B139: Equipo de apoyo | F139: =SUM(D139,E139) -> 0 | I139: 0 | L139: 0 | O139: 0 | R139: 0 | U139: 0
B140: Familias | F140: 0 | I140: 0 | L140: 0 | O140: 0 | R140: 0 | U140: 0
B141: Docentes de EB | F141: 0 | I141: 0 | L141: 0 | O141: 0 | R141: 0 | U141: 0
B142: Otros | F142: 0 | I142: 0 | L142: 0 | O142: 0 | R142: 0 | U142: 0
B143: TOTAL | D143: =SUM(D135:D142) -> 0 | E143: 0 | F143: 0 | G143: 0 | H143: 0 | I143: 0 | J143: 0 | K143: 0 | L143: 0 | M143: 0 | N143: 0 | O143: 0 | P143: 0 | Q143: 0 | R143: 0 | S143: 0 | T143: 0 | U143: 0
B145: En caso de requerir alguna precisión o aclaración, describa brevemente:
B148: Numero de actividad | D148: 1.1.9
A149: =T149 -> 0 | B149: Tipo de actividad | D149: Trimestre de inicio | I149: Trimestre de término | O149: Presupuesto de la actividad | T149: 0 | W149: Título de la actividad
D150: USAER | G150: CAPEP | J150: CRIE | M150: UOP | P150: UAEBH | S150: Otro | V150: Especifique producto o servicio en lo que se planea ejercer | Z150: Propósito de la actividad
D151: SEE: | G151: SEE: | J151: SEE: | M151: SEE: | P151: SEE: | S151: SEE:
D152: M | E152: H | F152: T | G152: M | H152: H | I152: T | J152: M | K152: H | L152: T | M152: M | N152: H | O152: T | P152: M | Q152: H | R152: T | S152: M | T152: H | U152: T
B153: Supervisores | F153: =SUM(D153,E153) -> 0 | I153: =SUM(G153,H153) -> 0 | L153: =SUM(J153,K153) -> 0 | O153: =SUM(M153,N153) -> 0 | R153: =SUM(P153,Q153) -> 0 | U153: =SUM(S153,T153) -> 0
B154: Directivas/os | F154: =SUM(D154,E154) -> 0 | I154: 0 | L154: 0 | O154: 0 | R154: 0 | U154: 0
B155: Docentes | F155: =SUM(D155,E155) -> 0 | I155: 0 | L155: 0 | O155: 0 | R155: 0 | U155: 0
B156: Equipo de apoyo | F156: =SUM(D156,E156) -> 0 | I156: 0 | L156: 0 | O156: 0 | R156: 0 | U156: 0
B157: Familias | F157: 0 | I157: 0 | L157: 0 | O157: 0 | R157: 0 | U157: 0
B158: Docentes de EB | F158: 0 | I158: 0 | L158: 0 | O158: 0 | R158: 0 | U158: 0
B159: Otros | F159: 0 | I159: 0 | L159: 0 | O159: 0 | R159: 0 | U159: 0
B160: TOTAL | D160: =SUM(D152:D159) -> 0 | E160: 0 | F160: 0 | G160: 0 | H160: 0 | I160: 0 | J160: 0 | K160: 0 | L160: 0 | M160: 0 | N160: 0 | O160: 0 | P160: 0 | Q160: 0 | R160: 0 | S160: 0 | T160: 0 | U160: 0
B162: En caso de requerir alguna precisión o aclaración, describa brevemente:
B165: Numero de actividad | D165: 1.1.10
A166: =T166 -> 0 | B166: Tipo de actividad | D166: Trimestre de inicio | I166: Trimestre de término | O166: Presupuesto de la actividad | T166: 0 | W166: Título de la actividad
D167: USAER | G167: CAPEP | J167: CRIE | M167: UOP | P167: UAEBH | S167: Otro | V167: Especifique producto o servicio en lo que se planea ejercer | Z167: Propósito de la actividad
D168: SEE: | G168: SEE: | J168: SEE: | M168: SEE: | P168: SEE: | S168: SEE:
D169: M | E169: H | F169: T | G169: M | H169: H | I169: T | J169: M | K169: H | L169: T | M169: M | N169: H | O169: T | P169: M | Q169: H | R169: T | S169: M | T169: H | U169: T
B170: Supervisores | F170: =SUM(D170,E170) -> 0 | I170: =SUM(G170,H170) -> 0 | L170: =SUM(J170,K170) -> 0 | O170: =SUM(M170,N170) -> 0 | R170: =SUM(P170,Q170) -> 0 | U170: =SUM(S170,T170) -> 0
B171: Directivas/os | F171: =SUM(D171,E171) -> 0 | I171: 0 | L171: 0 | O171: 0 | R171: 0 | U171: 0
B172: Docentes | F172: =SUM(D172,E172) -> 0 | I172: 0 | L172: 0 | O172: 0 | R172: 0 | U172: 0
B173: Equipo de apoyo | F173: =SUM(D173,E173) -> 0 | I173: 0 | L173: 0 | O173: 0 | R173: 0 | U173: 0
B174: Familias | F174: 0 | I174: 0 | L174: 0 | O174: 0 | R174: 0 | U174: 0
B175: Docentes de EB | F175: 0 | I175: 0 | L175: 0 | O175: 0 | R175: 0 | U175: 0
B176: Otros | F176: 0 | I176: 0 | L176: 0 | O176: 0 | R176: 0 | U176: 0
B177: TOTAL | D177: =SUM(D169:D176) -> 0 | E177: 0 | F177: 0 | G177: 0 | H177: 0 | I177: 0 | J177: 0 | K177: 0 | L177: 0 | M177: 0 | N177: 0 | O177: 0 | P177: 0 | Q177: 0 | R177: 0 | S177: 0 | T177: 0 | U177: 0
B179: En caso de requerir alguna precisión o aclaración, describa brevemente:
B182: Numero de actividad | D182: 1.1.11
A183: =T183 -> 0 | B183: Tipo de actividad | D183: Trimestre de inicio | I183: Trimestre de término | O183: Presupuesto de la actividad | T183: 0 | W183: Título de la actividad
D184: USAER | G184: CAPEP | J184: CRIE | M184: UOP | P184: UAEBH | S184: Otro | V184: Especifique producto o servicio en lo que se planea ejercer | Z184: Propósito de la actividad
D185: SEE: | G185: SEE: | J185: SEE: | M185: SEE: | P185: SEE: | S185: SEE:
D186: M | E186: H | F186: T | G186: M | H186: H | I186: T | J186: M | K186: H | L186: T | M186: M | N186: H | O186: T | P186: M | Q186: H | R186: T | S186: M | T186: H | U186: T
B187: Supervisores | F187: =SUM(D187,E187) -> 0 | I187: =SUM(G187,H187) -> 0 | L187: =SUM(J187,K187) -> 0 | O187: =SUM(M187,N187) -> 0 | R187: =SUM(P187,Q187) -> 0 | U187: =SUM(S187,T187) -> 0
B188: Directivas/os | F188: =SUM(D188,E188) -> 0 | I188: 0 | L188: 0 | O188: 0 | R188: 0 | U188: 0
B189: Docentes | F189: =SUM(D189,E189) -> 0 | I189: 0 | L189: 0 | O189: 0 | R189: 0 | U189: 0
B190: Equipo de apoyo | F190: =SUM(D190,E190) -> 0 | I190: 0 | L190: 0 | O190: 0 | R190: 0 | U190: 0
B191: Familias | F191: 0 | I191: 0 | L191: 0 | O191: 0 | R191: 0 | U191: 0
B192: Docentes de EB | F192: 0 | I192: 0 | L192: 0 | O192: 0 | R192: 0 | U192: 0
B193: Otros | F193: 0 | I193: 0 | L193: 0 | O193: 0 | R193: 0 | U193: 0
B194: TOTAL | D194: =SUM(D186:D193) -> 0 | E194: 0 | F194: 0 | G194: 0 | H194: 0 | I194: 0 | J194: 0 | K194: 0 | L194: 0 | M194: 0 | N194: 0 | O194: 0 | P194: 0 | Q194: 0 | R194: 0 | S194: 0 | T194: 0 | U194: 0
B196: En caso de requerir alguna precisión o aclaración, describa brevemente:
B199: Numero de actividad | D199: 1.1.12
A200: =T200 -> 0 | B200: Tipo de actividad | D200: Trimestre de inicio | I200: Trimestre de término | O200: Presupuesto de la actividad | T200: 0 | W200: Título de la actividad
D201: USAER | G201: CAPEP | J201: CRIE | M201: UOP | P201: UAEBH | S201: Otro | V201: Especifique producto o servicio en lo que se planea ejercer | Z201: Propósito de la actividad
D202: SEE: | G202: SEE: | J202: SEE: | M202: SEE: | P202: SEE: | S202: SEE:
D203: M | E203: H | F203: T | G203: M | H203: H | I203: T | J203: M | K203: H | L203: T | M203: M | N203: H | O203: T | P203: M | Q203: H | R203: T | S203: M | T203: H | U203: T
B204: Supervisores | F204: =SUM(D204,E204) -> 0 | I204: =SUM(G204,H204) -> 0 | L204: =SUM(J204,K204) -> 0 | O204: =SUM(M204,N204) -> 0 | R204: =SUM(P204,Q204) -> 0 | U204: =SUM(S204,T204) -> 0
B205: Directivas/os | F205: =SUM(D205,E205) -> 0 | I205: 0 | L205: 0 | O205: 0 | R205: 0 | U205: 0
B206: Docentes | F206: =SUM(D206,E206) -> 0 | I206: 0 | L206: 0 | O206: 0 | R206: 0 | U206: 0
B207: Equipo de apoyo | F207: =SUM(D207,E207) -> 0 | I207: 0 | L207: 0 | O207: 0 | R207: 0 | U207: 0
B208: Familias | F208: 0 | I208: 0 | L208: 0 | O208: 0 | R208: 0 | U208: 0
B209: Docentes de EB | F209: 0 | I209: 0 | L209: 0 | O209: 0 | R209: 0 | U209: 0
B210: Otros | F210: 0 | I210: 0 | L210: 0 | O210: 0 | R210: 0 | U210: 0
B211: TOTAL | D211: =SUM(D203:D210) -> 0 | E211: 0 | F211: 0 | G211: 0 | H211: 0 | I211: 0 | J211: 0 | K211: 0 | L211: 0 | M211: 0 | N211: 0 | O211: 0 | P211: 0 | Q211: 0 | R211: 0 | S211: 0 | T211: 0 | U211: 0
B213: En caso de requerir alguna precisión o aclaración, describa brevemente:
B216: Numero de actividad | D216: 1.1.13
A217: =T217 -> 0 | B217: Tipo de actividad | D217: Trimestre de inicio | I217: Trimestre de término | O217: Presupuesto de la actividad | T217: 0 | W217: Título de la actividad
D218: USAER | G218: CAPEP | J218: CRIE | M218: UOP | P218: UAEBH | S218: Otro | V218: Especifique producto o servicio en lo que se planea ejercer | Z218: Propósito de la actividad
D219: SEE: | G219: SEE: | J219: SEE: | M219: SEE: | P219: SEE: | S219: SEE:
D220: M | E220: H | F220: T | G220: M | H220: H | I220: T | J220: M | K220: H | L220: T | M220: M | N220: H | O220: T | P220: M | Q220: H | R220: T | S220: M | T220: H | U220: T
B221: Supervisores | F221: =SUM(D221,E221) -> 0 | I221: =SUM(G221,H221) -> 0 | L221: =SUM(J221,K221) -> 0 | O221: =SUM(M221,N221) -> 0 | R221: =SUM(P221,Q221) -> 0 | U221: =SUM(S221,T221) -> 0
B222: Directivas/os | F222: =SUM(D222,E222) -> 0 | I222: 0 | L222: 0 | O222: 0 | R222: 0 | U222: 0
B223: Docentes | F223: =SUM(D223,E223) -> 0 | I223: 0 | L223: 0 | O223: 0 | R223: 0 | U223: 0
B224: Equipo de apoyo | F224: =SUM(D224,E224) -> 0 | I224: 0 | L224: 0 | O224: 0 | R224: 0 | U224: 0
B225: Familias | F225: 0 | I225: 0 | L225: 0 | O225: 0 | R225: 0 | U225: 0
B226: Docentes de EB | F226: 0 | I226: 0 | L226: 0 | O226: 0 | R226: 0 | U226: 0
B227: Otros | F227: 0 | I227: 0 | L227: 0 | O227: 0 | R227: 0 | U227: 0
B228: TOTAL | D228: =SUM(D220:D227) -> 0 | E228: 0 | F228: 0 | G228: 0 | H228: 0 | I228: 0 | J228: 0 | K228: 0 | L228: 0 | M228: 0 | N228: 0 | O228: 0 | P228: 0 | Q228: 0 | R228: 0 | S228: 0 | T228: 0 | U228: 0
B230: En caso de requerir alguna precisión o aclaración, describa brevemente:
B233: Numero de actividad | D233: 1.1.14
A234: =T234 -> 0 | B234: Tipo de actividad | D234: Trimestre de inicio | I234: Trimestre de término | O234: Presupuesto de la actividad | T234: 0 | W234: Título de la actividad
D235: USAER | G235: CAPEP | J235: CRIE | M235: UOP | P235: UAEBH | S235: Otro | V235: Especifique producto o servicio en lo que se planea ejercer | Z235: Propósito de la actividad
D236: SEE: | G236: SEE: | J236: SEE: | M236: SEE: | P236: SEE: | S236: SEE:
D237: M | E237: H | F237: T | G237: M | H237: H | I237: T | J237: M | K237: H | L237: T | M237: M | N237: H | O237: T | P237: M | Q237: H | R237: T | S237: M | T237: H | U237: T
B238: Supervisores | F238: =SUM(D238,E238) -> 0 | I238: =SUM(G238,H238) -> 0 | L238: =SUM(J238,K238) -> 0 | O238: =SUM(M238,N238) -> 0 | R238: =SUM(P238,Q238) -> 0 | U238: =SUM(S238,T238) -> 0
B239: Directivas/os | F239: =SUM(D239,E239) -> 0 | I239: 0 | L239: 0 | O239: 0 | R239: 0 | U239: 0
B240: Docentes | F240: =SUM(D240,E240) -> 0 | I240: 0 | L240: 0 | O240: 0 | R240: 0 | U240: 0
B241: Equipo de apoyo | F241: =SUM(D241,E241) -> 0 | I241: 0 | L241: 0 | O241: 0 | R241: 0 | U241: 0
B242: Familias | F242: 0 | I242: 0 | L242: 0 | O242: 0 | R242: 0 | U242: 0
... 126 more rows

Sheet Atención complementaria DIS
B1: Subsecretaría de Educación Básica Dirección General de Desarrollo Curricular Dirección de Fortalecimiento Curricular para la Formación Personal y Social en la Educación Básica Educación Especial
B6: Componente: 2. Acciones de atención complementaria para estudiantes con discapacidad
B7: Para garantizar el cumplimiento de los objetivos del PFSEE las AEL podrán destinar hasta un 50% del recurso, de acuerdo con lo estipulado en las reglas de operación 2025.
B8: 2.1 Acciones orientadas a la intervención directa y la atención complementaria: académica, artística, deportiva, rehabilitadora, desarrollo de habilidades socioafectivas y/o que contribuyan en el diagnóstico de las y los estudiantes con discapacidad
B9: Recurso programado: | D9: ='Distribución presupuestal 2025'!H56 -> 277800 | H9: SEE focalizados: | K9: USAER | L9: ='SEE 2025'!B21 -> 64 | M9: CAM básico | N9: ='SEE 2025'!C21 -> 0 | O9: Básico FpT | P9: ='SEE 2025'!C23 -> 28 | Q9: CAM laboral | R9: ='SEE 2025'!D21 -> 2 | S9: CAPEP | T9: ='SEE 2025'!E21 -> 0 | U9: CRIE | V9: ='SEE 2025'!F21 -> 0 | W9: UOP | X9: ='SEE 2025'!G21 -> 0 | Y9: UAEBH | Z9: ='SEE 2025'!H21 -> 0 | AA9: Otro | AB9: ='SEE 2025'!I21 -> 0
B10: Remanente | D10: =D9-SUM(A13:A81) -> 0
B12: Numero de actividad | D12: 2.1.1
A13: =R13 -> 277800 | B13: Tipo de actividad | D13: Trimestre de inicio | G13: 3ro | I13: Trimestre de término | L13: 4to | N13: Presupuesto de la actividad | R13: 277800 | V13: Título de la actividad | AC13: MAÑANA ACADÉMICA
B14: Académica | D14: USAER | G14: CAM básico | J14: CAM básico con FpT | M14: CAM laboral | P14: CAPEP | S14: CRIE | V14: UOP | Y14: UAEBH | AB14: Otro | AE14: Especifique producto o servicio en lo que se planea ejercer | AM14: Propósito de la actividad
D15: SEE: | E15: 56 | G15: SEE: | H15: 0 | J15: SEE: | K15: 0 | M15: SEE: | N15: 0 | P15: SEE: | Q15: 0 | S15: SEE: | T15: 0 | V15: SEE: | W15: 0 | Y15: SEE: | Z15: 0 | AB15: SEE: | AC15: 0
D16: M | E16: H | F16: T | G16: M | H16: H | I16: T | J16: M | K16: H | L16: T | M16: M | N16: H | O16: T | P16: M | Q16: H | R16: T | S16: M | T16: H | U16: T | V16: M | W16: H | X16: T | Y16: M | Z16: H | AA16: T | AB16: M | AC16: H | AD16: T
B17: Estudiantes beneficiados | D17: 170 | E17: 300 | F17: =SUM(D17,E17) -> 470 | G17: 0 | H17: 0 | I17: =SUM(G17,H17) -> 0 | J17: 0 | K17: 0 | L17: 0 | M17: 0 | N17: 0 | O17: =SUM(M17,N17) -> 0 | P17: 0 | Q17: 0 | R17: =SUM(P17,Q17) -> 0 | S17: 0 | T17: 0 | U17: =SUM(S17,T17) -> 0 | V17: 0 | W17: 0 | X17: =SUM(V17,W17) -> 0 | Y17: 0 | Z17: 0 | AA17: =SUM(Y17,Z17) -> 0 | AB17: 0 | AC17: 0 | AD17: =SUM(AB17,AC17) -> 0 | AE17: Pago de traslados para asistentes | AI17: N/A | AM17: Potenciar el desarrollo de habilidades sociales, emocionales, acedémicas y culturales de los alumnos, a través de experiencias vivenciales en entornos estimulantes.
AE18: Compra de Box lunch | AI18: N/A
B19: En caso de requerir alguna precisión o aclaración, describa brevemente: | AE19: Diseño y producción de lonas | AI19: N/A
B20: 470 alumnos de USAER. Z1-30 (1c), z2-30(1c), z3-30(1c), z4-30(1c), z5-60(2c), z6-60(2c), z7-60(2C), z8-50(2c), z9-30(1c), z10-60(2c), z11-30(1c). Pago de accesos a museo interactivo de 470 alumnos y 192 acompañantes, 662 total. | AE20: N/A | AI20: N/A
AE21: N/A | AI21: N/A
AE22: N/A | AI22: N/A
AE23: N/A | AI23: N/A
AE24: N/A | AI24: N/A
B26: Numero de actividad | D26: 2.1.2
A27: =R27 -> 0 | B27: Tipo de actividad | D27: Trimestre de inicio | I27: Trimestre de término | N27: Presupuesto de la actividad | V27: Título de la actividad
D28: USAER | G28: CAM básico | J28: CAM básico con FpT | M28: CAM laboral | P28: CAPEP | S28: CRIE | V28: UOP | Y28: UAEBH | AB28: Otro | AE28: Especifique producto o servicio en lo que se planea ejercer | AM28: Propósito de la actividad
D29: SEE: | G29: SEE: | H29: 0 | J29: SEE: | M29: SEE: | P29: SEE: | Q29: 0 | S29: SEE: | T29: 0 | V29: SEE: | W29: 0 | Y29: SEE: | Z29: 0 | AB29: SEE: | AC29: 0
D30: M | E30: H | F30: T | G30: M | H30: H | I30: T | J30: M | K30: H | L30: T | M30: M | N30: H | O30: T | P30: M | Q30: H | R30: T | S30: M | T30: H | U30: T | V30: M | W30: H | X30: T | Y30: M | Z30: H | AA30: T | AB30: M | AC30: H | AD30: T
B31: Estudiantes beneficiados | F31: =SUM(D31,E31) -> 0 | I31: =SUM(G31,H31) -> 0 | L31: =SUM(J31,K31) -> 0 | O31: =SUM(M31,N31) -> 0 | P31: 0 | R31: =SUM(P31,Q31) -> 0 | U31: =SUM(S31,T31) -> 0 | X31: =SUM(V31,W31) -> 0 | AA31: =SUM(Y31,Z31) -> 0 | AD31: =SUM(AB31,AC31) -> 0
B33: En caso de requerir alguna precisión o aclaración, describa brevemente:
B40: Numero de actividad | D40: 2.1.3
A41: =R41 -> 0 | B41: Tipo de actividad | D41: Trimestre de inicio | I41: Trimestre de término | N41: Presupuesto de la actividad | V41: Título de la actividad
D42: USAER | G42: CAM básico | J42: CAM básico con FpT | M42: CAM laboral | P42: CAPEP | S42: CRIE | V42: UOP | Y42: UAEBH | AB42: Otro | AE42: Especifique producto o servicio en lo que se planea ejercer | AM42: Propósito de la actividad
D43: SEE: | G43: SEE: | J43: SEE: | M43: SEE: | P43: SEE: | S43: SEE: | V43: SEE: | Y43: SEE: | AB43: SEE:
D44: M | E44: H | F44: T | G44: M | H44: H | I44: T | J44: M | K44: H | L44: T | M44: M | N44: H | O44: T | P44: M | Q44: H | R44: T | S44: M | T44: H | U44: T | V44: M | W44: H | X44: T | Y44: M | Z44: H | AA44: T | AB44: M | AC44: H | AD44: T
B45: Estudiantes beneficiados | F45: =SUM(D45,E45) -> 0 | I45: =SUM(G45,H45) -> 0 | L45: =SUM(J45,K45) -> 0 | O45: =SUM(M45,N45) -> 0 | R45: =SUM(P45,Q45) -> 0 | U45: =SUM(S45,T45) -> 0 | X45: =SUM(V45,W45) -> 0 | AA45: =SUM(Y45,Z45) -> 0 | AD45: =SUM(AB45,AC45) -> 0
B47: En caso de requerir alguna precisión o aclaración, describa brevemente:
B54: Numero de actividad | D54: 2.1.4
A55: =R55 -> 0 | B55: Tipo de actividad | D55: Trimestre de inicio | I55: Trimestre de término | N55: Presupuesto de la actividad | V55: Título de la actividad
D56: USAER | G56: CAM básico | J56: CAM básico con FpT | M56: CAM laboral | P56: CAPEP | S56: CRIE | V56: UOP | Y56: UAEBH | AB56: Otro | AE56: Especifique producto o servicio en lo que se planea ejercer | AM56: Propósito de la actividad
D57: SEE: | G57: SEE: | J57: SEE: | M57: SEE: | P57: SEE: | S57: SEE: | V57: SEE: | Y57: SEE: | AB57: SEE:
D58: M | E58: H | F58: T | G58: M | H58: H | I58: T | J58: M | K58: H | L58: T | M58: M | N58: H | O58: T | P58: M | Q58: H | R58: T | S58: M | T58: H | U58: T | V58: M | W58: H | X58: T | Y58: M | Z58: H | AA58: T | AB58: M | AC58: H | AD58: T
B59: Estudiantes beneficiados | F59: =SUM(D59,E59) -> 0 | I59: =SUM(G59,H59) -> 0 | L59: =SUM(J59,K59) -> 0 | O59: =SUM(M59,N59) -> 0 | R59: =SUM(P59,Q59) -> 0 | U59: =SUM(S59,T59) -> 0 | X59: =SUM(V59,W59) -> 0 | AA59: =SUM(Y59,Z59) -> 0 | AD59: =SUM(AB59,AC59) -> 0
B61: En caso de requerir alguna precisión o aclaración, describa brevemente:
B68: Numero de actividad | D68: 2.1.5
A69: =R69 -> 0 | B69: Tipo de actividad | D69: Trimestre de inicio | I69: Trimestre de término | N69: Presupuesto de la actividad | V69: Título de la actividad
D70: USAER | G70: CAM básico | J70: CAM básico con FpT | M70: CAM laboral | P70: CAPEP | S70: CRIE | V70: UOP | Y70: UAEBH | AB70: Otro | AE70: Especifique producto o servicio en lo que se planea ejercer | AM70: Propósito de la actividad
D71: SEE: | G71: SEE: | J71: SEE: | M71: SEE: | P71: SEE: | S71: SEE: | V71: SEE: | Y71: SEE: | AB71: SEE:
D72: M | E72: H | F72: T | G72: M | H72: H | I72: T | J72: M | K72: H | L72: T | M72: M | N72: H | O72: T | P72: M | Q72: H | R72: T | S72: M | T72: H | U72: T | V72: M | W72: H | X72: T | Y72: M | Z72: H | AA72: T | AB72: M | AC72: H | AD72: T
B73: Estudiantes beneficiados | F73: =SUM(D73,E73) -> 0 | I73: =SUM(G73,H73) -> 0 | L73: =SUM(J73,K73) -> 0 | O73: =SUM(M73,N73) -> 0 | R73: =SUM(P73,Q73) -> 0 | U73: =SUM(S73,T73) -> 0 | X73: =SUM(V73,W73) -> 0 | AA73: =SUM(Y73,Z73) -> 0 | AD73: =SUM(AB73,AC73) -> 0
B75: En caso de requerir alguna precisión o aclaración, describa brevemente:
B82: 2.2 Acciones orientadas a que las y los estudiantes con discapacidad pongan en práctica las habilidades académicas, artísticas, deportivas, para la vida y/o laborales y que promuevan la sensibilización, promoción, difusión y desarrollo en la comunidad escolar una cultura inclusiva, a través de campañas, ferias y eventos
B83: Recurso programado: | D83: ='Distribución presupuestal 2025'!H57 -> 1972200 | H83: SEE focalizados: | K83: USAER | L83: ='SEE 2025'!B21 -> 64 | M83: CAM básico | N83: ='SEE 2025'!C21 -> 0 | O83: Básico FpT | P83: ='SEE 2025'!C23 -> 28 | Q83: CAM laboral | R83: ='SEE 2025'!D21 -> 2 | S83: CAPEP | T83: ='SEE 2025'!E21 -> 0 | U83: CRIE | V83: ='SEE 2025'!F21 -> 0 | W83: UOP | X83: ='SEE 2025'!G21 -> 0 | Y83: UAEBH | Z83: ='SEE 2025'!H21 -> 0 | AA83: Otro | AB83: ='SEE 2025'!I21 -> 0
B84: Remanente | D84: =D83-SUM(A87:A156) -> 0
B86: Numero de actividad | D86: 2.2.1
A87: =R87 -> 1060000 | B87: Tipo de actividad | D87: Trimestre de inicio | G87: 4to | I87: Trimestre de término | L87: 4to | N87: Presupuesto de la actividad | R87: 1060000 | V87: Título de la actividad | AC87: LIGA DE DEPORTE ADAPTADO
B88: Evento | D88: USAER | G88: CAM básico | J88: CAM básico con FpT | M88: CAM laboral | P88: CAPEP | S88: CRIE | V88: UOP | Y88: UAEBH | AB88: Otro | AE88: Especifique producto o servicio en lo que se planea ejercer | AM88: Propósito de la actividad
D89: SEE: | E89: 0 | G89: SEE: | H89: 0 | J89: SEE: | K89: 28 | M89: SEE: | N89: 2 | P89: SEE: | Q89: 0 | S89: SEE: | T89: 0 | V89: SEE: | W89: 0 | Y89: SEE: | Z89: 0 | AB89: SEE: | AC89: 0
D90: M | E90: H | F90: T | G90: M | H90: H | I90: T | J90: M | K90: H | L90: T | M90: M | N90: H | O90: T | P90: M | Q90: H | R90: T | S90: M | T90: H | U90: T | V90: M | W90: H | X90: T | Y90: M | Z90: H | AA90: T | AB90: M | AC90: H | AD90: T
B91: Estudiantes beneficiados | D91: 0 | E91: 0 | F91: =SUM(D91,E91) -> 0 | G91: 0 | H91: 0 | I91: =SUM(G91,H91) -> 0 | J91: 374 | K91: 331 | L91: =SUM(J91,K91) -> 705 | M91: 30 | N91: 30 | O91: =SUM(M91,N91) -> 60 | P91: 0 | Q91: 0 | R91: =SUM(P91,Q91) -> 0 | S91: 0 | T91: 0 | U91: =SUM(S91,T91) -> 0 | V91: 0 | W91: 0 | X91: =SUM(V91,W91) -> 0 | Y91: 0 | Z91: 0 | AA91: =SUM(Y91,Z91) -> 0 | AB91: 0 | AC91: 0 | AD91: =SUM(AB91,AC91) -> 0 | AE91: Compra de material deportivo y/o artístico | AI91: N/A | AM91: Favorecer las habilidades psicomotrices, la salud física y emocional, con juegos de convivencia en disciplinas como futbol, básquetbol, cachibol, handball; así como demostrar las capacidades desarrolladas ante la comunidad escolar.
AE92: Compra de Box lunch | AI92: N/A
B93: En caso de requerir alguna precisión o aclaración, describa brevemente: | AE93: Pago de traslados para asistentes | AI93: N/A
B94: 30 alumnos por CAM, Una jornada en cada zona escolar con duración de 5 horas cada una, disciplinas: futbol, básquetbol, cachibol, handball y atletísmo. | AE94: Adquisición de uniformes | AI94: N/A
AE95: Diseño y producción de lonas | AI95: N/A
AE96: Renta de mobiliario | AI96: N/A
AE97: N/A | AI97: N/A
AE98: N/A | AI98: N/A
B100: Numero de actividad | D100: 2.2.2
A101: =R101 -> 787200 | B101: Tipo de actividad | D101: Trimestre de inicio | G101: 3ro | I101: Trimestre de término | L101: 4to | N101: Presupuesto de la actividad | R101: 787200 | V101: Título de la actividad | AC101: MUESTRA ARTÍSTICO-CULTURAL
B102: Evento | D102: USAER | G102: CAM básico | J102: CAM básico con FpT | M102: CAM laboral | P102: CAPEP | S102: CRIE | V102: UOP | Y102: UAEBH | AB102: Otro | AE102: Especifique producto o servicio en lo que se planea ejercer | AM102: Propósito de la actividad
D103: SEE: | E103: 0 | G103: SEE: | H103: 0 | J103: SEE: | K103: 28 | M103: SEE: | N103: 2 | P103: SEE: | Q103: 0 | S103: SEE: | T103: 0 | V103: SEE: | W103: 0 | Y103: SEE: | Z103: 0 | AB103: SEE: | AC103: 0
D104: M | E104: H | F104: T | G104: M | H104: H | I104: T | J104: M | K104: H | L104: T | M104: M | N104: H | O104: T | P104: M | Q104: H | R104: T | S104: M | T104: H | U104: T | V104: M | W104: H | X104: T | Y104: M | Z104: H | AA104: T | AB104: M | AC104: H | AD104: T
B105: Estudiantes beneficiados | D105: 0 | E105: 0 | F105: =SUM(D105,E105) -> 0 | G105: 0 | H105: 0 | I105: =SUM(G105,H105) -> 0 | J105: 550 | K105: 858 | L105: =SUM(J105,K105) -> 1408 | M105: 49 | N105: 75 | O105: =SUM(M105,N105) -> 124 | P105: 0 | Q105: 0 | R105: =SUM(P105,Q105) -> 0 | S105: 0 | T105: 0 | U105: =SUM(S105,T105) -> 0 | V105: 0 | W105: 0 | X105: =SUM(V105,W105) -> 0 | Y105: 0 | Z105: 0 | AA105: =SUM(Y105,Z105) -> 0 | AB105: 0 | AC105: 0 | AD105: =SUM(AB105,AC105) -> 0 | AE105: Compra de material deportivo y/o artístico | AI105: N/A | AM105: Potenciar las habilidades artísticas y motrices de los alumnos de los centros de atención múltiple, favoreciendo la convivencia y la expresión cultural en los entornos escolares y sociales.
AE106: Diseño y producción de lonas | AI106: N/A
B107: En caso de requerir alguna precisión o aclaración, describa brevemente: | AE107: Pago de traslados para asistentes | AI107: N/A
B108: En cada zona escolar,se conformarán cuadros diversos para una participación al interior de la zona, posteriormente un cuadro representativo de cada zona, presentará un número conformado por 16 alumnos, en un evento artístico-cultural con duración de cinco horas. | AE108: Arrendamiento de salas / salones | AI108: N/A
AE109: Renta de equipo de audio y/o video | AI109: N/A
AE110: Pago de viáticos para asistentes | AI110: N/A
AE111: Compra de Box lunch | AI111: N/A
AE112: N/A | AI112: N/A
B114: Numero de actividad | D114: 2.2.3
A115: =R115 -> 125000 | B115: Tipo de actividad | D115: Trimestre de inicio | G115: 3ro | I115: Trimestre de término | L115: 4to | N115: Presupuesto de la actividad | R115: 125000 | V115: Título de la actividad | AC115: CAMPAMENTO ACADÉMICO
B116: Evento | D116: USAER | G116: CAM básico | J116: CAM básico con FpT | M116: CAM laboral | P116: CAPEP | S116: CRIE | V116: UOP | Y116: UAEBH | AB116: Otro | AE116: Especifique producto o servicio en lo que se planea ejercer | AM116: Propósito de la actividad
D117: SEE: | E117: 8 | G117: SEE: | H117: 0 | J117: SEE: | K117: 4 | M117: SEE: | N117: 1 | P117: SEE: | Q117: 0 | S117: SEE: | T117: 0 | V117: SEE: | W117: 0 | Y117: SEE: | Z117: 0 | AB117: SEE: | AC117: 0
D118: M | E118: H | F118: T | G118: M | H118: H | I118: T | J118: M | K118: H | L118: T | M118: M | N118: H | O118: T | P118: M | Q118: H | R118: T | S118: M | T118: H | U118: T | V118: M | W118: H | X118: T | Y118: M | Z118: H | AA118: T | AB118: M | AC118: H | AD118: T
B119: Estudiantes beneficiados | D119: 54 | E119: 62 | F119: =SUM(D119,E119) -> 116 | G119: 0 | H119: 0 | I119: =SUM(G119,H119) -> 0 | J119: 101 | K119: 157 | L119: =SUM(J119,K119) -> 258 | M119: 27 | N119: 39 | O119: =SUM(M119,N119) -> 66 | P119: 0 | Q119: 0 | R119: =SUM(P119,Q119) -> 0 | S119: 0 | T119: 0 | U119: =SUM(S119,T119) -> 0 | V119: 0 | W119: 0 | X119: =SUM(V119,W119) -> 0 | Y119: 0 | Z119: 0 | AA119: =SUM(Y119,Z119) -> 0 | AB119: 0 | AC119: 0 | AD119: =SUM(AB119,AC119) -> 0 | AE119: N/A | AI119: N/A | AM119: Demostrar las habilidades sociales, motrices y académicas desarrolladas por los alumnos a través de un campamento académico entre alumnos con discapacidad de la región Laguna del Estado de Durango.
AE120: Compra de material deportivo y/o artístico | AI120: N/A
B121: En caso de requerir alguna precisión o aclaración, describa brevemente: | AE121: Pago de traslados para asistentes | AI121: N/A
B122: Transporte para traslado de Tlahualilo a Gómez Palacio: 1 camión. | AE122: Compra de Box lunch | AI122: N/A
AE123: N/A | AI123: N/A
AE124: Renta de equipo de audio y/o video | AI124: N/A
AE125: Diseño y producción de lonas | AI125: N/A
AE126: N/A | AI126: N/A
B128: Numero de actividad | D128: 2.2.4
A129: =R129 -> 0 | B129: Tipo de actividad | D129: Trimestre de inicio | I129: Trimestre de término | N129: Presupuesto de la actividad | V129: Título de la actividad
D130: USAER | G130: CAM básico | J130: CAM básico con FpT | M130: CAM laboral | P130: CAPEP | S130: CRIE | V130: UOP | Y130: UAEBH | AB130: Otro | AE130: Especifique producto o servicio en lo que se planea ejercer | AM130: Propósito de la actividad
D131: SEE: | G131: SEE: | J131: SEE: | M131: SEE: | P131: SEE: | S131: SEE: | V131: SEE: | Y131: SEE: | AB131: SEE:
D132: M | E132: H | F132: T | G132: M | H132: H | I132: T | J132: M | K132: H | L132: T | M132: M | N132: H | O132: T | P132: M | Q132: H | R132: T | S132: M | T132: H | U132: T | V132: M | W132: H | X132: T | Y132: M | Z132: H | AA132: T | AB132: M | AC132: H | AD132: T
B133: Estudiantes beneficiados | F133: =SUM(D133,E133) -> 0 | I133: =SUM(G133,H133) -> 0 | L133: =SUM(J133,K133) -> 0 | O133: =SUM(M133,N133) -> 0 | R133: =SUM(P133,Q133) -> 0 | U133: =SUM(S133,T133) -> 0 | X133: =SUM(V133,W133) -> 0 | AA133: =SUM(Y133,Z133) -> 0 | AD133: =SUM(AB133,AC133) -> 0
B135: En caso de requerir alguna precisión o aclaración, describa brevemente:
B142: Numero de actividad | D142: 2.2.5
A143: =R143 -> 0 | B143: Tipo de actividad | D143: Trimestre de inicio | I143: Trimestre de término | N143: Presupuesto de la actividad | V143: Título de la actividad
D144: USAER | G144: CAM básico | J144: CAM básico con FpT | M144: CAM laboral | P144: CAPEP | S144: CRIE | V144: UOP | Y144: UAEBH | AB144: Otro | AE144: Especifique producto o servicio en lo que se planea ejercer | AM144: Propósito de la actividad
D145: SEE: | G145: SEE: | J145: SEE: | M145: SEE: | P145: SEE: | S145: SEE: | V145: SEE: | Y145: SEE: | AB145: SEE:
D146: M | E146: H | F146: T | G146: M | H146: H | I146: T | J146: M | K146: H | L146: T | M146: M | N146: H | O146: T | P146: M | Q146: H | R146: T | S146: M | T146: H | U146: T | V146: M | W146: H | X146: T | Y146: M | Z146: H | AA146: T | AB146: M | AC146: H | AD146: T
B147: Estudiantes beneficiados | F147: =SUM(D147,E147) -> 0 | I147: =SUM(G147,H147) -> 0 | L147: =SUM(J147,K147) -> 0 | O147: =SUM(M147,N147) -> 0 | R147: =SUM(P147,Q147) -> 0 | U147: =SUM(S147,T147) -> 0 | X147: =SUM(V147,W147) -> 0 | AA147: =SUM(Y147,Z147) -> 0 | AD147: =SUM(AB147,AC147) -> 0
B149: En caso de requerir alguna precisión o aclaración, describa brevemente:

Sheet Atención complementaria AS
B1: Subsecretaría de Educación Básica Dirección General de Desarrollo Curricular Dirección de Fortalecimiento Curricular para la Formación Personal y Social en la Educación Básica Educación Especial
B6: Componente: 2. Atención complementaria a estudiantes con aptitudes sobresalientes
B7: Para garantizar el cumplimiento de los objetivos del PFSEE las AEL podrán destinar hasta un 50% del recurso, de acuerdo con lo estipulado en las reglas de operación 2025.
B8: 2.1 Acciones orientadas a la intervención directa y la atención complementaria: académica, artística, deportiva, rehabilitadora, desarrollo de habilidades socioafectivas y/o que contribuyan en el diagnóstico de las y los estudiantes con aptitudes sobresalientes
B9: Recurso programado: | D9: ='Distribución presupuestal 2025'!W56 -> 106500 | H9: SEE focalizados: | J9: USAER | K9: ='SEE 2025'!N21 -> 53 | L9: CAPEP | M9: ='SEE 2025'!O21 -> 0 | N9: CRIE | O9: ='SEE 2025'!P21 -> 0 | P9: UOP | Q9: ='SEE 2025'!Q21 -> 0 | R9: UAEBH | S9: ='SEE 2025'!R21 -> 0 | T9: Otro | U9: ='SEE 2025'!S21 -> 0
B10: Remanente | D10: =D9-SUM(A13:A81) -> 0
B12: Numero de actividad | D12: 2.1.1
A13: =R13 -> 106500 | B13: Tipo de actividad | D13: Trimestre de inicio | G13: 4to | I13: Trimestre de término | L13: 4to | N13: Presupuesto de la actividad | R13: 106500 | V13: Título de la actividad | W13: TALLER DE ENRIQUECIMIENTO EXTRACURRICULAR DE ARTES
B14: Artística | D14: USAER | G14: CAPEP | J14: CRIE | M14: UOP | P14: UAEBH | S14: Otro | V14: Especifique producto o servicio en lo que se planea ejercer | X14: Propósito de la actividad
D15: SEE: | E15: 53 | G15: SEE: | H15: 0 | J15: SEE: | K15: 0 | M15: SEE: | N15: 0 | P15: SEE: | Q15: 0 | S15: SEE: | T15: 0
D16: M | E16: H | F16: T | G16: M | H16: H | I16: T | J16: M | K16: H | L16: T | M16: M | N16: H | O16: T | P16: M | Q16: H | R16: T | S16: M | T16: H | U16: T
B17: Estudiantes beneficiados | D17: 100 | E17: 80 | F17: =SUM(D17,E17) -> 180 | G17: 0 | H17: 0 | I17: =SUM(G17,H17) -> 0 | J17: 0 | K17: 0 | L17: =SUM(J17,K17) -> 0 | M17: 0 | N17: 0 | O17: =SUM(M17,N17) -> 0 | P17: 0 | Q17: 0 | R17: =SUM(P17,Q17) -> 0 | S17: 0 | T17: 0 | U17: =SUM(S17,T17) -> 0 | V17: Pago a especialistas | W17: N/A | X17: Potenciar las habilidades artísticas de los alumnos con aptitudes sobresalientes,
V18: N/A | W18: N/A
B19: En caso de requerir alguna precisión o aclaración, describa brevemente: | V19: N/A | W19: N/A
B20: Durango (3 grupos) y laguna (3 grupos). Durango asisten USAER de la zona urbana. 30 servicios Durango, 23 servicios laguna, . Servicios total. | V20: N/A | W20: N/A
V21: N/A | W21: N/A
V22: N/A | W22: N/A
V23: N/A | W23: N/A
V24: N/A | W24: N/A
B26: Numero de actividad | D26: 2.1.2
A27: =R27 -> 0 | B27: Tipo de actividad | D27: Trimestre de inicio | G27: 4to | I27: Trimestre de término | L27: 4to | N27: Presupuesto de la actividad | V27: Título de la actividad
D28: USAER | G28: CAPEP | J28: CRIE | M28: UOP | P28: UAEBH | S28: Otro | V28: Especifique producto o servicio en lo que se planea ejercer | X28: Propósito de la actividad
D29: SEE: | E29: 0 | G29: SEE: | H29: 0 | J29: SEE: | K29: 0 | M29: SEE: | N29: 0 | P29: SEE: | Q29: 0 | S29: SEE: | T29: 0
D30: M | E30: H | F30: T | G30: M | H30: H | I30: T | J30: M | K30: H | L30: T | M30: M | N30: H | O30: T | P30: M | Q30: H | R30: T | S30: M | T30: H | U30: T
B31: Estudiantes beneficiados | D31: 0 | E31: 0 | F31: =SUM(D31,E31) -> 0 | G31: 0 | H31: 0 | I31: =SUM(G31,H31) -> 0 | J31: 0 | K31: 0 | L31: =SUM(J31,K31) -> 0 | M31: 0 | N31: 0 | O31: =SUM(M31,N31) -> 0 | P31: 0 | Q31: 0 | R31: =SUM(P31,Q31) -> 0 | S31: 0 | T31: 0 | U31: =SUM(S31,T31) -> 0
B33: En caso de requerir alguna precisión o aclaración, describa brevemente:
B40: Numero de actividad | D40: 2.1.3
A41: =R41 -> 0 | B41: Tipo de actividad | D41: Trimestre de inicio | I41: Trimestre de término | N41: Presupuesto de la actividad | V41: Título de la actividad
D42: USAER | G42: CAPEP | J42: CRIE | M42: UOP | P42: UAEBH | S42: Otro | V42: Especifique producto o servicio en lo que se planea ejercer | X42: Propósito de la actividad
D43: SEE: | G43: SEE: | J43: SEE: | M43: SEE: | P43: SEE: | S43: SEE:
D44: M | E44: H | F44: T | G44: M | H44: H | I44: T | J44: M | K44: H | L44: T | M44: M | N44: H | O44: T | P44: M | Q44: H | R44: T | S44: M | T44: H | U44: T
B45: Estudiantes beneficiados | F45: =SUM(D45,E45) -> 0 | I45: =SUM(G45,H45) -> 0 | L45: =SUM(J45,K45) -> 0 | O45: =SUM(M45,N45) -> 0 | R45: =SUM(P45,Q45) -> 0 | U45: =SUM(S45,T45) -> 0
B47: En caso de requerir alguna precisión o aclaración, describa brevemente:
B54: Numero de actividad | D54: 2.1.4
A55: =R55 -> 0 | B55: Tipo de actividad | D55: Trimestre de inicio | I55: Trimestre de término | N55: Presupuesto de la actividad | V55: Título de la actividad
D56: USAER | G56: CAPEP | J56: CRIE | M56: UOP | P56: UAEBH | S56: Otro | V56: Especifique producto o servicio en lo que se planea ejercer | X56: Propósito de la actividad
D57: SEE: | G57: SEE: | J57: SEE: | M57: SEE: | P57: SEE: | S57: SEE:
D58: M | E58: H | F58: T | G58: M | H58: H | I58: T | J58: M | K58: H | L58: T | M58: M | N58: H | O58: T | P58: M | Q58: H | R58: T | S58: M | T58: H | U58: T
B59: Estudiantes beneficiados | F59: =SUM(D59,E59) -> 0 | I59: =SUM(G59,H59) -> 0 | L59: =SUM(J59,K59) -> 0 | O59: =SUM(M59,N59) -> 0 | R59: =SUM(P59,Q59) -> 0 | U59: =SUM(S59,T59) -> 0
B61: En caso de requerir alguna precisión o aclaración, describa brevemente:
B68: Numero de actividad | D68: 2.1.5
A69: =R69 -> 0 | B69: Tipo de actividad | D69: Trimestre de inicio | I69: Trimestre de término | N69: Presupuesto de la actividad | V69: Título de la actividad
D70: USAER | G70: CAPEP | J70: CRIE | M70: UOP | P70: UAEBH | S70: Otro | V70: Especifique producto o servicio en lo que se planea ejercer | X70: Propósito de la actividad
D71: SEE: | G71: SEE: | J71: SEE: | M71: SEE: | P71: SEE: | S71: SEE:
D72: M | E72: H | F72: T | G72: M | H72: H | I72: T | J72: M | K72: H | L72: T | M72: M | N72: H | O72: T | P72: M | Q72: H | R72: T | S72: M | T72: H | U72: T
B73: Estudiantes beneficiados | F73: =SUM(D73,E73) -> 0 | I73: =SUM(G73,H73) -> 0 | L73: =SUM(J73,K73) -> 0 | O73: =SUM(M73,N73) -> 0 | R73: =SUM(P73,Q73) -> 0 | U73: =SUM(S73,T73) -> 0
B75: En caso de requerir alguna precisión o aclaración, describa brevemente:
B82: 2.2 Acciones orientadas a que las y los estudiantes con aptitudes sobresalientes, pongan en práctica las habilidades académicas, artísticas, deportivas, para la vida y/o laborales y que promuevan la sensibilización, promoción, difusión y desarrollo en la comunidad escolar una cultura inclusiva, a través de campañas, ferias y eventos
B83: Recurso programado: | D83: ='Distribución presupuestal 2025'!W57 -> 510000 | H83: SEE focalizados: | J83: USAER | K83: ='SEE 2025'!N21 -> 53 | L83: CAPEP | M83: ='SEE 2025'!O21 -> 0 | N83: CRIE | O83: ='SEE 2025'!P21 -> 0 | P83: UOP | Q83: ='SEE 2025'!Q21 -> 0 | R83: UAEBH | S83: ='SEE 2025'!R21 -> 0 | T83: Otro | U83: ='SEE 2025'!S21 -> 0
B84: Remanente | D84: =D83-SUM(A87:A154) -> 510000
B86: Numero de actividad | D86: 2.2.1
A87: =R87 -> 0 | B87: Tipo de actividad | D87: Trimestre de inicio | I87: Trimestre de término | N87: Presupuesto de la actividad | V87: Título de la actividad
D88: USAER | G88: CAPEP | J88: CRIE | M88: UOP | P88: UAEBH | S88: Otro | V88: Especifique producto o servicio en lo que se planea ejercer | X88: Propósito de la actividad
D89: SEE: | G89: SEE: | J89: SEE: | M89: SEE: | P89: SEE: | S89: SEE:
D90: M | E90: H | F90: T | G90: M | H90: H | I90: T | J90: M | K90: H | L90: T | M90: M | N90: H | O90: T | P90: M | Q90: H | R90: T | S90: M | T90: H | U90: T
B91: Estudiantes beneficiados | F91: =SUM(D91,E91) -> 0 | I91: =SUM(G91,H91) -> 0 | L91: =SUM(J91,K91) -> 0 | O91: =SUM(M91,N91) -> 0 | R91: =SUM(P91,Q91) -> 0 | U91: =SUM(S91,T91) -> 0
B93: En caso de requerir alguna precisión o aclaración, describa brevemente:
B100: Numero de actividad | D100: 2.2.2
A101: =R101 -> 0 | B101: Tipo de actividad | D101: Trimestre de inicio | I101: Trimestre de término | N101: Presupuesto de la actividad | V101: Título de la actividad
D102: USAER | G102: CAPEP | J102: CRIE | M102: UOP | P102: UAEBH | S102: Otro | V102: Especifique producto o servicio en lo que se planea ejercer | X102: Propósito de la actividad
D103: SEE: | G103: SEE: | J103: SEE: | M103: SEE: | P103: SEE: | S103: SEE:
D104: M | E104: H | F104: T | G104: M | H104: H | I104: T | J104: M | K104: H | L104: T | M104: M | N104: H | O104: T | P104: M | Q104: H | R104: T | S104: M | T104: H | U104: T
B105: Estudiantes beneficiados | F105: =SUM(D105,E105) -> 0 | I105: =SUM(G105,H105) -> 0 | L105: =SUM(J105,K105) -> 0 | O105: =SUM(M105,N105) -> 0 | R105: =SUM(P105,Q105) -> 0 | U105: =SUM(S105,T105) -> 0
B107: En caso de requerir alguna precisión o aclaración, describa brevemente:
B114: Numero de actividad | D114: 2.2.3
A115: =R115 -> 0 | B115: Tipo de actividad | D115: Trimestre de inicio | I115: Trimestre de término | N115: Presupuesto de la actividad | V115: Título de la actividad
D116: USAER | G116: CAPEP | J116: CRIE | M116: UOP | P116: UAEBH | S116: Otro | V116: Especifique producto o servicio en lo que se planea ejercer | X116: Propósito de la actividad
D117: SEE: | G117: SEE: | J117: SEE: | M117: SEE: | P117: SEE: | S117: SEE:
D118: M | E118: H | F118: T | G118: M | H118: H | I118: T | J118: M | K118: H | L118: T | M118: M | N118: H | O118: T | P118: M | Q118: H | R118: T | S118: M | T118: H | U118: T
B119: Estudiantes beneficiados | F119: =SUM(D119,E119) -> 0 | I119: =SUM(G119,H119) -> 0 | L119: =SUM(J119,K119) -> 0 | O119: =SUM(M119,N119) -> 0 | R119: =SUM(P119,Q119) -> 0 | U119: =SUM(S119,T119) -> 0
B121: En caso de requerir alguna precisión o aclaración, describa brevemente:
B128: Numero de actividad | D128: 2.2.4
A129: =R129 -> 0 | B129: Tipo de actividad | D129: Trimestre de inicio | I129: Trimestre de término | N129: Presupuesto de la actividad | V129: Título de la actividad
D130: USAER | G130: CAPEP | J130: CRIE | M130: UOP | P130: UAEBH | S130: Otro | V130: Especifique producto o servicio en lo que se planea ejercer | X130: Propósito de la actividad
D131: SEE: | G131: SEE: | J131: SEE: | M131: SEE: | P131: SEE: | S131: SEE:
D132: M | E132: H | F132: T | G132: M | H132: H | I132: T | J132: M | K132: H | L132: T | M132: M | N132: H | O132: T | P132: M | Q132: H | R132: T | S132: M | T132: H | U132: T
B133: Estudiantes beneficiados | F133: =SUM(D133,E133) -> 0 | I133: =SUM(G133,H133) -> 0 | L133: =SUM(J133,K133) -> 0 | O133: =SUM(M133,N133) -> 0 | R133: =SUM(P133,Q133) -> 0 | U133: =SUM(S133,T133) -> 0
B135: En caso de requerir alguna precisión o aclaración, describa brevemente:
B142: Numero de actividad | D142: 2.2.5
A143: =R143 -> 0 | B143: Tipo de actividad | D143: Trimestre de inicio | I143: Trimestre de término | N143: Presupuesto de la actividad | V143: Título de la actividad
D144: USAER | G144: CAPEP | J144: CRIE | M144: UOP | P144: UAEBH | S144: Otro | V144: Especifique producto o servicio en lo que se planea ejercer | X144: Propósito de la actividad
D145: SEE: | G145: SEE: | J145: SEE: | M145: SEE: | P145: SEE: | S145: SEE:
D146: M | E146: H | F146: T | G146: M | H146: H | I146: T | J146: M | K146: H | L146: T | M146: M | N146: H | O146: T | P146: M | Q146: H | R146: T | S146: M | T146: H | U146: T
B147: Estudiantes beneficiados | F147: =SUM(D147,E147) -> 0 | I147: =SUM(G147,H147) -> 0 | L147: =SUM(J147,K147) -> 0 | O147: =SUM(M147,N147) -> 0 | R147: =SUM(P147,Q147) -> 0 | U147: =SUM(S147,T147) -> 0
B149: En caso de requerir alguna precisión o aclaración, describa brevemente:

Sheet Equipamiento específico DIS
AV1: Subsecretaría de Educación Básica Dirección General de Desarrollo Curricular Dirección de Fortalecimiento Curricular para la Formación Personal y Social en la Educación Básica Educación Especial
A6: Componente: 3. Equipamiento específico en beneficio de estudiantes con discapacidad
A7: Para garantizar el cumplimiento de los objetivos del PFSEE las AEL podrán destinar hasta un 80% del recurso, de acuerdo con lo estipulado en las reglas de operación 2025.
A9: 3.1 Dotar de material didáctico especializado para estudiantes con discapacidad
A10: Recurso programado: | C10: ='Distribución presupuestal 2025'!H61 -> 633427.19
A11: Remanente | C11: =C10-AV27 -> 0
C13: Focalizados USAER | F13: ='SEE 2025'!B$26 -> 81 | H13: Focalizados CAM básico | K13: ='SEE 2025'!C$26 -> 0 | M13: Focalizados CAM b con FpT | P13: ='SEE 2025'!C$28 -> 28 | R13: Focalizados CAM laboral | U13: ='SEE 2025'!D$26 -> 2 | W13: Focalizados CAPEP | Z13: ='SEE 2025'!E$26 -> 0 | AB13: Focalizados CRIE | AE13: ='SEE 2025'!F$26 -> 0 | AG13: Focalizados UOP | AJ13: ='SEE 2025'!G$26 -> 0 | AL13: Focalizados UAEBH | AO13: ='SEE 2025'!H$26 -> 0 | AQ13: Focalizados Otro | AT13: ='SEE 2025'!I$26 -> 0
A14: Tipo de materiales (seleccione) | B14: Material a adquirir | C14: Cantidad a distribuir | D14: USAER | H14: Cantidad a distribuir | I14: CAM básico | M14: Cantidad a distribuir | N14: CAM básico con FpT | R14: Cantidad a distribuir | S14: CAM laboral | W14: Cantidad a distribuir | X14: CAPEP | AB14: Cantidad a distribuir | AC14: CRIE | AG14: Cantidad a distribuir | AH14: UOP | AL14: Cantidad a distribuir | AM14: UAEBH | AQ14: Cantidad a distribuir | AR14: Otro | AV14: Presupuesto | AW14: Trimestre de inicio | AX14: Trimestre de término | AY14: Propósito educativo (específico del material a adquirir)
D15: SEE | E15: Estudiantes | I15: SEE | J15: Estudiantes | N15: SEE | O15: Estudiantes | S15: SEE | T15: Estudiantes | X15: SEE | Y15: Estudiantes | AC15: SEE | AD15: Estudiantes | AH15: SEE | AI15: Estudiantes | AM15: SEE | AN15: Estudiantes | AR15: SEE | AS15: Estudiantes
E16: M | F16: H | G16: T | J16: M | K16: H | L16: T | O16: M | P16: H | Q16: T | T16: M | U16: H | V16: T | Y16: M | Z16: H | AA16: T | AD16: M | AE16: H | AF16: T | AI16: M | AJ16: H | AK16: T | AN16: M | AO16: H | AP16: T | AS16: M | AT16: H | AU16: T
C17: 0 | D17: 0 | E17: 0 | F17: 0 | G17: =SUM(E17,F17) -> 0 | H17: 0 | I17: 0 | J17: 0 | K17: 0 | L17: =SUM(J17,K17) -> 0 | M17: 0 | N17: 0 | O17: 0 | P17: 0 | Q17: =SUM(O17,P17) -> 0 | R17: 0 | S17: 0 | T17: 0 | U17: 0 | V17: =SUM(T17,U17) -> 0 | W17: 0 | X17: 0 | Y17: 0 | Z17: 0 | AA17: =SUM(Y17,Z17) -> 0 | AB17: 0 | AC17: 0 | AD17: 0 | AE17: 0 | AF17: =SUM(AD17,AE17) -> 0 | AG17: 0 | AH17: 0 | AI17: 0 | AJ17: 0 | AK17: =SUM(AI17,AJ17) -> 0 | AL17: 0 | AM17: 0 | AN17: 0 | AO17: 0 | AP17: =SUM(AN17,AO17) -> 0 | AQ17: 0 | AR17: 0 | AS17: 0 | AT17: 0 | AU17: =SUM(AS17,AT17) -> 0 | AV17: N/A
A18: Paquetes con diversos materiales | B18: 1 Vamos de compras, 1 asociación por familias, 1 juego de preguntas rápidas ¿qué soy? Hedband, 1 juego abremente caja 3360 preguntas, 1 juego differix, 1 juguemos a identificar los sonidos, 1 tapetijuego huracán de animales. | C18: 405 | D18: 81 | E18: 759 | F18: 2019 | G18: =SUM(E18,F18) -> 2778 | H18: 0 | I18: 0 | J18: 0 | K18: 0 | L18: =SUM(J18,K18) -> 0 | M18: 0 | N18: 0 | O18: 0 | P18: 0 | Q18: =SUM(O18,P18) -> 0 | R18: 0 | S18: 0 | T18: 0 | U18: 0 | V18: =SUM(T18,U18) -> 0 | W18: 0 | X18: 0 | Y18: 0 | Z18: 0 | AA18: =SUM(Y18,Z18) -> 0 | AB18: 0 | AC18: 0 | AD18: 0 | AE18: 0 | AF18: =SUM(AD18,AE18) -> 0 | AG18: 0 | AH18: 0 | AI18: 0 | AJ18: 0 | AK18: =SUM(AI18,AJ18) -> 0 | AL18: 0 | AM18: 0 | AN18: 0 | AO18: 0 | AP18: =SUM(AN18,AO18) -> 0 | AQ18: 0 | AR18: 0 | AS18: 0 | AT18: 0 | AU18: =SUM(AS18,AT18) -> 0 | AV18: 324403.19 | AW18: 4to | AX18: 4to
A19: Paquetes con diversos materiales | B19: 1 Juego detective en acción, 1 juego bottón clothes, 1 juego nanú, 1 juego magic block, 1 juego figurix, 1 rompecabezas de cubos. | C19: 243 | D19: 81 | E19: 759 | F19: 2019 | G19: 2778 | H19: 0 | I19: 0 | J19: 0 | K19: 0 | L19: 0 | M19: 28 | N19: 28 | O19: 550 | P19: 858 | Q19: 1408 | R19: 2 | S19: 2 | T19: 49 | U19: 75 | V19: 124 | W19: 0 | X19: 0 | Y19: 0 | Z19: 0 | AA19: 0 | AB19: 0 | AC19: 0 | AD19: 0 | AE19: 0 | AF19: 0 | AG19: 0 | AH19: 0 | AI19: 0 | AJ19: 0 | AK19: 0 | AL19: 0 | AM19: 0 | AN19: 0 | AO19: 0 | AP19: 0 | AQ19: 0 | AR19: 0 | AS19: 0 | AT19: 0 | AU19: 0 | AV19: 309024 | AW19: 4to | AX19: 4to
B20: N/A | C20: 0 | D20: 0 | E20: 0 | F20: 0 | G20: 0 | H20: 0 | I20: 0 | J20: 0 | K20: 0 | L20: 0 | M20: 0 | N20: 0 | O20: 0 | P20: 0 | Q20: 0 | R20: 0 | S20: 0 | T20: 0 | U20: 0 | V20: 0 | W20: 0 | X20: 0 | Y20: 0 | Z20: 0 | AA20: 0 | AB20: 0 | AC20: 0 | AD20: 0 | AE20: 0 | AF20: 0 | AG20: 0 | AH20: 0 | AI20: 0 | AJ20: 0 | AK20: 0 | AL20: 0 | AM20: 0 | AN20: 0 | AO20: 0 | AP20: 0 | AQ20: 0 | AR20: 0 | AS20: 0 | AT20: 0 | AU20: 0 | AV20: N/A | AY20: N/A
B21: N/A | C21: 0 | D21: 0 | E21: 0 | F21: 0 | G21: 0 | H21: 0 | I21: 0 | J21: 0 | K21: 0 | L21: 0 | M21: 0 | N21: 0 | O21: 0 | P21: 0 | Q21: 0 | R21: 0 | S21: 0 | T21: 0 | U21: 0 | V21: 0 | W21: 0 | X21: 0 | Y21: 0 | Z21: 0 | AA21: 0 | AB21: 0 | AC21: 0 | AD21: 0 | AE21: 0 | AF21: 0 | AG21: 0 | AH21: 0 | AI21: 0 | AJ21: 0 | AK21: 0 | AL21: 0 | AM21: 0 | AN21: 0 | AO21: 0 | AP21: 0 | AQ21: 0 | AR21: 0 | AS21: 0 | AT21: 0 | AU21: 0 | AV21: N/A | AY21: N/A
B22: N/A | C22: 0 | D22: 0 | E22: 0 | F22: 0 | G22: 0 | H22: 0 | I22: 0 | J22: 0 | K22: 0 | L22: 0 | M22: 0 | N22: 0 | O22: 0 | P22: 0 | Q22: 0 | R22: 0 | S22: 0 | T22: 0 | U22: 0 | V22: 0 | W22: 0 | X22: 0 | Y22: 0 | Z22: 0 | AA22: 0 | AB22: 0 | AC22: 0 | AD22: 0 | AE22: 0 | AF22: 0 | AG22: 0 | AH22: 0 | AI22: 0 | AJ22: 0 | AK22: 0 | AL22: 0 | AM22: 0 | AN22: 0 | AO22: 0 | AP22: 0 | AQ22: 0 | AR22: 0 | AS22: 0 | AT22: 0 | AU22: 0 | AV22: N/A | AY22: N/A
B23: N/A | C23: 0 | D23: 0 | E23: 0 | F23: 0 | G23: 0 | H23: 0 | I23: 0 | J23: 0 | K23: 0 | L23: 0 | M23: 0 | N23: 0 | O23: 0 | P23: 0 | Q23: 0 | R23: 0 | S23: 0 | T23: 0 | U23: 0 | V23: 0 | W23: 0 | X23: 0 | Y23: 0 | Z23: 0 | AA23: 0 | AB23: 0 | AC23: 0 | AD23: 0 | AE23: 0 | AF23: 0 | AG23: 0 | AH23: 0 | AI23: 0 | AJ23: 0 | AK23: 0 | AL23: 0 | AM23: 0 | AN23: 0 | AO23: 0 | AP23: 0 | AQ23: 0 | AR23: 0 | AS23: 0 | AT23: 0 | AU23: 0 | AV23: N/A | AY23: N/A
B24: N/A | C24: 0 | D24: 0 | E24: 0 | F24: 0 | G24: 0 | H24: 0 | I24: 0 | J24: 0 | K24: 0 | L24: 0 | M24: 0 | N24: 0 | O24: 0 | P24: 0 | Q24: 0 | R24: 0 | S24: 0 | T24: 0 | U24: 0 | V24: 0 | W24: 0 | X24: 0 | Y24: 0 | Z24: 0 | AA24: 0 | AB24: 0 | AC24: 0 | AD24: 0 | AE24: 0 | AF24: 0 | AG24: 0 | AH24: 0 | AI24: 0 | AJ24: 0 | AK24: 0 | AL24: 0 | AM24: 0 | AN24: 0 | AO24: 0 | AP24: 0 | AQ24: 0 | AR24: 0 | AS24: 0 | AT24: 0 | AU24: 0 | AV24: N/A | AY24: N/A
B25: N/A | C25: 0 | D25: 0 | E25: 0 | F25: 0 | G25: 0 | H25: 0 | I25: 0 | J25: 0 | K25: 0 | L25: 0 | M25: 0 | N25: 0 | O25: 0 | P25: 0 | Q25: 0 | R25: 0 | S25: 0 | T25: 0 | U25: 0 | V25: 0 | W25: 0 | X25: 0 | Y25: 0 | Z25: 0 | AA25: 0 | AB25: 0 | AC25: 0 | AD25: 0 | AE25: 0 | AF25: 0 | AG25: 0 | AH25: 0 | AI25: 0 | AJ25: 0 | AK25: 0 | AL25: 0 | AM25: 0 | AN25: 0 | AO25: 0 | AP25: 0 | AQ25: 0 | AR25: 0 | AS25: 0 | AT25: 0 | AU25: 0 | AV25: N/A | AY25: N/A
B26: N/A | C26: 0 | D26: 0 | E26: 0 | F26: 0 | G26: 0 | H26: 0 | I26: 0 | J26: 0 | K26: 0 | L26: 0 | M26: 0 | N26: 0 | O26: 0 | P26: 0 | Q26: 0 | R26: 0 | S26: 0 | T26: 0 | U26: 0 | V26: 0 | W26: 0 | X26: 0 | Y26: 0 | Z26: 0 | AA26: 0 | AB26: 0 | AC26: 0 | AD26: 0 | AE26: 0 | AF26: 0 | AG26: 0 | AH26: 0 | AI26: 0 | AJ26: 0 | AK26: 0 | AL26: 0 | AM26: 0 | AN26: 0 | AO26: 0 | AP26: 0 | AQ26: 0 | AR26: 0 | AS26: 0 | AT26: 0 | AU26: 0 | AV26: N/A | AY26: N/A
A27: Total | C27: =SUM(C17:C26) -> 648 | D27: 162 | E27: 1518 | F27: 4038 | G27: 5556 | H27: =SUM(H17:H26) -> 0 | I27: =SUM(I17:I26) -> 0 | J27: =SUM(J17:J26) -> 0 | K27: =SUM(K17:K26) -> 0 | L27: =SUM(L17:L26) -> 0 | M27: 28 | N27: 28 | O27: 550 | P27: 858 | Q27: 1408 | R27: 2 | S27: 2 | T27: 49 | U27: 75 | V27: 124 | W27: =SUM(W17:W26) -> 0 | X27: 0 | Y27: 0 | Z27: 0 | AA27: 0 | AB27: 0 | AC27: 0 | AD27: 0 | AE27: 0 | AF27: 0 | AG27: 0 | AH27: 0 | AI27: 0 | AJ27: 0 | AK27: 0 | AL27: =SUM(AL17:AL26) -> 0 | AM27: 0 | AN27: 0 | AO27: 0 | AP27: 0 | AQ27: 0 | AR27: 0 | AS27: 0 | AT27: 0 | AU27: 0 | AV27: 633427.19
A29: En caso de requerir alguna precisión o aclaración, describa brevemente:
A30: Cada paquete considera cinco piezas del material descrito.
A32: 3.2 Adquirir equipamiento y materiales para salas de lectura y dotar de material bibliográfico para estudiantes con discapacidad
A33: Recurso programado: | C33: ='Distribución presupuestal 2025'!H62 -> 0
A34: Remanente | C34: =C33-AV50 -> 
C36: Focalizados USAER | F36: ='SEE 2025'!B$26 -> 81 | H36: Focalizados CAM básico | K36: ='SEE 2025'!C$26 -> 0 | M36: Focalizados CAM b con FpT | P36: ='SEE 2025'!C$28 -> 28 | R36: Focalizados CAM laboral | U36: ='SEE 2025'!D$26 -> 2 | W36: Focalizados CAPEP | Z36: ='SEE 2025'!E$26 -> 0 | AB36: Focalizados CRIE | AE36: ='SEE 2025'!F$26 -> 0 | AG36: Focalizados UOP | AJ36: ='SEE 2025'!G$26 -> 0 | AL36: Focalizados UAEBH | AO36: ='SEE 2025'!H$26 -> 0 | AQ36: Focalizados Otro | AT36: ='SEE 2025'!I$26 -> 0
A37: Tipo de material (seleccione) | C37: Cantidad a distribuir | D37: USAER | H37: Cantidad a distribuir | I37: CAM básico | M37: Cantidad a distribuir | N37: CAM básico con FpT | R37: Cantidad a distribuir | S37: CAM laboral | W37: Cantidad a distribuir | X37: CAPEP | AB37: Cantidad a distribuir | AC37: CRIE | AG37: Cantidad a distribuir | AH37: UOP | AL37: Cantidad a distribuir | AM37: UAEBH | AQ37: Cantidad a distribuir | AR37: Otro | AV37: Presupuesto | AW37: Trimestre de inicio | AX37: Trimestre de término | AY37: Propósito educativo (específico de la bibliografía a adquirir)
D38: SEE | E38: Estudiantes | I38: SEE | J38: Estudiantes | N38: SEE | O38: Estudiantes | S38: SEE | T38: Estudiantes | X38: SEE | Y38: Estudiantes | AC38: SEE | AD38: Estudiantes | AH38: SEE | AI38: Estudiantes | AM38: SEE | AN38: Estudiantes | AR38: SEE | AS38: Estudiantes
E39: M | F39: H | G39: T | J39: M | K39: H | L39: T | O39: M | P39: H | Q39: T | T39: M | U39: H | V39: T | Y39: M | Z39: H | AA39: T | AD39: M | AE39: H | AF39: T | AI39: M | AJ39: H | AK39: T | AN39: M | AO39: H | AP39: T | AS39: M | AT39: H | AU39: T
C40: 0 | D40: 0 | E40: 0 | F40: 0 | G40: =SUM(E40,F40) -> 0 | H40: 0 | I40: 0 | J40: 0 | K40: 0 | L40: =SUM(J40,K40) -> 0 | M40: 0 | N40: 0 | O40: 0 | P40: 0 | Q40: =SUM(O40,P40) -> 0 | R40: 0 | S40: 0 | T40: 0 | U40: 0 | V40: =SUM(T40,U40) -> 0 | W40: 0 | X40: 0 | Y40: 0 | Z40: 0 | AA40: =SUM(Y40,Z40) -> 0 | AB40: 0 | AC40: 0 | AD40: 0 | AE40: 0 | AF40: =SUM(AD40,AE40) -> 0 | AG40: 0 | AH40: 0 | AI40: 0 | AJ40: 0 | AK40: =SUM(AI40,AJ40) -> 0 | AL40: 0 | AM40: 0 | AN40: 0 | AO40: 0 | AP40: =SUM(AN40,AO40) -> 0 | AQ40: 0 | AR40: 0 | AS40: 0 | AT40: 0 | AU40: =SUM(AS40,AT40) -> 0 | AV40: N/A | AY40: N/A
C41: 0 | D41: 0 | E41: 0 | F41: 0 | G41: =SUM(E41,F41) -> 0 | H41: 0 | I41: 0 | J41: 0 | K41: 0 | L41: =SUM(J41,K41) -> 0 | M41: 0 | N41: 0 | O41: 0 | P41: 0 | Q41: =SUM(O41,P41) -> 0 | R41: 0 | S41: 0 | T41: 0 | U41: 0 | V41: =SUM(T41,U41) -> 0 | W41: 0 | X41: 0 | Y41: 0 | Z41: 0 | AA41: =SUM(Y41,Z41) -> 0 | AB41: 0 | AC41: 0 | AD41: 0 | AE41: 0 | AF41: =SUM(AD41,AE41) -> 0 | AG41: 0 | AH41: 0 | AI41: 0 | AJ41: 0 | AK41: =SUM(AI41,AJ41) -> 0 | AL41: 0 | AM41: 0 | AN41: 0 | AO41: 0 | AP41: =SUM(AN41,AO41) -> 0 | AQ41: 0 | AR41: 0 | AS41: 0 | AT41: 0 | AU41: =SUM(AS41,AT41) -> 0 | AV41: N/A | AY41: N/A
C42: 0 | D42: 0 | E42: 0 | F42: 0 | G42: 0 | H42: 0 | I42: 0 | J42: 0 | K42: 0 | L42: 0 | M42: 0 | N42: 0 | O42: 0 | P42: 0 | Q42: 0 | R42: 0 | S42: 0 | T42: 0 | U42: 0 | V42: 0 | W42: 0 | X42: 0 | Y42: 0 | Z42: 0 | AA42: 0 | AB42: 0 | AC42: 0 | AD42: 0 | AE42: 0 | AF42: 0 | AG42: 0 | AH42: 0 | AI42: 0 | AJ42: 0 | AK42: 0 | AL42: 0 | AM42: 0 | AN42: 0 | AO42: 0 | AP42: 0 | AQ42: 0 | AR42: 0 | AS42: 0 | AT42: 0 | AU42: 0 | AV42: N/A | AY42: N/A
C43: 0 | D43: 0 | E43: 0 | F43: 0 | G43: 0 | H43: 0 | I43: 0 | J43: 0 | K43: 0 | L43: 0 | M43: 0 | N43: 0 | O43: 0 | P43: 0 | Q43: 0 | R43: 0 | S43: 0 | T43: 0 | U43: 0 | V43: 0 | W43: 0 | X43: 0 | Y43: 0 | Z43: 0 | AA43: 0 | AB43: 0 | AC43: 0 | AD43: 0 | AE43: 0 | AF43: 0 | AG43: 0 | AH43: 0 | AI43: 0 | AJ43: 0 | AK43: 0 | AL43: 0 | AM43: 0 | AN43: 0 | AO43: 0 | AP43: 0 | AQ43: 0 | AR43: 0 | AS43: 0 | AT43: 0 | AU43: 0 | AV43: N/A | AY43: N/A
C44: 0 | D44: 0 | E44: 0 | F44: 0 | G44: 0 | H44: 0 | I44: 0 | J44: 0 | K44: 0 | L44: 0 | M44: 0 | N44: 0 | O44: 0 | P44: 0 | Q44: 0 | R44: 0 | S44: 0 | T44: 0 | U44: 0 | V44: 0 | W44: 0 | X44: 0 | Y44: 0 | Z44: 0 | AA44: 0 | AB44: 0 | AC44: 0 | AD44: 0 | AE44: 0 | AF44: 0 | AG44: 0 | AH44: 0 | AI44: 0 | AJ44: 0 | AK44: 0 | AL44: 0 | AM44: 0 | AN44: 0 | AO44: 0 | AP44: 0 | AQ44: 0 | AR44: 0 | AS44: 0 | AT44: 0 | AU44: 0 | AV44: N/A | AY44: N/A
C45: 0 | D45: 0 | E45: 0 | F45: 0 | G45: 0 | H45: 0 | I45: 0 | J45: 0 | K45: 0 | L45: 0 | M45: 0 | N45: 0 | O45: 0 | P45: 0 | Q45: 0 | R45: 0 | S45: 0 | T45: 0 | U45: 0 | V45: 0 | W45: 0 | X45: 0 | Y45: 0 | Z45: 0 | AA45: 0 | AB45: 0 | AC45: 0 | AD45: 0 | AE45: 0 | AF45: 0 | AG45: 0 | AH45: 0 | AI45: 0 | AJ45: 0 | AK45: 0 | AL45: 0 | AM45: 0 | AN45: 0 | AO45: 0 | AP45: 0 | AQ45: 0 | AR45: 0 | AS45: 0 | AT45: 0 | AU45: 0 | AV45: N/A | AY45: N/A
C46: 0 | D46: 0 | E46: 0 | F46: 0 | G46: 0 | H46: 0 | I46: 0 | J46: 0 | K46: 0 | L46: 0 | M46: 0 | N46: 0 | O46: 0 | P46: 0 | Q46: 0 | R46: 0 | S46: 0 | T46: 0 | U46: 0 | V46: 0 | W46: 0 | X46: 0 | Y46: 0 | Z46: 0 | AA46: 0 | AB46: 0 | AC46: 0 | AD46: 0 | AE46: 0 | AF46: 0 | AG46: 0 | AH46: 0 | AI46: 0 | AJ46: 0 | AK46: 0 | AL46: 0 | AM46: 0 | AN46: 0 | AO46: 0 | AP46: 0 | AQ46: 0 | AR46: 0 | AS46: 0 | AT46: 0 | AU46: 0 | AV46: N/A | AY46: N/A
C47: 0 | D47: 0 | E47: 0 | F47: 0 | G47: 0 | H47: 0 | I47: 0 | J47: 0 | K47: 0 | L47: 0 | M47: 0 | N47: 0 | O47: 0 | P47: 0 | Q47: 0 | R47: 0 | S47: 0 | T47: 0 | U47: 0 | V47: 0 | W47: 0 | X47: 0 | Y47: 0 | Z47: 0 | AA47: 0 | AB47: 0 | AC47: 0 | AD47: 0 | AE47: 0 | AF47: 0 | AG47: 0 | AH47: 0 | AI47: 0 | AJ47: 0 | AK47: 0 | AL47: 0 | AM47: 0 | AN47: 0 | AO47: 0 | AP47: 0 | AQ47: 0 | AR47: 0 | AS47: 0 | AT47: 0 | AU47: 0 | AV47: N/A | AY47: N/A
C48: 0 | D48: 0 | E48: 0 | F48: 0 | G48: 0 | H48: 0 | I48: 0 | J48: 0 | K48: 0 | L48: 0 | M48: 0 | N48: 0 | O48: 0 | P48: 0 | Q48: 0 | R48: 0 | S48: 0 | T48: 0 | U48: 0 | V48: 0 | W48: 0 | X48: 0 | Y48: 0 | Z48: 0 | AA48: 0 | AB48: 0 | AC48: 0 | AD48: 0 | AE48: 0 | AF48: 0 | AG48: 0 | AH48: 0 | AI48: 0 | AJ48: 0 | AK48: 0 | AL48: 0 | AM48: 0 | AN48: 0 | AO48: 0 | AP48: 0 | AQ48: 0 | AR48: 0 | AS48: 0 | AT48: 0 | AU48: 0 | AV48: N/A | AY48: N/A
C49: 0 | D49: 0 | E49: 0 | F49: 0 | G49: 0 | H49: 0 | I49: 0 | J49: 0 | K49: 0 | L49: 0 | M49: 0 | N49: 0 | O49: 0 | P49: 0 | Q49: 0 | R49: 0 | S49: 0 | T49: 0 | U49: 0 | V49: 0 | W49: 0 | X49: 0 | Y49: 0 | Z49: 0 | AA49: 0 | AB49: 0 | AC49: 0 | AD49: 0 | AE49: 0 | AF49: 0 | AG49: 0 | AH49: 0 | AI49: 0 | AJ49: 0 | AK49: 0 | AL49: 0 | AM49: 0 | AN49: 0 | AO49: 0 | AP49: 0 | AQ49: 0 | AR49: 0 | AS49: 0 | AT49: 0 | AU49: 0 | AV49: N/A | AY49: N/A
A50: Total | C50: =SUM(C40:C49) -> 0 | D50: 0 | E50: 0 | F50: 0 | G50: 0 | H50: 0 | I50: 0 | J50: 0 | K50: 0 | L50: 0 | M50: 0 | N50: 0 | O50: 0 | P50: 0 | Q50: 0 | R50: 0 | S50: 0 | T50: 0 | U50: 0 | V50: 0 | W50: 0 | X50: 0 | Y50: 0 | Z50: 0 | AA50: 0 | AB50: 0 | AC50: 0 | AD50: 0 | AE50: 0 | AF50: 0 | AG50: 0 | AH50: 0 | AI50: 0 | AJ50: 0 | AK50: 0 | AL50: 0 | AM50: 0 | AN50: 0 | AO50: 0 | AP50: 0 | AQ50: 0 | AR50: 0 | AS50: 0 | AT50: 0 | AU50: 0 | AV50: N/A
A52: En caso de requerir alguna precisión o aclaración, describa brevemente:
A55: 3.3 Diseño, producción e impresión de material en formatos adaptados para favorecer la accesibilidad de estudiantes con discapacidad
A56: Recurso programado: | C56: ='Distribución presupuestal 2025'!H63 -> 0
A57: Remanente | C57: =C56-AV73 -> 0
C59: Focalizados USAER | F59: ='SEE 2025'!B$26 -> 81 | H59: Focalizados CAM básico | K59: ='SEE 2025'!C$26 -> 0 | M59: Focalizados CAM b con FpT | P59: ='SEE 2025'!C$28 -> 28 | R59: Focalizados CAM laboral | U59: ='SEE 2025'!D$26 -> 2 | W59: Focalizados CAPEP | Z59: ='SEE 2025'!E$26 -> 0 | AB59: Focalizados CRIE | AE59: ='SEE 2025'!F$26 -> 0 | AG59: Focalizados UOP | AJ59: ='SEE 2025'!G$26 -> 0 | AL59: Focalizados UAEBH | AO59: ='SEE 2025'!H$26 -> 0 | AQ59: Focalizados Otro | AT59: ='SEE 2025'!I$26 -> 0
A60: Tipo de material a reproducir (seleccione) | B60: Título de los materiales | C60: Cantidad a distribuir | D60: USAER | H60: Cantidad a distribuir | I60: CAM básico | M60: Cantidad a distribuir | N60: CAM básico con FpT | R60: Cantidad a distribuir | S60: CAM laboral | W60: Cantidad a distribuir | X60: CAPEP | AB60: Cantidad a distribuir | AC60: CRIE | AG60: Cantidad a distribuir | AH60: UOP | AL60: Cantidad a distribuir | AM60: UAEBH | AQ60: Cantidad a distribuir | AR60: Otro | AV60: Presupuesto | AW60: Trimestre de inicio | AX60: Trimestre de término | AY60: Propósito educativo (específico de los materiales a reproducir)
D61: SEE | E61: Estudiantes | I61: SEE | J61: Estudiantes | N61: SEE | O61: Estudiantes | S61: SEE | T61: Estudiantes | X61: SEE | Y61: Estudiantes | AC61: SEE | AD61: Estudiantes | AH61: SEE | AI61: Estudiantes | AM61: SEE | AN61: Estudiantes | AR61: SEE | AS61: Estudiantes
E62: M | F62: H | G62: T | J62: M | K62: H | L62: T | O62: M | P62: H | Q62: T | T62: M | U62: H | V62: T | Y62: M | Z62: H | AA62: T | AD62: M | AE62: H | AF62: T | AI62: M | AJ62: H | AK62: T | AN62: M | AO62: H | AP62: T | AS62: M | AT62: H | AU62: T
B63: N/A | C63: 0 | D63: 0 | E63: 0 | F63: 0 | G63: =SUM(E63,F63) -> 0 | H63: 0 | I63: 0 | J63: 0 | K63: 0 | L63: =SUM(J63,K63) -> 0 | M63: 0 | N63: 0 | O63: 0 | P63: 0 | Q63: =SUM(O63,P63) -> 0 | R63: 0 | S63: 0 | T63: 0 | U63: 0 | V63: =SUM(T63,U63) -> 0 | W63: 0 | X63: 0 | Y63: 0 | Z63: 0 | AA63: =SUM(Y63,Z63) -> 0 | AB63: 0 | AC63: 0 | AD63: 0 | AE63: 0 | AF63: =SUM(AD63,AE63) -> 0 | AG63: 0 | AH63: 0 | AI63: 0 | AJ63: 0 | AK63: =SUM(AI63,AJ63) -> 0 | AL63: 0 | AM63: 0 | AN63: 0 | AO63: 0 | AP63: =SUM(AN63,AO63) -> 0 | AQ63: 0 | AR63: 0 | AS63: 0 | AT63: 0 | AU63: =SUM(AS63,AT63) -> 0 | AV63: N/A | AY63: N/A
B64: N/A | C64: 0 | D64: 0 | E64: 0 | F64: 0 | G64: =SUM(E64,F64) -> 0 | H64: 0 | I64: 0 | J64: 0 | K64: 0 | L64: =SUM(J64,K64) -> 0 | M64: 0 | N64: 0 | O64: 0 | P64: 0 | Q64: =SUM(O64,P64) -> 0 | R64: 0 | S64: 0 | T64: 0 | U64: 0 | V64: =SUM(T64,U64) -> 0 | W64: 0 | X64: 0 | Y64: 0 | Z64: 0 | AA64: =SUM(Y64,Z64) -> 0 | AB64: 0 | AC64: 0 | AD64: 0 | AE64: 0 | AF64: =SUM(AD64,AE64) -> 0 | AG64: 0 | AH64: 0 | AI64: 0 | AJ64: 0 | AK64: =SUM(AI64,AJ64) -> 0 | AL64: 0 | AM64: 0 | AN64: 0 | AO64: 0 | AP64: =SUM(AN64,AO64) -> 0 | AQ64: 0 | AR64: 0 | AS64: 0 | AT64: 0 | AU64: =SUM(AS64,AT64) -> 0 | AV64: N/A | AY64: N/A
B65: N/A | C65: 0 | D65: 0 | E65: 0 | F65: 0 | G65: 0 | H65: 0 | I65: 0 | J65: 0 | K65: 0 | L65: 0 | M65: 0 | N65: 0 | O65: 0 | P65: 0 | Q65: 0 | R65: 0 | S65: 0 | T65: 0 | U65: 0 | V65: 0 | W65: 0 | X65: 0 | Y65: 0 | Z65: 0 | AA65: 0 | AB65: 0 | AC65: 0 | AD65: 0 | AE65: 0 | AF65: 0 | AG65: 0 | AH65: 0 | AI65: 0 | AJ65: 0 | AK65: 0 | AL65: 0 | AM65: 0 | AN65: 0 | AO65: 0 | AP65: 0 | AQ65: 0 | AR65: 0 | AS65: 0 | AT65: 0 | AU65: 0 | AV65: N/A | AY65: N/A
B66: N/A | C66: 0 | D66: 0 | E66: 0 | F66: 0 | G66: 0 | H66: 0 | I66: 0 | J66: 0 | K66: 0 | L66: 0 | M66: 0 | N66: 0 | O66: 0 | P66: 0 | Q66: 0 | R66: 0 | S66: 0 | T66: 0 | U66: 0 | V66: 0 | W66: 0 | X66: 0 | Y66: 0 | Z66: 0 | AA66: 0 | AB66: 0 | AC66: 0 | AD66: 0 | AE66: 0 | AF66: 0 | AG66: 0 | AH66: 0 | AI66: 0 | AJ66: 0 | AK66: 0 | AL66: 0 | AM66: 0 | AN66: 0 | AO66: 0 | AP66: 0 | AQ66: 0 | AR66: 0 | AS66: 0 | AT66: 0 | AU66: 0 | AV66: N/A | AY66: N/A
B67: N/A | C67: 0 | D67: 0 | E67: 0 | F67: 0 | G67: 0 | H67: 0 | I67: 0 | J67: 0 | K67: 0 | L67: 0 | M67: 0 | N67: 0 | O67: 0 | P67: 0 | Q67: 0 | R67: 0 | S67: 0 | T67: 0 | U67: 0 | V67: 0 | W67: 0 | X67: 0 | Y67: 0 | Z67: 0 | AA67: 0 | AB67: 0 | AC67: 0 | AD67: 0 | AE67: 0 | AF67: 0 | AG67: 0 | AH67: 0 | AI67: 0 | AJ67: 0 | AK67: 0 | AL67: 0 | AM67: 0 | AN67: 0 | AO67: 0 | AP67: 0 | AQ67: 0 | AR67: 0 | AS67: 0 | AT67: 0 | AU67: 0 | AV67: N/A | AY67: N/A
B68: N/A | C68: 0 | D68: 0 | E68: 0 | F68: 0 | G68: 0 | H68: 0 | I68: 0 | J68: 0 | K68: 0 | L68: 0 | M68: 0 | N68: 0 | O68: 0 | P68: 0 | Q68: 0 | R68: 0 | S68: 0 | T68: 0 | U68: 0 | V68: 0 | W68: 0 | X68: 0 | Y68: 0 | Z68: 0 | AA68: 0 | AB68: 0 | AC68: 0 | AD68: 0 | AE68: 0 | AF68: 0 | AG68: 0 | AH68: 0 | AI68: 0 | AJ68: 0 | AK68: 0 | AL68: 0 | AM68: 0 | AN68: 0 | AO68: 0 | AP68: 0 | AQ68: 0 | AR68: 0 | AS68: 0 | AT68: 0 | AU68: 0 | AV68: N/A | AY68: N/A
B69: N/A | C69: 0 | D69: 0 | E69: 0 | F69: 0 | G69: 0 | H69: 0 | I69: 0 | J69: 0 | K69: 0 | L69: 0 | M69: 0 | N69: 0 | O69: 0 | P69: 0 | Q69: 0 | R69: 0 | S69: 0 | T69: 0 | U69: 0 | V69: 0 | W69: 0 | X69: 0 | Y69: 0 | Z69: 0 | AA69: 0 | AB69: 0 | AC69: 0 | AD69: 0 | AE69: 0 | AF69: 0 | AG69: 0 | AH69: 0 | AI69: 0 | AJ69: 0 | AK69: 0 | AL69: 0 | AM69: 0 | AN69: 0 | AO69: 0 | AP69: 0 | AQ69: 0 | AR69: 0 | AS69: 0 | AT69: 0 | AU69: 0 | AV69: N/A | AY69: N/A
B70: N/A | C70: 0 | D70: 0 | E70: 0 | F70: 0 | G70: 0 | H70: 0 | I70: 0 | J70: 0 | K70: 0 | L70: 0 | M70: 0 | N70: 0 | O70: 0 | P70: 0 | Q70: 0 | R70: 0 | S70: 0 | T70: 0 | U70: 0 | V70: 0 | W70: 0 | X70: 0 | Y70: 0 | Z70: 0 | AA70: 0 | AB70: 0 | AC70: 0 | AD70: 0 | AE70: 0 | AF70: 0 | AG70: 0 | AH70: 0 | AI70: 0 | AJ70: 0 | AK70: 0 | AL70: 0 | AM70: 0 | AN70: 0 | AO70: 0 | AP70: 0 | AQ70: 0 | AR70: 0 | AS70: 0 | AT70: 0 | AU70: 0 | AV70: N/A | AY70: N/A
B71: N/A | C71: 0 | D71: 0 | E71: 0 | F71: 0 | G71: 0 | H71: 0 | I71: 0 | J71: 0 | K71: 0 | L71: 0 | M71: 0 | N71: 0 | O71: 0 | P71: 0 | Q71: 0 | R71: 0 | S71: 0 | T71: 0 | U71: 0 | V71: 0 | W71: 0 | X71: 0 | Y71: 0 | Z71: 0 | AA71: 0 | AB71: 0 | AC71: 0 | AD71: 0 | AE71: 0 | AF71: 0 | AG71: 0 | AH71: 0 | AI71: 0 | AJ71: 0 | AK71: 0 | AL71: 0 | AM71: 0 | AN71: 0 | AO71: 0 | AP71: 0 | AQ71: 0 | AR71: 0 | AS71: 0 | AT71: 0 | AU71: 0 | AV71: N/A | AY71: N/A
B72: N/A | C72: 0 | D72: 0 | E72: 0 | F72: 0 | G72: 0 | H72: 0 | I72: 0 | J72: 0 | K72: 0 | L72: 0 | M72: 0 | N72: 0 | O72: 0 | P72: 0 | Q72: 0 | R72: 0 | S72: 0 | T72: 0 | U72: 0 | V72: 0 | W72: 0 | X72: 0 | Y72: 0 | Z72: 0 | AA72: 0 | AB72: 0 | AC72: 0 | AD72: 0 | AE72: 0 | AF72: 0 | AG72: 0 | AH72: 0 | AI72: 0 | AJ72: 0 | AK72: 0 | AL72: 0 | AM72: 0 | AN72: 0 | AO72: 0 | AP72: 0 | AQ72: 0 | AR72: 0 | AS72: 0 | AT72: 0 | AU72: 0 | AV72: N/A | AY72: N/A
A73: Total | C73: =SUM(C63:C72) -> 0 | D73: 0 | E73: 0 | F73: 0 | G73: 0 | H73: 0 | I73: 0 | J73: 0 | K73: 0 | L73: 0 | M73: 0 | N73: 0 | O73: 0 | P73: 0 | Q73: 0 | R73: 0 | S73: 0 | T73: 0 | U73: 0 | V73: 0 | W73: 0 | X73: 0 | Y73: 0 | Z73: 0 | AA73: 0 | AB73: 0 | AC73: 0 | AD73: 0 | AE73: 0 | AF73: 0 | AG73: 0 | AH73: 0 | AI73: 0 | AJ73: 0 | AK73: 0 | AL73: 0 | AM73: 0 | AN73: 0 | AO73: 0 | AP73: 0 | AQ73: 0 | AR73: 0 | AS73: 0 | AT73: 0 | AU73: 0 | AV73: 0
A75: En caso de requerir alguna precisión o aclaración, describa brevemente:
A78: 3.4 Dotar de equipo adaptado, tecnológico y/o multimedia para estudiantes con discapacidad
A79: Recurso programado: | C79: ='Distribución presupuestal 2025'!H64 -> 0
A80: Remanente | C80: =C79-AV96 -> 0
C82: Focalizados USAER | F82: ='SEE 2025'!B$26 -> 81 | H82: Focalizados CAM básico | K82: ='SEE 2025'!C$26 -> 0 | M82: Focalizados CAM b con FpT | P82: ='SEE 2025'!C$28 -> 28 | R82: Focalizados CAM laboral | U82: ='SEE 2025'!D$26 -> 2 | W82: Focalizados CAPEP | Z82: ='SEE 2025'!E$26 -> 0 | AB82: Focalizados CRIE | AE82: ='SEE 2025'!F$26 -> 0 | AG82: Focalizados UOP | AJ82: ='SEE 2025'!G$26 -> 0 | AL82: Focalizados UAEBH | AO82: ='SEE 2025'!H$26 -> 0 | AQ82: Focalizados Otro | AT82: ='SEE 2025'!I$26 -> 0
A83: Tipo de equipo (seleccione) | B83: Características generales de los equipos | C83: Cantidad a distribuir | D83: USAER | H83: Cantidad a distribuir | I83: CAM básico | M83: Cantidad a distribuir | N83: CAM básico con FpT | R83: Cantidad a distribuir | S83: CAM laboral | W83: Cantidad a distribuir | X83: CAPEP | AB83: Cantidad a distribuir | AC83: CRIE | AG83: Cantidad a distribuir | AH83: UOP | AL83: Cantidad a distribuir | AM83: UAEBH | AQ83: Cantidad a distribuir | AR83: Otro | AV83: Presupuesto | AW83: Trimestre de inicio | AX83: Trimestre de término | AY83: Propósito educativo (específico de los materiales)
D84: SEE | E84: Estudiantes | I84: SEE | J84: Estudiantes | N84: SEE | O84: Estudiantes | S84: SEE | T84: Estudiantes | X84: SEE | Y84: Estudiantes | AC84: SEE | AD84: Estudiantes | AH84: SEE | AI84: Estudiantes | AM84: SEE | AN84: Estudiantes | AR84: SEE | AS84: Estudiantes
E85: M | F85: H | G85: T | J85: M | K85: H | L85: T | O85: M | P85: H | Q85: T | T85: M | U85: H | V85: T | Y85: M | Z85: H | AA85: T | AD85: M | AE85: H | AF85: T | AI85: M | AJ85: H | AK85: T | AN85: M | AO85: H | AP85: T | AS85: M | AT85: H | AU85: T
B86: N/A | C86: 0 | D86: 0 | E86: 0 | F86: 0 | G86: =SUM(E86,F86) -> 0 | H86: 0 | I86: 0 | J86: 0 | K86: 0 | L86: =SUM(J86,K86) -> 0 | M86: 0 | N86: 0 | O86: 0 | P86: 0 | Q86: =SUM(O86,P86) -> 0 | R86: 0 | S86: 0 | T86: 0 | U86: 0 | V86: =SUM(T86,U86) -> 0 | W86: 0 | X86: 0 | Y86: 0 | Z86: 0 | AA86: =SUM(Y86,Z86) -> 0 | AB86: 0 | AC86: 0 | AD86: 0 | AE86: 0 | AF86: =SUM(AD86,AE86) -> 0 | AG86: 0 | AH86: 0 | AI86: 0 | AJ86: 0 | AK86: =SUM(AI86,AJ86) -> 0 | AL86: 0 | AM86: 0 | AN86: 0 | AO86: 0 | AP86: =SUM(AN86,AO86) -> 0 | AQ86: 0 | AR86: 0 | AS86: 0 | AT86: 0 | AU86: =SUM(AS86,AT86) -> 0 | AV86: N/A | AY86: N/A
B87: N/A | C87: 0 | D87: 0 | E87: 0 | F87: 0 | G87: =SUM(E87,F87) -> 0 | H87: 0 | I87: 0 | J87: 0 | K87: 0 | L87: =SUM(J87,K87) -> 0 | M87: 0 | N87: 0 | O87: 0 | P87: 0 | Q87: =SUM(O87,P87) -> 0 | R87: 0 | S87: 0 | T87: 0 | U87: 0 | V87: =SUM(T87,U87) -> 0 | W87: 0 | X87: 0 | Y87: 0 | Z87: 0 | AA87: =SUM(Y87,Z87) -> 0 | AB87: 0 | AC87: 0 | AD87: 0 | AE87: 0 | AF87: =SUM(AD87,AE87) -> 0 | AG87: 0 | AH87: 0 | AI87: 0 | AJ87: 0 | AK87: =SUM(AI87,AJ87) -> 0 | AL87: 0 | AM87: 0 | AN87: 0 | AO87: 0 | AP87: =SUM(AN87,AO87) -> 0 | AQ87: 0 | AR87: 0 | AS87: 0 | AT87: 0 | AU87: =SUM(AS87,AT87) -> 0 | AV87: N/A | AY87: N/A
B88: N/A | C88: 0 | D88: 0 | E88: 0 | F88: 0 | G88: 0 | H88: 0 | I88: 0 | J88: 0 | K88: 0 | L88: 0 | M88: 0 | N88: 0 | O88: 0 | P88: 0 | Q88: 0 | R88: 0 | S88: 0 | T88: 0 | U88: 0 | V88: 0 | W88: 0 | X88: 0 | Y88: 0 | Z88: 0 | AA88: 0 | AB88: 0 | AC88: 0 | AD88: 0 | AE88: 0 | AF88: 0 | AG88: 0 | AH88: 0 | AI88: 0 | AJ88: 0 | AK88: 0 | AL88: 0 | AM88: 0 | AN88: 0 | AO88: 0 | AP88: 0 | AQ88: 0 | AR88: 0 | AS88: 0 | AT88: 0 | AU88: 0 | AV88: N/A | AY88: N/A
B89: N/A | C89: 0 | D89: 0 | E89: 0 | F89: 0 | G89: 0 | H89: 0 | I89: 0 | J89: 0 | K89: 0 | L89: 0 | M89: 0 | N89: 0 | O89: 0 | P89: 0 | Q89: 0 | R89: 0 | S89: 0 | T89: 0 | U89: 0 | V89: 0 | W89: 0 | X89: 0 | Y89: 0 | Z89: 0 | AA89: 0 | AB89: 0 | AC89: 0 | AD89: 0 | AE89: 0 | AF89: 0 | AG89: 0 | AH89: 0 | AI89: 0 | AJ89: 0 | AK89: 0 | AL89: 0 | AM89: 0 | AN89: 0 | AO89: 0 | AP89: 0 | AQ89: 0 | AR89: 0 | AS89: 0 | AT89: 0 | AU89: 0 | AV89: N/A | AY89: N/A
B90: N/A | C90: 0 | D90: 0 | E90: 0 | F90: 0 | G90: 0 | H90: 0 | I90: 0 | J90: 0 | K90: 0 | L90: 0 | M90: 0 | N90: 0 | O90: 0 | P90: 0 | Q90: 0 | R90: 0 | S90: 0 | T90: 0 | U90: 0 | V90: 0 | W90: 0 | X90: 0 | Y90: 0 | Z90: 0 | AA90: 0 | AB90: 0 | AC90: 0 | AD90: 0 | AE90: 0 | AF90: 0 | AG90: 0 | AH90: 0 | AI90: 0 | AJ90: 0 | AK90: 0 | AL90: 0 | AM90: 0 | AN90: 0 | AO90: 0 | AP90: 0 | AQ90: 0 | AR90: 0 | AS90: 0 | AT90: 0 | AU90: 0 | AV90: N/A | AY90: N/A
B91: N/A | C91: 0 | D91: 0 | E91: 0 | F91: 0 | G91: 0 | H91: 0 | I91: 0 | J91: 0 | K91: 0 | L91: 0 | M91: 0 | N91: 0 | O91: 0 | P91: 0 | Q91: 0 | R91: 0 | S91: 0 | T91: 0 | U91: 0 | V91: 0 | W91: 0 | X91: 0 | Y91: 0 | Z91: 0 | AA91: 0 | AB91: 0 | AC91: 0 | AD91: 0 | AE91: 0 | AF91: 0 | AG91: 0 | AH91: 0 | AI91: 0 | AJ91: 0 | AK91: 0 | AL91: 0 | AM91: 0 | AN91: 0 | AO91: 0 | AP91: 0 | AQ91: 0 | AR91: 0 | AS91: 0 | AT91: 0 | AU91: 0 | AV91: N/A | AY91: N/A
B92: N/A | C92: 0 | D92: 0 | E92: 0 | F92: 0 | G92: 0 | H92: 0 | I92: 0 | J92: 0 | K92: 0 | L92: 0 | M92: 0 | N92: 0 | O92: 0 | P92: 0 | Q92: 0 | R92: 0 | S92: 0 | T92: 0 | U92: 0 | V92: 0 | W92: 0 | X92: 0 | Y92: 0 | Z92: 0 | AA92: 0 | AB92: 0 | AC92: 0 | AD92: 0 | AE92: 0 | AF92: 0 | AG92: 0 | AH92: 0 | AI92: 0 | AJ92: 0 | AK92: 0 | AL92: 0 | AM92: 0 | AN92: 0 | AO92: 0 | AP92: 0 | AQ92: 0 | AR92: 0 | AS92: 0 | AT92: 0 | AU92: 0 | AV92: N/A | AY92: N/A
B93: N/A | C93: 0 | D93: 0 | E93: 0 | F93: 0 | G93: 0 | H93: 0 | I93: 0 | J93: 0 | K93: 0 | L93: 0 | M93: 0 | N93: 0 | O93: 0 | P93: 0 | Q93: 0 | R93: 0 | S93: 0 | T93: 0 | U93: 0 | V93: 0 | W93: 0 | X93: 0 | Y93: 0 | Z93: 0 | AA93: 0 | AB93: 0 | AC93: 0 | AD93: 0 | AE93: 0 | AF93: 0 | AG93: 0 | AH93: 0 | AI93: 0 | AJ93: 0 | AK93: 0 | AL93: 0 | AM93: 0 | AN93: 0 | AO93: 0 | AP93: 0 | AQ93: 0 | AR93: 0 | AS93: 0 | AT93: 0 | AU93: 0 | AV93: N/A | AY93: N/A
B94: N/A | C94: 0 | D94: 0 | E94: 0 | F94: 0 | G94: 0 | H94: 0 | I94: 0 | J94: 0 | K94: 0 | L94: 0 | M94: 0 | N94: 0 | O94: 0 | P94: 0 | Q94: 0 | R94: 0 | S94: 0 | T94: 0 | U94: 0 | V94: 0 | W94: 0 | X94: 0 | Y94: 0 | Z94: 0 | AA94: 0 | AB94: 0 | AC94: 0 | AD94: 0 | AE94: 0 | AF94: 0 | AG94: 0 | AH94: 0 | AI94: 0 | AJ94: 0 | AK94: 0 | AL94: 0 | AM94: 0 | AN94: 0 | AO94: 0 | AP94: 0 | AQ94: 0 | AR94: 0 | AS94: 0 | AT94: 0 | AU94: 0 | AV94: N/A | AY94: N/A
B95: N/A | C95: 0 | D95: 0 | E95: 0 | F95: 0 | G95: 0 | H95: 0 | I95: 0 | J95: 0 | K95: 0 | L95: 0 | M95: 0 | N95: 0 | O95: 0 | P95: 0 | Q95: 0 | R95: 0 | S95: 0 | T95: 0 | U95: 0 | V95: 0 | W95: 0 | X95: 0 | Y95: 0 | Z95: 0 | AA95: 0 | AB95: 0 | AC95: 0 | AD95: 0 | AE95: 0 | AF95: 0 | AG95: 0 | AH95: 0 | AI95: 0 | AJ95: 0 | AK95: 0 | AL95: 0 | AM95: 0 | AN95: 0 | AO95: 0 | AP95: 0 | AQ95: 0 | AR95: 0 | AS95: 0 | AT95: 0 | AU95: 0 | AV95: N/A | AY95: N/A
A96: Total | C96: =SUM(C86:C95) -> 0 | D96: 0 | E96: 0 | F96: 0 | G96: 0 | H96: 0 | I96: 0 | J96: 0 | K96: 0 | L96: 0 | M96: 0 | N96: 0 | O96: 0 | P96: 0 | Q96: 0 | R96: 0 | S96: 0 | T96: 0 | U96: 0 | V96: 0 | W96: 0 | X96: 0 | Y96: 0 | Z96: 0 | AA96: 0 | AB96: 0 | AC96: 0 | AD96: 0 | AE96: 0 | AF96: 0 | AG96: 0 | AH96: 0 | AI96: 0 | AJ96: 0 | AK96: 0 | AL96: 0 | AM96: 0 | AN96: 0 | AO96: 0 | AP96: 0 | AQ96: 0 | AR96: 0 | AS96: 0 | AT96: 0 | AU96: 0 | AV96: 0
A98: En caso de requerir alguna precisión o aclaración, describa brevemente:
A101: 3.5 Adquirir herramientas, utensilios, enseres domésticos y aparatos electrónicos que se requieren para impartir las especialidades que se ofertan en los CAM Laboral y con Formación para el Trabajo
A102: Recurso programado: | C102: ='Distribución presupuestal 2025'!H65 -> 136527.81
A103: Remanente | C103: =C102-Q119 -> 0
G105: Focalizados CAM b con FpT | J105: ='SEE 2025'!C28 -> 28 | L105: Focalizados CAM laboral | O105: ='SEE 2025'!D26 -> 2
A106: Taller a equipar | B106: Herramienta, utensilio, mobiliario o aparato a adquirir | C106: Insumo para instalación, mantenimiento y/o reparación | G106: Cantidad a distribuir | H106: CAM básico con FpT | L106: Cantidad a distribuir | M106: CAM laboral | Q106: Presupuesto | T106: Trimestre de inicio | U106: Trimestre de término | V106: Propósito educativo (específico de los materiales a reproducir)
H107: SEE | I107: Estudiantes | M107: SEE | N107: Estudiantes
I108: M | J108: H | K108: T | N108: M | O108: H | P108: T
A109: Taller Cocina | B109: 1 procesador de alimentos, 2.84l, 1000 watts, 1.3 caballos de fuerza, cuchillas para amasar, picar, puré, rallar, rebanar, desmontable, 3 velocidades. | C109: N/A | G109: 22 | H109: 22 | I109: 501 | J109: 777 | K109: =SUM(I109,J109) -> 1278 | L109: 2 | M109: 2 | N109: 49 | O109: 75 | P109: =SUM(N109,O109) -> 124 | Q109: 93600 | T109: 4to | U109: 4to | V109: Fortalecer las habilidades y destrezas laborales de los alumnos de CAM
A110: Taller Manualidades | B110: 1 cortador de unicel, 1 engargoladora, 1 enmicadora, 1 guillotina, 1 pistola de silicón, 1 tijeras eléctricas, 1 engrapadora industrial, 1 set de tres pinzas. | C110: N/A | G110: 6 | H110: 6 | I110: 49 | J110: 81 | K110: =SUM(I110,J110) -> 130 | L110: 0 | M110: 0 | N110: 0 | O110: 0 | P110: =SUM(N110,O110) -> 0 | Q110: 42927.81 | T110: 4to | U110: 4to | V110: Fortalecer las habilidades y destrezas laborales de los alumnos de CAM
A111: N/A | B111: N/A | C111: N/A | G111: 0 | H111: 0 | I111: 0 | J111: 0 | K111: 0 | L111: 0 | M111: 0 | N111: 0 | O111: 0 | P111: 0 | Q111: N/A | V111: N/A
A112: N/A | B112: N/A | C112: N/A | G112: 0 | H112: 0 | I112: 0 | J112: 0 | K112: 0 | L112: 0 | M112: 0 | N112: 0 | O112: 0 | P112: 0 | Q112: N/A | V112: N/A
A113: N/A | B113: N/A | C113: N/A | G113: 0 | H113: 0 | I113: 0 | J113: 0 | K113: 0 | L113: 0 | M113: 0 | N113: 0 | O113: 0 | P113: 0 | Q113: N/A | V113: N/A
A114: N/A | B114: N/A | C114: N/A | G114: 0 | H114: 0 | I114: 0 | J114: 0 | K114: 0 | L114: 0 | M114: 0 | N114: 0 | O114: 0 | P114: 0 | Q114: N/A | V114: N/A
A115: N/A | B115: N/A | C115: N/A | G115: 0 | H115: 0 | I115: 0 | J115: 0 | K115: 0 | L115: 0 | M115: 0 | N115: 0 | O115: 0 | P115: 0 | Q115: N/A | V115: N/A
A116: N/A | B116: N/A | C116: N/A | G116: 0 | H116: 0 | I116: 0 | J116: 0 | K116: 0 | L116: 0 | M116: 0 | N116: 0 | O116: 0 | P116: 0 | Q116: N/A | V116: N/A
A117: N/A | B117: N/A | C117: N/A | G117: 0 | H117: 0 | I117: 0 | J117: 0 | K117: 0 | L117: 0 | M117: 0 | N117: 0 | O117: 0 | P117: 0 | Q117: N/A | V117: N/A
A118: N/A | B118: N/A | C118: N/A | G118: 0 | H118: 0 | I118: 0 | J118: 0 | K118: 0 | L118: 0 | M118: 0 | N118: 0 | O118: 0 | P118: 0 | Q118: N/A | V118: N/A
A119: Total | G119: =SUM(G109:G118) -> 28 | H119: 28 | I119: 550 | J119: 858 | K119: 1408 | L119: 2 | M119: 2 | N119: 49 | O119: 75 | P119: 124 | Q119: 136527.81
A121: En caso de requerir alguna precisión o aclaración, describa brevemente:
A124: 3.6 Dotar de insumos y materiales consumibles no perecederos que requieren en las especialidades que se ofertan los CAM Laboral y con Formación para el Trabajo para apoyar las actividades de estudiantes con discapacidad
A125: Recurso programado: | C125: ='Distribución presupuestal 2025'!H67 -> 70000
A126: Remanente | C126: =C125-X142 -> 0
A129: Especifique el taller al que se beneficia | C129: Especifique el tipo de insumos | I129: Focalizados CAM básico | L129: ='SEE 2025'!D$26 -> 2 | N129: Focalizados CAM b con FpT | Q129: ='SEE 2025'!D$28 -> 0 | S129: Focalizados CAM laboral | V129: ='SEE 2025'!E$26 -> 0 | X129: Presupuesto | AA129: Trimestre de inicio | AB129: Trimestre de término | AC129: Propósito educativo (específico de los materiales)
I130: Cantidad a distribuir | J130: CAM básico | N130: Cantidad a distribuir | O130: CAM básico con FpT | S130: Cantidad a distribuir | T130: CAM laboral
J131: SEE | K131: Estudiantes | O131: SEE | P131: Estudiantes | T131: SEE | U131: Estudiantes
K132: M | L132: H | M132: T | P132: M | Q132: H | R132: T | U132: M | V132: H | W132: T
A133: Taller de Trapeadores | C133: 200 palos estandar sin rosca, 1 rollo de alambre galvanizado cal 18, tres rollos de material para trapeadores: hilaza española y pabilaza caramelo. | I133: 0 | J133: 0 | K133: 0 | L133: 0 | M133: =SUM(K133,L133) -> 0 | N133: 6 | O133: 6 | P133: 122 | Q133: 198 | R133: =SUM(P133,Q133) -> 320 | S133: 1 | T133: 1 | U133: 28 | V133: 39 | W133: =SUM(U133,V133) -> 67 | X133: 70000 | AA133: 4to | AB133: 4to | AC133: Favorecer las habilidades y destrezas para la elaboración de productos de limpieza, así como su comercialización.
A134: N/A | C134: N/A | I134: 0 | J134: 0 | K134: 0 | L134: 0 | M134: =SUM(K134,L134) -> 0 | N134: 0 | O134: 0 | P134: 0 | Q134: 0 | R134: =SUM(P134,Q134) -> 0 | S134: 0 | T134: 0 | U134: 0 | V134: 0 | W134: =SUM(U134,V134) -> 0 | X134: N/A | AC134: N/A
A135: N/A | C135: N/A | I135: 0 | J135: 0 | K135: 0 | L135: 0 | M135: 0 | N135: 0 | O135: 0 | P135: 0 | Q135: 0 | R135: 0 | S135: 0 | T135: 0 | U135: 0 | V135: 0 | W135: 0 | X135: N/A | AC135: N/A
A136: N/A | C136: N/A | I136: 0 | J136: 0 | K136: 0 | L136: 0 | M136: 0 | N136: 0 | O136: 0 | P136: 0 | Q136: 0 | R136: 0 | S136: 0 | T136: 0 | U136: 0 | V136: 0 | W136: 0 | X136: N/A | AC136: N/A
A137: N/A | C137: N/A | I137: 0 | J137: 0 | K137: 0 | L137: 0 | M137: 0 | N137: 0 | O137: 0 | P137: 0 | Q137: 0 | R137: 0 | S137: 0 | T137: 0 | U137: 0 | V137: 0 | W137: 0 | X137: N/A | AC137: N/A
A138: N/A | C138: N/A | I138: 0 | J138: 0 | K138: 0 | L138: 0 | M138: 0 | N138: 0 | O138: 0 | P138: 0 | Q138: 0 | R138: 0 | S138: 0 | T138: 0 | U138: 0 | V138: 0 | W138: 0 | X138: N/A | AC138: N/A
A139: N/A | C139: N/A | I139: 0 | J139: 0 | K139: 0 | L139: 0 | M139: 0 | N139: 0 | O139: 0 | P139: 0 | Q139: 0 | R139: 0 | S139: 0 | T139: 0 | U139: 0 | V139: 0 | W139: 0 | X139: N/A | AC139: N/A
A140: N/A | C140: N/A | I140: 0 | J140: 0 | K140: 0 | L140: 0 | M140: 0 | N140: 0 | O140: 0 | P140: 0 | Q140: 0 | R140: 0 | S140: 0 | T140: 0 | U140: 0 | V140: 0 | W140: 0 | X140: N/A | AC140: N/A
A141: N/A | C141: N/A | I141: 0 | J141: 0 | K141: 0 | L141: 0 | M141: 0 | N141: 0 | O141: 0 | P141: 0 | Q141: 0 | R141: 0 | S141: 0 | T141: 0 | U141: 0 | V141: 0 | W141: 0 | X141: N/A | AC141: N/A
A142: Total | C142: Total | I142: 0 | J142: 0 | K142: 0 | L142: 0 | M142: 0 | N142: 0 | O142: 0 | P142: 0 | Q142: 0 | R142: 0 | S142: 0 | T142: 0 | U142: 0 | V142: 0 | W142: 0 | X142: =SUM(X132:X141) -> 70000
I143: 0 | J143: =SUM(J133:J142) -> 0 | K143: 0 | L143: 0 | M143: 0 | N143: 6 | O143: 6 | P143: 122 | Q143: 198 | R143: 320 | S143: 1 | T143: 1 | U143: 28 | V143: 39 | W143: 67
A145: En caso de requerir alguna precisión o aclaración, describa brevemente:
A148: 3.7 Adquirir ayudas técnicas para la accesibilidad y movilidad que mejoren las condiciones para el desplazamiento, orientación y comunicación del estudiante con discapacidad
A149: Recurso programado: | C149: ='Distribución presupuestal 2025'!H68 -> 30000
A150: Remanente | C150: =C149-AV166 -> 0
C152: Focalizados USAER | F152: ='SEE 2025'!B$26 -> 81 | H152: Focalizados CAM básico | K152: ='SEE 2025'!C$26 -> 0 | M152: Focalizados CAM b con FpT | P152: ='SEE 2025'!C$28 -> 28 | R152: Focalizados CAM laboral | U152: ='SEE 2025'!D$26 -> 2 | W152: Focalizados CAPEP | Z152: ='SEE 2025'!E$26 -> 0 | AB152: Focalizados CRIE | AE152: ='SEE 2025'!F$26 -> 0 | AG152: Focalizados UOP | AJ152: ='SEE 2025'!G$26 -> 0 | AL152: Focalizados UAEBH | AO152: ='SEE 2025'!H$26 -> 0 | AQ152: Focalizados Otro | AT152: ='SEE 2025'!I$26 -> 0
A153: Tipo de ayuda (seleccione) | B153: Ayuda a adquirir | C153: Cantidad a distribuir | D153: USAER | H153: Cantidad a distribuir | I153: CAM básico | M153: Cantidad a distribuir | N153: CAM básico con FpT | R153: Cantidad a distribuir | S153: CAM laboral | W153: Cantidad a distribuir | X153: CAPEP | AB153: Cantidad a distribuir | AC153: CRIE | AG153: Cantidad a distribuir | AH153: UOP | AL153: Cantidad a distribuir | AM153: UAEBH | AQ153: Cantidad a distribuir | AR153: Otro | AV153: Presupuesto | AW153: Trimestre de inicio | AX153: Trimestre de término | AY153: Propósito educativo (específico de los materiales a adquirir)
D154: SEE | E154: Estudiantes | I154: SEE | J154: Estudiantes | N154: SEE | O154: Estudiantes | S154: SEE | T154: Estudiantes | X154: SEE | Y154: Estudiantes | AC154: SEE | AD154: Estudiantes | AH154: SEE | AI154: Estudiantes | AM154: SEE | AN154: Estudiantes | AR154: SEE | AS154: Estudiantes
E155: M | F155: H | G155: T | J155: M | K155: H | L155: T | O155: M | P155: H | Q155: T | T155: M | U155: H | V155: T | Y155: M | Z155: H | AA155: T | AD155: M | AE155: H | AF155: T | AI155: M | AJ155: H | AK155: T | AN155: M | AO155: H | AP155: T | AS155: M | AT155: H | AU155: T
A156: Para el desplazamiento | B156: Grúa hidráulica ajustable para elevación de. alumnos, voltaje 24V, capacidad de soporte hasta 185 kg | C156: 0 | D156: 0 | E156: 0 | F156: 0 | G156: =SUM(E156,F156) -> 0 | H156: 0 | I156: 0 | J156: 0 | K156: 0 | L156: =SUM(J156,K156) -> 0 | M156: 1 | N156: 1 | O156: 2 | P156: 5 | Q156: =SUM(O156,P156) -> 7 | R156: 0 | S156: 0 | T156: 0 | U156: 0 | V156: =SUM(T156,U156) -> 0 | W156: 0 | X156: 0 | Y156: 0 | Z156: 0 | AA156: =SUM(Y156,Z156) -> 0 | AB156: 0 | AC156: 0 | AD156: 0 | AE156: 0 | AF156: =SUM(AD156,AE156) -> 0 | AG156: 0 | AH156: 0 | AI156: 0 | AJ156: 0 | AK156: =SUM(AI156,AJ156) -> 0 | AL156: 0 | AM156: 0 | AN156: 0 | AO156: 0 | AP156: =SUM(AN156,AO156) -> 0 | AQ156: 0 | AR156: 0 | AS156: 0 | AT156: 0 | AU156: =SUM(AS156,AT156) -> 0 | AV156: 30000 | AW156: 4to | AX156: 4to | AY156: Favorecer el movimiento, traslado y aséo de alumnos con discapacidad motora dentro de los espacios educativos
B157: N/A | C157: 0 | D157: 0 | E157: 0 | F157: 0 | G157: =SUM(E157,F157) -> 0 | H157: 0 | I157: 0 | J157: 0 | K157: 0 | L157: =SUM(J157,K157) -> 0 | M157: 0 | N157: 0 | O157: 0 | P157: 0 | Q157: =SUM(O157,P157) -> 0 | R157: 0 | S157: 0 | T157: 0 | U157: 0 | V157: =SUM(T157,U157) -> 0 | W157: 0 | X157: 0 | Y157: 0 | Z157: 0 | AA157: =SUM(Y157,Z157) -> 0 | AB157: 0 | AC157: 0 | AD157: 0 | AE157: 0 | AF157: =SUM(AD157,AE157) -> 0 | AG157: 0 | AH157: 0 | AI157: 0 | AJ157: 0 | AK157: =SUM(AI157,AJ157) -> 0 | AL157: 0 | AM157: 0 | AN157: 0 | AO157: 0 | AP157: =SUM(AN157,AO157) -> 0 | AQ157: 0 | AR157: 0 | AS157: 0 | AT157: 0 | AU157: =SUM(AS157,AT157) -> 0 | AV157: N/A | AY157: N/A
B158: N/A | C158: 0 | D158: 0 | E158: 0 | F158: 0 | G158: 0 | H158: 0 | I158: 0 | J158: 0 | K158: 0 | L158: 0 | M158: 0 | N158: 0 | O158: 0 | P158: 0 | Q158: 0 | R158: 0 | S158: 0 | T158: 0 | U158: 0 | V158: 0 | W158: 0 | X158: 0 | Y158: 0 | Z158: 0 | AA158: 0 | AB158: 0 | AC158: 0 | AD158: 0 | AE158: 0 | AF158: 0 | AG158: 0 | AH158: 0 | AI158: 0 | AJ158: 0 | AK158: 0 | AL158: 0 | AM158: 0 | AN158: 0 | AO158: 0 | AP158: 0 | AQ158: 0 | AR158: 0 | AS158: 0 | AT158: 0 | AU158: 0 | AV158: N/A | AY158: N/A
B159: N/A | C159: 0 | D159: 0 | E159: 0 | F159: 0 | G159: 0 | H159: 0 | I159: 0 | J159: 0 | K159: 0 | L159: 0 | M159: 0 | N159: 0 | O159: 0 | P159: 0 | Q159: 0 | R159: 0 | S159: 0 | T159: 0 | U159: 0 | V159: 0 | W159: 0 | X159: 0 | Y159: 0 | Z159: 0 | AA159: 0 | AB159: 0 | AC159: 0 | AD159: 0 | AE159: 0 | AF159: 0 | AG159: 0 | AH159: 0 | AI159: 0 | AJ159: 0 | AK159: 0 | AL159: 0 | AM159: 0 | AN159: 0 | AO159: 0 | AP159: 0 | AQ159: 0 | AR159: 0 | AS159: 0 | AT159: 0 | AU159: 0 | AV159: N/A | AY159: N/A
B160: N/A | C160: 0 | D160: 0 | E160: 0 | F160: 0 | G160: 0 | H160: 0 | I160: 0 | J160: 0 | K160: 0 | L160: 0 | M160: 0 | N160: 0 | O160: 0 | P160: 0 | Q160: 0 | R160: 0 | S160: 0 | T160: 0 | U160: 0 | V160: 0 | W160: 0 | X160: 0 | Y160: 0 | Z160: 0 | AA160: 0 | AB160: 0 | AC160: 0 | AD160: 0 | AE160: 0 | AF160: 0 | AG160: 0 | AH160: 0 | AI160: 0 | AJ160: 0 | AK160: 0 | AL160: 0 | AM160: 0 | AN160: 0 | AO160: 0 | AP160: 0 | AQ160: 0 | AR160: 0 | AS160: 0 | AT160: 0 | AU160: 0 | AV160: N/A | AY160: N/A
B161: N/A | C161: 0 | D161: 0 | E161: 0 | F161: 0 | G161: 0 | H161: 0 | I161: 0 | J161: 0 | K161: 0 | L161: 0 | M161: 0 | N161: 0 | O161: 0 | P161: 0 | Q161: 0 | R161: 0 | S161: 0 | T161: 0 | U161: 0 | V161: 0 | W161: 0 | X161: 0 | Y161: 0 | Z161: 0 | AA161: 0 | AB161: 0 | AC161: 0 | AD161: 0 | AE161: 0 | AF161: 0 | AG161: 0 | AH161: 0 | AI161: 0 | AJ161: 0 | AK161: 0 | AL161: 0 | AM161: 0 | AN161: 0 | AO161: 0 | AP161: 0 | AQ161: 0 | AR161: 0 | AS161: 0 | AT161: 0 | AU161: 0 | AV161: N/A | AY161: N/A
B162: N/A | C162: 0 | D162: 0 | E162: 0 | F162: 0 | G162: 0 | H162: 0 | I162: 0 | J162: 0 | K162: 0 | L162: 0 | M162: 0 | N162: 0 | O162: 0 | P162: 0 | Q162: 0 | R162: 0 | S162: 0 | T162: 0 | U162: 0 | V162: 0 | W162: 0 | X162: 0 | Y162: 0 | Z162: 0 | AA162: 0 | AB162: 0 | AC162: 0 | AD162: 0 | AE162: 0 | AF162: 0 | AG162: 0 | AH162: 0 | AI162: 0 | AJ162: 0 | AK162: 0 | AL162: 0 | AM162: 0 | AN162: 0 | AO162: 0 | AP162: 0 | AQ162: 0 | AR162: 0 | AS162: 0 | AT162: 0 | AU162: 0 | AV162: N/A | AY162: N/A
B163: N/A | C163: 0 | D163: 0 | E163: 0 | F163: 0 | G163: 0 | H163: 0 | I163: 0 | J163: 0 | K163: 0 | L163: 0 | M163: 0 | N163: 0 | O163: 0 | P163: 0 | Q163: 0 | R163: 0 | S163: 0 | T163: 0 | U163: 0 | V163: 0 | W163: 0 | X163: 0 | Y163: 0 | Z163: 0 | AA163: 0 | AB163: 0 | AC163: 0 | AD163: 0 | AE163: 0 | AF163: 0 | AG163: 0 | AH163: 0 | AI163: 0 | AJ163: 0 | AK163: 0 | AL163: 0 | AM163: 0 | AN163: 0 | AO163: 0 | AP163: 0 | AQ163: 0 | AR163: 0 | AS163: 0 | AT163: 0 | AU163: 0 | AV163: N/A | AY163: N/A
B164: N/A | C164: 0 | D164: 0 | E164: 0 | F164: 0 | G164: 0 | H164: 0 | I164: 0 | J164: 0 | K164: 0 | L164: 0 | M164: 0 | N164: 0 | O164: 0 | P164: 0 | Q164: 0 | R164: 0 | S164: 0 | T164: 0 | U164: 0 | V164: 0 | W164: 0 | X164: 0 | Y164: 0 | Z164: 0 | AA164: 0 | AB164: 0 | AC164: 0 | AD164: 0 | AE164: 0 | AF164: 0 | AG164: 0 | AH164: 0 | AI164: 0 | AJ164: 0 | AK164: 0 | AL164: 0 | AM164: 0 | AN164: 0 | AO164: 0 | AP164: 0 | AQ164: 0 | AR164: 0 | AS164: 0 | AT164: 0 | AU164: 0 | AV164: N/A | AY164: N/A
B165: N/A | C165: 0 | D165: 0 | E165: 0 | F165: 0 | G165: 0 | H165: 0 | I165: 0 | J165: 0 | K165: 0 | L165: 0 | M165: 0 | N165: 0 | O165: 0 | P165: 0 | Q165: 0 | R165: 0 | S165: 0 | T165: 0 | U165: 0 | V165: 0 | W165: 0 | X165: 0 | Y165: 0 | Z165: 0 | AA165: 0 | AB165: 0 | AC165: 0 | AD165: 0 | AE165: 0 | AF165: 0 | AG165: 0 | AH165: 0 | AI165: 0 | AJ165: 0 | AK165: 0 | AL165: 0 | AM165: 0 | AN165: 0 | AO165: 0 | AP165: 0 | AQ165: 0 | AR165: 0 | AS165: 0 | AT165: 0 | AU165: 0 | AV165: N/A | AY165: N/A
A166: Total | C166: =SUM(C156:C165) -> 0 | D166: 0 | E166: 0 | F166: 0 | G166: 0 | H166: 0 | I166: 0 | J166: 0 | K166: 0 | L166: 0 | M166: 1 | N166: 1 | O166: 2 | P166: 5 | Q166: 7 | R166: 0 | S166: 0 | T166: 0 | U166: 0 | V166: 0 | W166: 0 | X166: 0 | Y166: 0 | Z166: 0 | AA166: 0 | AB166: 0 | AC166: 0 | AD166: 0 | AE166: 0 | AF166: 0 | AG166: 0 | AH166: 0 | AI166: 0 | AJ166: 0 | AK166: 0 | AL166: 0 | AM166: 0 | AN166: 0 | AO166: 0 | AP166: 0 | AQ166: 0 | AR166: 0 | AS166: 0 | AT166: 0 | AU166: 0 | AV166: 30000
A168: En caso de requerir alguna precisión o aclaración, describa brevemente:
A171: 3.8 Dotar de mobiliario ordinario y/o adaptado para estudiantes con discapacidad
A172: Recurso programado: | C172: ='Distribución presupuestal 2025'!H69 -> 0
A173: Remanente | C173: =C172-AV189 -> 0
C175: Focalizados USAER | F175: ='SEE 2025'!B$26 -> 81 | H175: Focalizados CAM básico | K175: ='SEE 2025'!C$26 -> 0 | M175: Focalizados CAM b con FpT | P175: ='SEE 2025'!C$28 -> 28 | R175: Focalizados CAM laboral | U175: ='SEE 2025'!D$26 -> 2 | W175: Focalizados CAPEP | Z175: ='SEE 2025'!E$26 -> 0 | AB175: Focalizados CRIE | AE175: ='SEE 2025'!F$26 -> 0 | AG175: Focalizados UOP | AJ175: ='SEE 2025'!G$26 -> 0 | AL175: Focalizados UAEBH | AO175: ='SEE 2025'!H$26 -> 0 | AQ175: Focalizados Otro | AT175: ='SEE 2025'!I$26 -> 0
A176: Especifique el tipo de mobiliario a adquirir | C176: Cantidad a distribuir | D176: USAER | H176: Cantidad a distribuir | I176: CAM básico | M176: Cantidad a distribuir | N176: CAM básico con FpT | R176: Cantidad a distribuir | S176: CAM laboral | W176: Cantidad a distribuir | X176: CAPEP | AB176: Cantidad a distribuir | AC176: CRIE | AG176: Cantidad a distribuir | AH176: UOP | AL176: Cantidad a distribuir | AM176: UAEBH | AQ176: Cantidad a distribuir | AR176: Otro | AV176: Presupuesto | AW176: Trimestre de inicio | AX176: Trimestre de término | AY176: Propósito educativo (específico del mobiliario a adquirir)
D177: SEE | E177: Estudiantes | I177: SEE | J177: Estudiantes | N177: SEE | O177: Estudiantes | S177: SEE | T177: Estudiantes | X177: SEE | Y177: Estudiantes | AC177: SEE | AD177: Estudiantes | AH177: SEE | AI177: Estudiantes | AM177: SEE | AN177: Estudiantes | AR177: SEE | AS177: Estudiantes
E178: M | F178: H | G178: T | J178: M | K178: H | L178: T | O178: M | P178: H | Q178: T | T178: M | U178: H | V178: T | Y178: M | Z178: H | AA178: T | AD178: M | AE178: H | AF178: T | AI178: M | AJ178: H | AK178: T | AN178: M | AO178: H | AP178: T | AS178: M | AT178: H | AU178: T
G179: =SUM(E179,F179) -> 0 | L179: =SUM(J179,K179) -> 0 | Q179: =SUM(O179,P179) -> 0 | V179: =SUM(T179,U179) -> 0 | AA179: =SUM(Y179,Z179) -> 0 | AF179: =SUM(AD179,AE179) -> 0 | AK179: =SUM(AI179,AJ179) -> 0 | AP179: =SUM(AN179,AO179) -> 0 | AU179: =SUM(AS179,AT179) -> 0
G180: =SUM(E180,F180) -> 0 | L180: =SUM(J180,K180) -> 0 | Q180: =SUM(O180,P180) -> 0 | V180: =SUM(T180,U180) -> 0 | AA180: =SUM(Y180,Z180) -> 0 | AF180: =SUM(AD180,AE180) -> 0 | AK180: =SUM(AI180,AJ180) -> 0 | AP180: =SUM(AN180,AO180) -> 0 | AU180: =SUM(AS180,AT180) -> 0
G181: 0 | L181: 0 | Q181: 0 | V181: 0 | AA181: 0 | AF181: 0 | AK181: 0 | AP181: 0 | AU181: 0
G182: 0 | L182: 0 | Q182: 0 | V182: 0 | AA182: 0 | AF182: 0 | AK182: 0 | AP182: 0 | AU182: 0
G183: 0 | L183: 0 | Q183: 0 | V183: 0 | AA183: 0 | AF183: 0 | AK183: 0 | AP183: 0 | AU183: 0
G184: 0 | L184: 0 | Q184: 0 | V184: 0 | AA184: 0 | AF184: 0 | AK184: 0 | AP184: 0 | AU184: 0
G185: 0 | L185: 0 | Q185: 0 | V185: 0 | AA185: 0 | AF185: 0 | AK185: 0 | AP185: 0 | AU185: 0
G186: 0 | L186: 0 | Q186: 0 | V186: 0 | AA186: 0 | AF186: 0 | AK186: 0 | AP186: 0 | AU186: 0
G187: 0 | L187: 0 | Q187: 0 | V187: 0 | AA187: 0 | AF187: 0 | AK187: 0 | AP187: 0 | AU187: 0
G188: 0 | L188: 0 | Q188: 0 | V188: 0 | AA188: 0 | AF188: 0 | AK188: 0 | AP188: 0 | AU188: 0
A189: Total | C189: =SUM(C179:C188) -> 0 | D189: 0 | E189: 0 | F189: 0 | G189: 0 | H189: 0 | I189: 0 | J189: 0 | K189: 0 | L189: 0 | M189: 0 | N189: 0 | O189: 0 | P189: 0 | Q189: 0 | R189: 0 | S189: 0 | T189: 0 | U189: 0 | V189: 0 | W189: 0 | X189: 0 | Y189: 0 | Z189: 0 | AA189: 0 | AB189: 0 | AC189: 0 | AD189: 0 | AE189: 0 | AF189: 0 | AG189: 0 | AH189: 0 | AI189: 0 | AJ189: 0 | AK189: 0 | AL189: 0 | AM189: 0 | AN189: 0 | AO189: 0 | AP189: 0 | AQ189: 0 | AR189: 0 | AS189: 0 | AT189: 0 | AU189: 0 | AV189: 0
A191: En caso de requerir alguna precisión o aclaración, describa brevemente:
A194: 3.9 Adquirir equipamiento y materiales para aulas multisensoriales
A195: Recurso programado: | C195: ='Distribución presupuestal 2025'!H70 -> 4662364.89
A196: Remanente | C196: =C195-R212 -> 0
C198: Focalizados CAM básico | F198: ='SEE 2025'!C26 -> 0 | H198: Focalizados CAM b con FpT | K198: ='SEE 2025'!C28 -> 28 | M198: Focalizados CAM laboral | P198: ='SEE 2025'!D26 -> 2
A199: Marque con "X" cuando sea aula de nueva creación | B199: Material a adquirir | C199: Cantidad a distribuir | D199: CAM básico | H199: Cantidad a distribuir | I199: CAM básico con FpT | M199: Cantidad a distribuir | N199: CAM laboral | R199: Presupuesto | U199: Trimestre de inicio | V199: Trimestre de término | W199: Propósito educativo (específico de los materiales a adquirir)
D200: SEE | E200: Estudiantes | I200: SEE | J200: Estudiantes | N200: SEE | O200: Estudiantes
E201: M | F201: H | G201: T | J201: M | K201: H | L201: T | O201: M | P201: H | Q201: T
A202: x | B202: 1 tubo de burbujas acrilico de 200 cm x 15 cm con base acolchada de 1m po 1m. 1 cortina de fibra óptica 3m. De longitud, hipoalergénica, 1 panel 1 panel interactivo (colourcatch) de 115x67 x 10cm. 1 Proyector de oleaje efecto acuático luz LED. 1 tiras LED 8 colores (set de 4 tiras), 1 panel infinito figuras geométricas de 52 x 160 x 12 cm, luz LED con cambio de color. 1 set cubo mágico 20 cm cúbicos, bocina con grabadora de mensajes y controlador maestro. 1 control de equipos del cuarto para desarrollar coordinacion motora 200 x 65 x 25 cm. 1 controlador de contacto con teclados de control intercambiable tipo piano. controlador inalámbrico por medio de sonidos con 4 tipos de programación. 1 controlador en tableta electrónica. 1 panel luz LED interactivo equipado con dos bocinas, una pantalla LED touch con 6 diferentes cambios de programación. 1 alberca de pelotas con vibración y cambio de color en madera y hule espuma con cubierta lonatex, 150 x 150 x 65 cm. 1000 pelotas de plástico transparente, bocina bluetooth. 1 proyector solar Led con lente de enfoque de 85 mm. luz Led ahorradora de energía, repisa de madera acabado color blanco medidas 32.5 x 12.5 x 15 cm. 1 set de 3 discos temáticos con rotador de disco de 6 pulgadas de diámetro. 1 set fluorescente con reflector de luz , parachute de nylon de 1.80 m de diámetro, esfera de luz giratoria y 100 figuras fluorescentes. 1 columpio con sillón cónico con rango de posición horizontal y vertical y apoyo para pies, y cinturones de seguridad, resiste 136 kg. dimensiones del asiento: 105 x 58 cm. 1 espejo de burbujas acrílico de paredes aclchadas, medidas: 85 cm cuadrados y 9 bubrbujas de 22.5 cm de diámetro c/u. 1 bi-proyector de estrellas y cúmulos espaciales con tecnología holográfica. 1 set de cojines graduados musicales, 6 piezas de diferente altura de 32.5 cm de diámetro. 1 set de aromaterapia con difusor con baterías, incluye repisa, 10 almoadillas de algodón, 8 piezas de escencias de aceites y set de 10 escencias de aromas direrentes. 1 Panel de tiras de tela que se mueven con la intensidad del viento y tiras de color. 1 panel de canicas de 80 x 40 x 14 cm, incluye 400 canicas y pantalla de luz, 1 set de panel de elementos llamativos, variables, sonoros, y de textura, medida 1.15 x 1.15 m. 1 set de 13 paquetes piso de foamy de colores antiderrapante 3.2 m cuadrados. 1 set controlador en forma de botonera eléctrica que controla todos los equipos del aula. 3 set de 2 espejos de acrílico medidas: 1.22 x 2.44 m. | C202: 0 | D202: 0 | E202: 0 | F202: 0 | G202: =SUM(E202,F202) -> 0 | H202: 3 | I202: 3 | J202: 349 | K202: 548 | L202: =SUM(J202,K202) -> 897 | M202: 0 | N202: 0 | O202: 0 | P202: 0 | Q202: =SUM(O202,P202) -> 0 | R202: 4662364.89 | U202: 4to | V202: 4to | W202: Crear ambientes de inmersión con imágenes, videos, colores, onomatopeyas, voz, música, aromas, texturas, sensaciones térmicas y vibraciones, con el objeto de estimular el desarrollo integral de los alumnos con materiales especializados y los espacios físicos adaptados para garantizar que los alumnos puedan participar plenamente en el proceso educativo, lo que fomenta su autonomía y participación activa, promoviendo una verdadera inclusión.
C203: 0 | D203: 0 | E203: 0 | F203: 0 | G203: =SUM(E203,F203) -> 0 | H203: 0 | I203: 0 | J203: 0 | K203: 0 | L203: =SUM(J203,K203) -> 0 | M203: 0 | N203: 0 | O203: 0 | P203: 0 | Q203: =SUM(O203,P203) -> 0
C204: 0 | D204: 0 | E204: 0 | F204: 0 | G204: 0 | H204: 0 | I204: 0 | J204: 0 | K204: 0 | L204: 0 | M204: 0 | N204: 0 | O204: 0 | P204: 0 | Q204: 0
C205: 0 | D205: 0 | E205: 0 | F205: 0 | G205: 0 | H205: 0 | I205: 0 | J205: 0 | K205: 0 | L205: 0 | M205: 0 | N205: 0 | O205: 0 | P205: 0 | Q205: 0
C206: 0 | D206: 0 | E206: 0 | F206: 0 | G206: 0 | H206: 0 | I206: 0 | J206: 0 | K206: 0 | L206: 0 | M206: 0 | N206: 0 | O206: 0 | P206: 0 | Q206: 0
C207: 0 | D207: 0 | E207: 0 | F207: 0 | G207: 0 | H207: 0 | I207: 0 | J207: 0 | K207: 0 | L207: 0 | M207: 0 | N207: 0 | O207: 0 | P207: 0 | Q207: 0
C208: 0 | D208: 0 | E208: 0 | F208: 0 | G208: 0 | H208: 0 | I208: 0 | J208: 0 | K208: 0 | L208: 0 | M208: 0 | N208: 0 | O208: 0 | P208: 0 | Q208: 0
C209: 0 | D209: 0 | E209: 0 | F209: 0 | G209: 0 | H209: 0 | I209: 0 | J209: 0 | K209: 0 | L209: 0 | M209: 0 | N209: 0 | O209: 0 | P209: 0 | Q209: 0
C210: 0 | D210: 0 | E210: 0 | F210: 0 | G210: 0 | H210: 0 | I210: 0 | J210: 0 | K210: 0 | L210: 0 | M210: 0 | N210: 0 | O210: 0 | P210: 0 | Q210: 0
C211: 0 | D211: 0 | E211: 0 | F211: 0 | G211: 0 | H211: 0 | I211: 0 | J211: 0 | K211: 0 | L211: 0 | M211: 0 | N211: 0 | O211: 0 | P211: 0 | Q211: 0
A212: =COUNTIF(A202:A211,"X") -> 1 | B212: Total | C212: =SUM(C202:C211) -> 0 | D212: 0 | E212: 0 | F212: 0 | G212: 0 | H212: 3 | I212: 3 | J212: 349 | K212: 548 | L212: 897 | M212: 0 | N212: 0 | O212: 0 | P212: 0 | Q212: 0 | R212: 4662364.89
A214: En caso de requerir alguna precisión o aclaración, describa brevemente:
A215: Se benefician un total 63 servicios (CAM básico con FpT, laboral y USAER)con la insatlación de estas tres aulas, beneficiando un gran total de 2320 alumnos.

Sheet Equipamiento específico AS
AG1: Subsecretaría de Educación Básica Dirección General de Desarrollo Curricular Dirección de Fortalecimiento Curricular para la Formación Personal y Social en la Educación Básica Educación Especial
A6: Componente: 3. Equipamiento específico en beneficio de estudiantes con aptitudes sobresalientes
A7: Para garantizar el cumplimiento de los objetivos del PFSEE las AEL podrán destinar hasta un 80% del recurso, de acuerdo con lo estipulado en las reglas de operación 2025
A9: 3.10 Dotar de material didáctico especializado para estudiantes con aptitudes sobresalientes
A10: Recurso programado: | C10: ='Distribución presupuestal 2025'!W61 -> 2351313.16
A11: Remanente | C11: =C10-AG27 -> 0
C13: Focalizados USAER | F13: ='SEE 2025'!N$26 -> 76 | H13: Focalizados CAPEP | K13: ='SEE 2025'!O$26 -> 0 | M13: Focalizados CRIE | P13: ='SEE 2025'!P$26 -> 0 | R13: Focalizados UOP | U13: ='SEE 2025'!Q$26 -> 0 | W13: Focalizados UAEBH | Z13: ='SEE 2025'!R$26 -> 0 | AB13: Focalizados Otro | AE13: ='SEE 2025'!S$26 -> 1
A14: Tipo de materiales (seleccione) | B14: Material a adquirir | C14: Cantidad a distribuir | D14: USAER | H14: Cantidad a distribuir | I14: CAPEP | M14: Cantidad a distribuir | N14: CRIE | R14: Cantidad a distribuir | S14: UOP | W14: Cantidad a distribuir | X14: UAEBH | AB14: Cantidad a distribuir | AC14: Otro | AG14: Presupuesto | AH14: Trimestre de inicio | AI14: Trimestre de término | AJ14: Propósito educativo (específico del material a adquirir)
D15: SEE | E15: Estudiantes | I15: SEE | J15: Estudiantes | N15: SEE | O15: Estudiantes | S15: SEE | T15: Estudiantes | X15: SEE | Y15: Estudiantes | AC15: SEE | AD15: Estudiantes
E16: M | F16: H | G16: T | J16: M | K16: H | L16: T | O16: M | P16: H | Q16: T | T16: M | U16: H | V16: T | Y16: M | Z16: H | AA16: T | AD16: M | AE16: H | AF16: T
A17: Paquetes con diversos materiales | B17: 1 basta electrónico. 1 juégo didáctico triángulo por triángulo. 1 rompecabezas 3d block by block, 1 juego de mesa rush hour, 1 juego de las emociones, 1 juego de preguntas y respuestaas conector quiz. | C17: 380 | D17: 76 | E17: 543 | F17: 585 | G17: =SUM(E17,F17) -> 1128 | H17: 0 | I17: 0 | J17: 0 | K17: 0 | L17: =SUM(J17,K17) -> 0 | M17: 0 | N17: 0 | O17: 0 | P17: 0 | Q17: =SUM(O17,P17) -> 0 | R17: 0 | S17: 0 | T17: 0 | U17: 0 | V17: =SUM(T17,U17) -> 0 | W17: 0 | X17: 0 | Y17: 0 | Z17: 0 | AA17: =SUM(Y17,Z17) -> 0 | AB17: 0 | AC17: 0 | AD17: 0 | AE17: 0 | AF17: =SUM(AD17,AE17) -> 0 | AG17: 1372370 | AH17: 4to | AI17: 4to | AJ17: Fomentar la creatividad e innovación, el pensamiento crítico, memoria, concentración y toma de desiciones de los estudiantes con AS.
A18: Material para ciencia | B18: 1 kit de ciencia para niños. Laboratorio de ciéncias. | C18: 380 | D18: 76 | E18: 543 | F18: 585 | G18: =SUM(E18,F18) -> 1128 | H18: 0 | I18: 0 | J18: 0 | K18: 0 | L18: =SUM(J18,K18) -> 0 | M18: 0 | N18: 0 | O18: 0 | P18: 0 | Q18: =SUM(O18,P18) -> 0 | R18: 0 | S18: 0 | T18: 0 | U18: 0 | V18: =SUM(T18,U18) -> 0 | W18: 0 | X18: 0 | Y18: 0 | Z18: 0 | AA18: =SUM(Y18,Z18) -> 0 | AB18: 0 | AC18: 0 | AD18: 0 | AE18: 0 | AF18: =SUM(AD18,AE18) -> 0 | AG18: 246240 | AH18: 4to | AI18: 4to | AJ18: Estimular el pensamiento crítico y la creatividad a través de la exploración y experimentación de conceptos avanzados de química, en estudiantes con AS.
A19: Material para artes | B19: 1 kit de 1 paquete de 50 charola térmica de unicel 15.2 x 21.5 cm, 5 tinta china negra 15 mil, 5 pincel redondo fino #4, 1 jabón de barra rosa 100 gr., 1 paquete de 100 hojas papel bond blanco tamaño carta, pieza piedra alumbre 25 gr., 1 paquete 50 hojas papel bond negro tamaño carta, 5 pintura acrílico azul 15 ml., 5 pintura acrílico amarillo 15 ml., 5 pintura acrílico rojo 15ml., 5 pintura acrílico blanco 15 ml., 1 bolsa de 120 isopos, 1 caja con 12 lápiz de dibujo, 2 bolsas de alginato de magnesio de 454 gr. cada una, 1 bolsa de 1 kg. de abatelenguas de madera, 1 pquete de 25 piezas de bote de litro de plástico transparente. | C19: 76 | D19: 76 | E19: 543 | F19: 585 | G19: 1128 | H19: 0 | I19: 0 | J19: 0 | K19: 0 | L19: 0 | M19: 0 | N19: 0 | O19: 0 | P19: 0 | Q19: 0 | R19: 0 | S19: 0 | T19: 0 | U19: 0 | V19: 0 | W19: 0 | X19: 0 | Y19: 0 | Z19: 0 | AA19: 0 | AB19: 0 | AC19: 0 | AD19: 0 | AE19: 0 | AF19: 0 | AG19: 191753.4 | AH19: 4to | AI19: 4to | AJ19: Fortalecer el desarrollo integral y motivación, mediante actividades artísticas que les permitan experimentar en diveras disciplinas.
A20: Material de robótica | B20: 16 VEX iq Education kit 2ND generation. 16 robot battery. !6 controller batter. 96 smart motor . | C20: 0 | D20: 0 | E20: 0 | F20: 0 | G20: 0 | H20: 0 | I20: 0 | J20: 0 | K20: 0 | L20: 0 | M20: 0 | N20: 0 | O20: 0 | P20: 0 | Q20: 0 | R20: 0 | S20: 0 | T20: 0 | U20: 0 | V20: 0 | W20: 0 | X20: 0 | Y20: 0 | Z20: 0 | AA20: 0 | AB20: 1 | AC20: 1 | AD20: 60 | AE20: 105 | AF20: 165 | AG20: 540949.76 | AH20: 4to | AI20: 4to | AJ20: facilitar el aprendizaje y la enseñanza de conceptos relacionados con la tecnología, la programación y la ingeniería, a través de actividades prácticas y lúdicas.
C21: 0 | D21: 0 | E21: 0 | F21: 0 | G21: 0 | H21: 0 | I21: 0 | J21: 0 | K21: 0 | L21: 0 | M21: 0 | N21: 0 | O21: 0 | P21: 0 | Q21: 0 | R21: 0 | S21: 0 | T21: 0 | U21: 0 | V21: 0 | W21: 0 | X21: 0 | Y21: 0 | Z21: 0 | AA21: 0 | AB21: 0 | AC21: 0 | AD21: 0 | AE21: 0 | AF21: 0 | AG21: N/A | AJ21: N/A
C22: 0 | D22: 0 | E22: 0 | F22: 0 | G22: 0 | H22: 0 | I22: 0 | J22: 0 | K22: 0 | L22: 0 | M22: 0 | N22: 0 | O22: 0 | P22: 0 | Q22: 0 | R22: 0 | S22: 0 | T22: 0 | U22: 0 | V22: 0 | W22: 0 | X22: 0 | Y22: 0 | Z22: 0 | AA22: 0 | AB22: 0 | AC22: 0 | AD22: 0 | AE22: 0 | AF22: 0 | AG22: N/A | AJ22: N/A
C23: 0 | D23: 0 | E23: 0 | F23: 0 | G23: 0 | H23: 0 | I23: 0 | J23: 0 | K23: 0 | L23: 0 | M23: 0 | N23: 0 | O23: 0 | P23: 0 | Q23: 0 | R23: 0 | S23: 0 | T23: 0 | U23: 0 | V23: 0 | W23: 0 | X23: 0 | Y23: 0 | Z23: 0 | AA23: 0 | AB23: 0 | AC23: 0 | AD23: 0 | AE23: 0 | AF23: 0 | AG23: N/A | AJ23: N/A
C24: 0 | D24: 0 | E24: 0 | F24: 0 | G24: 0 | H24: 0 | I24: 0 | J24: 0 | K24: 0 | L24: 0 | M24: 0 | N24: 0 | O24: 0 | P24: 0 | Q24: 0 | R24: 0 | S24: 0 | T24: 0 | U24: 0 | V24: 0 | W24: 0 | X24: 0 | Y24: 0 | Z24: 0 | AA24: 0 | AB24: 0 | AC24: 0 | AD24: 0 | AE24: 0 | AF24: 0 | AG24: N/A | AJ24: N/A
C25: 0 | D25: 0 | E25: 0 | F25: 0 | G25: 0 | H25: 0 | I25: 0 | J25: 0 | K25: 0 | L25: 0 | M25: 0 | N25: 0 | O25: 0 | P25: 0 | Q25: 0 | R25: 0 | S25: 0 | T25: 0 | U25: 0 | V25: 0 | W25: 0 | X25: 0 | Y25: 0 | Z25: 0 | AA25: 0 | AB25: 0 | AC25: 0 | AD25: 0 | AE25: 0 | AF25: 0 | AG25: N/A | AJ25: N/A
C26: 0 | D26: 0 | E26: 0 | F26: 0 | G26: 0 | H26: 0 | I26: 0 | J26: 0 | K26: 0 | L26: 0 | M26: 0 | N26: 0 | O26: 0 | P26: 0 | Q26: 0 | R26: 0 | S26: 0 | T26: 0 | U26: 0 | V26: 0 | W26: 0 | X26: 0 | Y26: 0 | Z26: 0 | AA26: 0 | AB26: 0 | AC26: 0 | AD26: 0 | AE26: 0 | AF26: 0 | AG26: N/A | AJ26: N/A
A27: Total | C27: =SUM(C17:C26) -> 836 | D27: 228 | E27: 1629 | F27: 1755 | G27: 3384 | H27: 0 | I27: 0 | J27: 0 | K27: 0 | L27: 0 | M27: 0 | N27: 0 | O27: 0 | P27: 0 | Q27: 0 | R27: 0 | S27: 0 | T27: 0 | U27: 0 | V27: 0 | W27: 0 | X27: 0 | Y27: 0 | Z27: 0 | AA27: 0 | AB27: 1 | AC27: 1 | AD27: 60 | AE27: 105 | AF27: 165 | AG27: 2351313.16
A29: En caso de requerir alguna precisión o aclaración, describa brevemente:
A32: 3.11 Adquirir equipamiento y materiales para espacios de lectura y dotar de material bibliográfico para estudiantes con aptitudes sobresalientes
A33: Recurso programado: | C33: ='Distribución presupuestal 2025'!W62 -> 0
A34: Remanente | C34: =C33-AG50 -> 0
C36: Focalizados USAER | F36: ='SEE 2025'!N$26 -> 76 | H36: Focalizados CAPEP | K36: ='SEE 2025'!O$26 -> 0 | M36: Focalizados CRIE | P36: ='SEE 2025'!P$26 -> 0 | R36: Focalizados UOP | U36: ='SEE 2025'!Q$26 -> 0 | W36: Focalizados UAEBH | Z36: ='SEE 2025'!R$26 -> 0 | AB36: Focalizados Otro | AE36: ='SEE 2025'!S$26 -> 1
A37: Tipo de material (seleccione) | C37: Cantidad a distribuir | D37: USAER | H37: Cantidad a distribuir | I37: CAPEP | M37: Cantidad a distribuir | N37: CRIE | R37: Cantidad a distribuir | S37: UOP | W37: Cantidad a distribuir | X37: UAEBH | AB37: Cantidad a distribuir | AC37: Otro | AG37: Presupuesto | AH37: Trimestre de inicio | AI37: Trimestre de término | AJ37: Propósito educativo (específico de la bibliografía a adquirir)
D38: SEE | E38: Estudiantes | I38: SEE | J38: Estudiantes | N38: SEE | O38: Estudiantes | S38: SEE | T38: Estudiantes | X38: SEE | Y38: Estudiantes | AC38: SEE | AD38: Estudiantes
E39: M | F39: H | G39: T | J39: M | K39: H | L39: T | O39: M | P39: H | Q39: T | T39: M | U39: H | V39: T | Y39: M | Z39: H | AA39: T | AD39: M | AE39: H | AF39: T
G40: =SUM(E40,F40) -> 0 | L40: =SUM(J40,K40) -> 0 | Q40: =SUM(O40,P40) -> 0 | V40: =SUM(T40,U40) -> 0 | AA40: =SUM(Y40,Z40) -> 0 | AF40: =SUM(AD40,AE40) -> 0
G41: =SUM(E41,F41) -> 0 | L41: =SUM(J41,K41) -> 0 | Q41: =SUM(O41,P41) -> 0 | V41: =SUM(T41,U41) -> 0 | AA41: =SUM(Y41,Z41) -> 0 | AF41: =SUM(AD41,AE41) -> 0
G42: 0 | L42: 0 | Q42: 0 | V42: 0 | AA42: 0 | AF42: 0
G43: 0 | L43: 0 | Q43: 0 | V43: 0 | AA43: 0 | AF43: 0
G44: 0 | L44: 0 | Q44: 0 | V44: 0 | AA44: 0 | AF44: 0
G45: 0 | L45: 0 | Q45: 0 | V45: 0 | AA45: 0 | AF45: 0
G46: 0 | L46: 0 | Q46: 0 | V46: 0 | AA46: 0 | AF46: 0
G47: 0 | L47: 0 | Q47: 0 | V47: 0 | AA47: 0 | AF47: 0
G48: 0 | L48: 0 | Q48: 0 | V48: 0 | AA48: 0 | AF48: 0
G49: 0 | L49: 0 | Q49: 0 | V49: 0 | AA49: 0 | AF49: 0
A50: Total | C50: =SUM(C40:C49) -> 0 | D50: 0 | E50: 0 | F50: 0 | G50: 0 | H50: 0 | I50: 0 | J50: 0 | K50: 0 | L50: 0 | M50: 0 | N50: 0 | O50: 0 | P50: 0 | Q50: 0 | R50: 0 | S50: 0 | T50: 0 | U50: 0 | V50: 0 | W50: 0 | X50: 0 | Y50: 0 | Z50: 0 | AA50: 0 | AB50: 0 | AC50: 0 | AD50: 0 | AE50: 0 | AF50: 0 | AG50: 0
A52: En caso de requerir alguna precisión o aclaración, describa brevemente:
A55: 3.12 Dotar de insumos de papelería (hojas, tóner) para la reproducción de entrevistas, cuestionarios e inventarios para la detección de estudiantes con aptitudes sobresalientes, así como para la contratación de servicios de aplicación y procesamiento en línea, de instrumentos de evaluación
A56: Recurso programado: | C56: ='Distribución presupuestal 2025'!W63 -> 375000
A57: Remanente | C57: =C56-AG73 -> 0
C59: Focalizados USAER | F59: ='SEE 2025'!N$26 -> 76 | H59: Focalizados CAPEP | K59: ='SEE 2025'!O$26 -> 0 | M59: Focalizados CRIE | P59: ='SEE 2025'!P$26 -> 0 | R59: Focalizados UOP | U59: ='SEE 2025'!Q$26 -> 0 | W59: Focalizados UAEBH | Z59: ='SEE 2025'!R$26 -> 0 | AB59: Focalizados Otro | AE59: ='SEE 2025'!S$26 -> 1
A60: Material a adquirir | C60: Cantidad a distribuir | D60: USAER | H60: Cantidad a distribuir | I60: CAPEP | M60: Cantidad a distribuir | N60: CRIE | R60: Cantidad a distribuir | S60: UOP | W60: Cantidad a distribuir | X60: UAEBH | AB60: Cantidad a distribuir | AC60: Otro | AG60: Presupuesto | AH60: Trimestre de inicio | AI60: Trimestre de término | AJ60: Propósito educativo (específico de la prueba a adquirir)
D61: SEE | E61: Estudiantes | I61: SEE | J61: Estudiantes | N61: SEE | O61: Estudiantes | S61: SEE | T61: Estudiantes | X61: SEE | Y61: Estudiantes | AC61: SEE | AD61: Estudiantes
E62: M | F62: H | G62: T | J62: M | K62: H | L62: T | O62: M | P62: H | Q62: T | T62: M | U62: H | V62: T | Y62: M | Z62: H | AA62: T | AD62: M | AE62: H | AF62: T
A63: Toner | C63: 228 | D63: 76 | E63: 543 | F63: 585 | G63: =SUM(E63,F63) -> 1128 | H63: 0 | I63: 0 | J63: 0 | K63: 0 | L63: =SUM(J63,K63) -> 0 | M63: 0 | N63: 0 | O63: 0 | P63: 0 | Q63: =SUM(O63,P63) -> 0 | R63: 0 | S63: 0 | T63: 0 | U63: 0 | V63: =SUM(T63,U63) -> 0 | W63: 0 | X63: 0 | Y63: 0 | Z63: 0 | AA63: =SUM(Y63,Z63) -> 0 | AB63: 4 | AC63: 1 | AD63: 60 | AE63: 15 | AF63: =SUM(AD63,AE63) -> 75 | AG63: 200000 | AH63: 4to | AI63: 4to | AJ63: Elaboración de materiales visuales atractivos para captar la atención de los estudiantes yfacilitar su comprensión.
A64: Papelería: hojas de máquina: 1 paquete de 5000 hojas tamaño carta , 1128 lápiz, 1128 pluma, 1128 plumines, 1128 paquete de post it. | C64: 1 | D64: 76 | E64: 543 | F64: 585 | G64: =SUM(E64,F64) -> 1128 | H64: 0 | I64: 0 | J64: 0 | K64: 0 | L64: =SUM(J64,K64) -> 0 | M64: 0 | N64: 0 | O64: 0 | P64: 0 | Q64: =SUM(O64,P64) -> 0 | R64: 0 | S64: 0 | T64: 0 | U64: 0 | V64: =SUM(T64,U64) -> 0 | W64: 0 | X64: 0 | Y64: 0 | Z64: 0 | AA64: =SUM(Y64,Z64) -> 0 | AB64: 1 | AC64: 1 | AD64: 60 | AE64: 15 | AF64: =SUM(AD64,AE64) -> 75 | AG64: 175000 | AH64: 4to | AI64: 4to | AJ64: N/A
A65: N/A | C65: 0 | D65: 0 | E65: 0 | F65: 0 | G65: 0 | H65: 0 | I65: 0 | J65: 0 | K65: 0 | L65: 0 | M65: 0 | N65: 0 | O65: 0 | P65: 0 | Q65: 0 | R65: 0 | S65: 0 | T65: 0 | U65: 0 | V65: 0 | W65: 0 | X65: 0 | Y65: 0 | Z65: 0 | AA65: 0 | AB65: 0 | AC65: 0 | AD65: 0 | AE65: 0 | AF65: 0 | AG65: N/A | AJ65: N/A
A66: N/A | C66: 0 | D66: 0 | E66: 0 | F66: 0 | G66: 0 | H66: 0 | I66: 0 | J66: 0 | K66: 0 | L66: 0 | M66: 0 | N66: 0 | O66: 0 | P66: 0 | Q66: 0 | R66: 0 | S66: 0 | T66: 0 | U66: 0 | V66: 0 | W66: 0 | X66: 0 | Y66: 0 | Z66: 0 | AA66: 0 | AB66: 0 | AC66: 0 | AD66: 0 | AE66: 0 | AF66: 0 | AG66: N/A | AJ66: N/A
A67: N/A | C67: 0 | D67: 0 | E67: 0 | F67: 0 | G67: 0 | H67: 0 | I67: 0 | J67: 0 | K67: 0 | L67: 0 | M67: 0 | N67: 0 | O67: 0 | P67: 0 | Q67: 0 | R67: 0 | S67: 0 | T67: 0 | U67: 0 | V67: 0 | W67: 0 | X67: 0 | Y67: 0 | Z67: 0 | AA67: 0 | AB67: 0 | AC67: 0 | AD67: 0 | AE67: 0 | AF67: 0 | AG67: N/A | AJ67: N/A
A68: N/A | C68: 0 | D68: 0 | E68: 0 | F68: 0 | G68: 0 | H68: 0 | I68: 0 | J68: 0 | K68: 0 | L68: 0 | M68: 0 | N68: 0 | O68: 0 | P68: 0 | Q68: 0 | R68: 0 | S68: 0 | T68: 0 | U68: 0 | V68: 0 | W68: 0 | X68: 0 | Y68: 0 | Z68: 0 | AA68: 0 | AB68: 0 | AC68: 0 | AD68: 0 | AE68: 0 | AF68: 0 | AG68: N/A | AJ68: N/A
A69: N/A | C69: 0 | D69: 0 | E69: 0 | F69: 0 | G69: 0 | H69: 0 | I69: 0 | J69: 0 | K69: 0 | L69: 0 | M69: 0 | N69: 0 | O69: 0 | P69: 0 | Q69: 0 | R69: 0 | S69: 0 | T69: 0 | U69: 0 | V69: 0 | W69: 0 | X69: 0 | Y69: 0 | Z69: 0 | AA69: 0 | AB69: 0' | AC69: 0 | AD69: 0 | AE69: 0 | AF69: 0 | AG69: N/A | AJ69: N/A
A70: N/A | C70: 0 | D70: 0 | E70: 0 | F70: 0 | G70: 0 | H70: 0 | I70: 0 | J70: 0 | K70: 0 | L70: 0 | M70: 0 | N70: 0 | O70: 0 | P70: 0 | Q70: 0 | R70: 0 | S70: 0 | T70: 0 | U70: 0 | V70: 0 | W70: 0 | X70: 0 | Y70: 0 | Z70: 0 | AA70: 0 | AB70: 0 | AC70: 0 | AD70: 0 | AE70: 0 | AF70: 0 | AG70: N/A | AJ70: N/A
A71: N/A | C71: 0 | D71: 0 | E71: 0 | F71: 0 | G71: 0 | H71: 0 | I71: 0 | J71: 0 | K71: 0 | L71: 0 | M71: 0 | N71: 0 | O71: 0 | P71: 0 | Q71: 0 | R71: 0 | S71: 0 | T71: 0 | U71: 0 | V71: 0 | W71: 0 | X71: 0 | Y71: 0 | Z71: 0 | AA71: 0 | AB71: 0 | AC71: 0 | AD71: 0 | AE71: 0 | AF71: 0 | AG71: N/A | AJ71: N/A
A72: N/A | C72: 0 | D72: 0 | E72: 0 | F72: 0 | G72: 0 | H72: 0 | I72: 0 | J72: 0 | K72: 0 | L72: 0 | M72: 0 | N72: 0 | O72: 0 | P72: 0 | Q72: 0 | R72: 0 | S72: 0 | T72: 0 | U72: 0 | V72: 0 | W72: 0 | X72: 0 | Y72: 0 | Z72: 0 | AA72: 0 | AB72: 0 | AC72: 0 | AD72: 0 | AE72: 0 | AF72: 0 | AG72: N/A | AJ72: N/A
A73: Total | C73: =SUM(C63:C72) -> 229 | D73: 152 | E73: 1086 | F73: 1170 | G73: 2256 | H73: 0 | I73: 0 | J73: 0 | K73: 0 | L73: 0 | M73: 0 | N73: 0 | O73: 0 | P73: 0 | Q73: 0 | R73: 0 | S73: 0 | T73: 0 | U73: 0 | V73: 0 | W73: 0 | X73: 0 | Y73: 0 | Z73: 0 | AA73: 0 | AB73: 5 | AC73: 2 | AD73: 120 | AE73: 30 | AF73: 150 | AG73: 375000
A75: En caso de requerir alguna precisión o aclaración, describa brevemente:
A78: 3.13 Dotar de euipo tecnológico y/o multimedia para estudiantes con aptitudes sobresalientes
A79: Recurso programado: | C79: ='Distribución presupuestal 2025'!W64 -> 528900
A80: Remanente | C80: =C79-AG96 -> 0
C82: Focalizados USAER | F82: ='SEE 2025'!N$26 -> 76 | H82: Focalizados CAPEP | K82: ='SEE 2025'!O$26 -> 0 | M82: Focalizados CRIE | P82: ='SEE 2025'!P$26 -> 0 | R82: Focalizados UOP | U82: ='SEE 2025'!Q$26 -> 0 | W82: Focalizados UAEBH | Z82: ='SEE 2025'!R$26 -> 0 | AB82: Focalizados Otro | AE82: ='SEE 2025'!S$26 -> 1
A83: Tipo de equipo (seleccione) | B83: Características generales de los equipos | C83: Cantidad a distribuir | D83: USAER | H83: Cantidad a distribuir | I83: CAPEP | M83: Cantidad a distribuir | N83: CRIE | R83: Cantidad a distribuir | S83: UOP | W83: Cantidad a distribuir | X83: UAEBH | AB83: Cantidad a distribuir | AC83: Otro | AG83: Presupuesto | AH83: Trimestre de inicio | AI83: Trimestre de término | AJ83: Propósito educativo (específico de los materiales)
D84: SEE | E84: Estudiantes | I84: SEE | J84: Estudiantes | N84: SEE | O84: Estudiantes | S84: SEE | T84: Estudiantes | X84: SEE | Y84: Estudiantes | AC84: SEE | AD84: Estudiantes
E85: M | F85: H | G85: T | J85: M | K85: H | L85: T | O85: M | P85: H | Q85: T | T85: M | U85: H | V85: T | Y85: M | Z85: H | AA85: T | AD85: M | AE85: H | AF85: T
A86: Equipo de cómputo | B86: PC de escritorio intel core 15 145000T vpro 24mb Cache 14 Cores 20 threads Windows 11 | C86: 3 | D86: 3 | E86: 33 | F86: 36 | G86: =SUM(E86,F86) -> 69 | H86: 0 | I86: 0 | J86: 0 | K86: 0 | L86: =SUM(J86,K86) -> 0 | M86: 0 | N86: 0 | O86: 0 | P86: 0 | Q86: =SUM(O86,P86) -> 0 | R86: 0 | S86: 0 | T86: 0 | U86: 0 | V86: =SUM(T86,U86) -> 0 | W86: 0 | X86: 0 | Y86: 0 | Z86: 0 | AA86: =SUM(Y86,Z86) -> 0 | AB86: 8 | AC86: 1 | AD86: 60 | AE86: 105 | AF86: =SUM(AD86,AE86) -> 165 | AG86: 275000 | AH86: 4to | AI86: 4to | AJ86: Facilitar el acceso a diversos recursos educativos, como videos, tutoriales que favorezcan la retención de la informaci´pon y su comprensión.
A87: Cañón | B87: Proyector lcd de 3400 lúmenes, brillo de proyector, lampara uhe 210 vatios tecnología de proyección lcd resolución de proyección xga 1024X768 resolución de contraste 15000:1 dinámico. | C87: 1 | D87: 1 | E87: 8 | F87: 7 | G87: =SUM(E87,F87) -> 15 | H87: 0 | I87: 0 | J87: 0 | K87: 0 | L87: =SUM(J87,K87) -> 0 | M87: 0 | N87: 0 | O87: 0 | P87: 0 | Q87: =SUM(O87,P87) -> 0 | R87: 0 | S87: 0 | T87: 0 | U87: 0 | V87: =SUM(T87,U87) -> 0 | W87: 0 | X87: 0 | Y87: 0 | Z87: 0 | AA87: =SUM(Y87,Z87) -> 0 | AB87: 0 | AC87: 0 | AD87: 0 | AE87: 0 | AF87: =SUM(AD87,AE87) -> 0 | AG87: 15700 | AH87: 4to | AI87: 4to | AJ87: Facilitar la visualización de información compleja para que el mensaje sea accesible a los estudiantes.
A88: Impresora | B88: Multifuncional de inyección de tinta contínua, vol de impresión 500 pp, vel de impresión en negro 10ppm. Vel de impresión color 5 ppm. Interfase ethernet integrada, WIFI, Bluetooth. | C88: 5 | D88: 5 | E88: 60 | F88: 42 | G88: 102 | H88: 0 | I88: 0 | J88: 0 | K88: 0 | L88: 0 | M88: 0 | N88: 0 | O88: 0 | P88: 0 | Q88: 0 | R88: 0 | S88: 0 | T88: 0 | U88: 0 | V88: 0 | W88: 0 | X88: 0 | Y88: 0 | Z88: 0 | AA88: 0 | AB88: 1 | AC88: 1 | AD88: 60 | AE88: 105 | AF88: 165 | AG88: 68400 | AH88: 4to | AI88: 4to | AJ88: favorecer el acceso a materiales impresos para complementar la enseñanza y el trabajo colaborativo. Así como el intercambio de ideas entre estudiantes.
A89: Equipo de cómputo | B89: Laptop | C89: 5 | D89: 5 | E89: 66 | F89: 49 | G89: 115 | H89: 0 | I89: 0 | J89: 0 | K89: 0 | L89: 0 | M89: 0 | N89: 0 | O89: 0 | P89: 0 | Q89: 0 | R89: 0 | S89: 0 | T89: 0 | U89: 0 | V89: 0 | W89: 0 | X89: 0 | Y89: 0 | Z89: 0 | AA89: 0 | AB89: 0 | AC89: 0 | AD89: 0 | AE89: 0 | AF89: 0 | AG89: 157500 | AH89: 4to | AI89: 4to | AJ89: Facilitar el acceso a diversos recursos educativos en distintos espacios, como videos, tutoriales que favorezcan la retención de la informaci´pon y su comprensión.
A90: Enmicadora | B90: Emnicadora fellowes spectra 125 uso. | C90: 4 | D90: 4 | E90: 50 | F90: 53 | G90: 103 | H90: 0 | I90: 0 | J90: 0 | K90: 0 | L90: 0 | M90: 0 | N90: 0 | O90: 0 | P90: 0 | Q90: 0 | R90: 0 | S90: 0 | T90: 0 | U90: 0 | V90: 0 | W90: 0 | X90: 0 | Y90: 0 | Z90: 0 | AA90: 0 | AB90: 0 | AC90: 0 | AD90: 0 | AE90: 0 | AF90: 0 | AG90: 8800 | AH90: 4to | AI90: 4to | AJ90: Preservar matriales educativos durante tiempo prolongado
A91: Otro (especifique) | B91: Guillotina, capacidad hasta 10 hoja, largo máximo de corte 30 cm, co traba de seguridad y guía de corte antideslizante. | C91: 1 | D91: 1 | E91: 15 | F91: 15 | G91: 30 | H91: 0 | I91: 0 | J91: 0 | K91: 0 | L91: 0 | M91: 0 | N91: 0 | O91: 0 | P91: 0 | Q91: 0 | R91: 0 | S91: 0 | T91: 0 | U91: 0 | V91: 0 | W91: 0 | X91: 0 | Y91: 0 | Z91: 0 | AA91: 0 | AB91: 0 | AC91: 0 | AD91: 0 | AE91: 0 | AF91: 0 | AG91: 3500 | AH91: 4to | AI91: 4to | AJ91: Reproducción de materiales educativos, para que sean adecuados y presentables.
B92: N/A | C92: 0 | D92: 0 | E92: 0 | F92: 0 | G92: 0 | H92: 0 | I92: 0 | J92: 0 | K92: 0 | L92: 0 | M92: 0 | N92: 0 | O92: 0 | P92: 0 | Q92: 0 | R92: 0 | S92: 0 | T92: 0 | U92: 0 | V92: 0 | W92: 0 | X92: 0 | Y92: 0 | Z92: 0 | AA92: 0 | AB92: 0 | AC92: 0 | AD92: 0 | AE92: 0 | AF92: 0 | AG92: N/A | AJ92: N/A
B93: N/A | C93: 0 | D93: 0 | E93: 0 | F93: 0 | G93: 0 | H93: 0 | I93: 0 | J93: 0 | K93: 0 | L93: 0 | M93: 0 | N93: 0 | O93: 0 | P93: 0 | Q93: 0 | R93: 0 | S93: 0 | T93: 0 | U93: 0 | V93: 0 | W93: 0 | X93: 0 | Y93: 0 | Z93: 0 | AA93: 0 | AB93: 0 | AC93: 0 | AD93: 0 | AE93: 0 | AF93: 0 | AG93: N/A | AJ93: N/A
B94: N/A | C94: 0 | D94: 0 | E94: 0 | F94: 0 | G94: 0 | H94: 0 | I94: 0 | J94: 0 | K94: 0 | L94: 0 | M94: 0 | N94: 0 | O94: 0 | P94: 0 | Q94: 0 | R94: 0 | S94: 0 | T94: 0 | U94: 0 | V94: 0 | W94: 0 | X94: 0 | Y94: 0 | Z94: 0 | AA94: 0 | AB94: 0 | AC94: 0 | AD94: 0 | AE94: 0 | AF94: 0 | AG94: N/A | AJ94: N/A
B95: N/A | C95: 0 | D95: 0 | E95: 0 | F95: 0 | G95: 0 | H95: 0 | I95: 0 | J95: 0 | K95: 0 | L95: 0 | M95: 0 | N95: 0 | O95: 0 | P95: 0 | Q95: 0 | R95: 0 | S95: 0 | T95: 0 | U95: 0 | V95: 0 | W95: 0 | X95: 0 | Y95: 0 | Z95: 0 | AA95: 0 | AB95: 0 | AC95: 0 | AD95: 0 | AE95: 0 | AF95: 0 | AG95: N/A | AJ95: N/A
A96: Total | C96: =SUM(C86:C95) -> 19 | D96: 19 | E96: 232 | F96: 202 | G96: 434 | H96: 0 | I96: 0 | J96: 0 | K96: 0 | L96: 0 | M96: 0 | N96: 0 | O96: 0 | P96: 0 | Q96: 0 | R96: 0 | S96: 0 | T96: 0 | U96: 0 | V96: 0 | W96: 0 | X96: 0 | Y96: 0 | Z96: 0 | AA96: 0 | AB96: 9 | AC96: 2 | AD96: 120 | AE96: 210 | AF96: 330 | AG96: 528900
A98: En caso de requerir alguna precisión o aclaración, describa brevemente:
A101: 3.14 Dotar de insumos y materiales consumibles no perecederos que se requieren para apoyar las actividades curriculares y extracurriculares de estudiantes con aptitudes sobresalientes
A102: Recurso programado: | C102: ='Distribución presupuestal 2025'!W65 -> 0
A103: Remanente | C103: =C102-AG119 -> 0
C105: Focalizados USAER | F105: ='SEE 2025'!N$26 -> 76 | H105: Focalizados CAPEP | K105: ='SEE 2025'!O$26 -> 0 | M105: Focalizados CRIE | P105: ='SEE 2025'!P$26 -> 0 | R105: Focalizados UOP | U105: ='SEE 2025'!Q$26 -> 0 | W105: Focalizados UAEBH | Z105: ='SEE 2025'!R$26 -> 0 | AB105: Focalizados Otro | AE105: ='SEE 2025'!S$26 -> 1
A106: Especifique el tipo de insumos | C106: Cantidad a distribuir | D106: USAER | H106: Cantidad a distribuir | I106: CAPEP | M106: Cantidad a distribuir | N106: CRIE | R106: Cantidad a distribuir | S106: UOP | W106: Cantidad a distribuir | X106: UAEBH | AB106: Cantidad a distribuir | AC106: Otro | AG106: Presupuesto | AH106: Trimestre de inicio | AI106: Trimestre de término | AJ106: Propósito educativo (específico de los materiales)
D107: SEE | E107: Estudiantes | I107: SEE | J107: Estudiantes | N107: SEE | O107: Estudiantes | S107: SEE | T107: Estudiantes | X107: SEE | Y107: Estudiantes | AC107: SEE | AD107: Estudiantes
E108: M | F108: H | G108: T | J108: M | K108: H | L108: T | O108: M | P108: H | Q108: T | T108: M | U108: H | V108: T | Y108: M | Z108: H | AA108: T | AD108: M | AE108: H | AF108: T
G109: =SUM(E109,F109) -> 0 | L109: =SUM(J109,K109) -> 0 | Q109: =SUM(O109,P109) -> 0 | V109: =SUM(T109,U109) -> 0 | AA109: 0 | AF109: =SUM(AD109,AE109) -> 0
G110: =SUM(E110,F110) -> 0 | L110: =SUM(J110,K110) -> 0 | Q110: =SUM(O110,P110) -> 0 | V110: =SUM(T110,U110) -> 0 | AA110: =SUM(Y110,Z110) -> 0 | AF110: =SUM(AD110,AE110) -> 0
G111: 0 | L111: 0 | Q111: 0 | V111: 0 | AA111: 0 | AF111: 0
G112: 0 | L112: 0 | Q112: 0 | V112: 0 | AA112: 0 | AF112: 0
G113: 0 | L113: 0 | Q113: 0 | V113: 0 | AA113: 0 | AF113: 0
G114: 0 | L114: 0 | Q114: 0 | V114: 0 | AA114: 0 | AF114: 0
G115: 0 | L115: 0 | Q115: 0 | V115: 0 | AA115: 0 | AF115: 0
G116: 0 | L116: 0 | Q116: 0 | V116: 0 | AA116: 0 | AF116: 0
G117: 0 | L117: 0 | Q117: 0 | V117: 0 | AA117: 0 | AF117: 0
G118: 0 | L118: 0 | Q118: 0 | V118: 0 | AA118: 0 | AF118: 0
A119: Total | C119: =SUM(C109:C118) -> 0 | D119: 0 | E119: 0 | F119: 0 | G119: 0 | H119: 0 | I119: 0 | J119: 0 | K119: 0 | L119: 0 | M119: 0 | N119: 0 | O119: 0 | P119: 0 | Q119: 0 | R119: 0 | S119: 0 | T119: 0 | U119: 0 | V119: 0 | W119: 0 | X119: 0 | Y119: 0 | Z119: 0 | AA119: 0 | AB119: 0 | AC119: 0 | AD119: 0 | AE119: 0 | AF119: 0 | AG119: 0
A121: En caso de requerir alguna precisión o aclaración, describa brevemente:

Sheet GOL
A1: Subsecretaría de Educación Básica Dirección General de Desarrollo Curricular Dirección de Fortalecimiento Curricular para la Formación Personal y Social en la Educación Básica Educación Especial
A6: Recurso programado: | B6: ='Distribución presupuestal 2025'!S14 -> 443727.06
A7: Remanente | B7: =B6-E16 -> 0
A9: Gastos de operación local 2025
A10: Tipo | B10: Descripción de las actividades a realizar en cada caso | C10: Trimestre de inicio | D10: Trimestre de término | E10: Presupuesto
A11: Seguimiento y supervisión | B11: Viáticos, combustible, coffee brakehospedaje y alimentación. | C11: 2do | D11: 4to | E11: 97727.06
A12: Evaluación | B12: Aplicación de la Evaluación Interna, según lo marcan las RO en el numeral 6.1. | C12: 4to | D12: 4to | E12: 116000
A13: Acciones de Contraloría Social | B13: Las actividades de contraloría social serán descritas en el programa de trabajo de la instancia ejecutora. | C13: 3ro | D13: 4to | E13: 115000
A14: Asistencia a reuniones convocadas por la DGDC | B14: Viáticos y pasajes aereos | C14: 3ro | D14: 4to | E14: 64000
A15: Distribución de materiales a los SEE focalizados | B15: viáticos, combustible, servicio de paquetería. | C15: 3ro | D15: 4to | E15: 51000
E16: =SUM(E11:E15) -> 443727.06
A18: En caso de requerir alguna precisión o aclaración, describa brevemente:

Sheet Autorización
G1: Subsecretaría de Educación Básica Dirección General de Desarrollo Curricular Dirección de Fortalecimiento Curricular para la Formación Personal y Social en la Educación Básica
A6: AUTORIZACIÓN PLAN ANUAL DE TRABAJO 2025
A7: En caso de que en su entidad federativa no se cuente con alguno de los subsistemas, se solicita no dejar en blanco el apartado de firmas, sino agregar N/A en cada caso
A10: Validación de la Persona Coordinadora Local del PFSEE
A11: Nombre | D11: Dr. Antonio Herrera Montes
A12: Cargo | D12: Coordinador Estatal de PFSEE Durango
A13: Firma y sello
A15: Validación de la / del Responsable de Educación Especial subsistema Estatal
A16: Nombre | D16: N/A
A17: Cargo | D17: N/A
A18: Firma y sello | D18: N/A
A20: Validación de la / del Responsable de Educación Especial subsistema Federal
A21: Nombre | D21: Dr. Antonio Herrera Montes
A22: Cargo | D22: Encargado del Departamento de Educación Especial
A23: Firma y sello
